Body Name,Organisational Unit,Expenditure Category,Expenditure Code,Paid Date,Trans No,Amount,Type,Supplier ID,Supplier Name 
Oxford City Council,City Development,Services - General Fees,K9501,15/07/2014,46282421_1,1925,Revenue,20000000_46282421,Oxford & Cherwell Valley College
Oxford City Council,"Policy, Culture and Communication",Pitch & Site Rents,K9534,22/07/2014,46282506_1,500,Revenue,20000000_46282506,Oxford Pride Group
Oxford City Council,Customer Services,Grants,D3701,22/07/2014,46282575_1,2500,Revenue,20000000_46282575,The Oxford Retreat
Oxford City Council,"Policy, Culture and Communication",Pitch & Site Rents,K9534,29/07/2014,46282614_1,500,Revenue,20000000_46282614,Berks Bucks & Oxon Wildlife Trust
Oxford City Council,"Policy, Culture and Communication",Pitch & Site Rents,K9534,29/07/2014,46282615_1,1000,Revenue,20000000_46282615,Headington Action
Oxford City Council,"Policy, Culture and Communication",Pitch & Site Rents,K9534,29/07/2014,46282617_1,500,Revenue,20000000_46282617,Redacted personal data
Oxford City Council,Customer Services,Grants,D3701,29/07/2014,46282623_1,2500,Revenue,20000000_46282623,Oxford River Cruises Ltd. 
Oxford City Council,"Policy, Culture and Communication",Pitch & Site Rents,K9534,05/08/2014,46282639_1,500,Revenue,20000000_46282639,BIKE OXFORD
Oxford City Council,Customer Services,Grants,D3701,12/08/2014,46282748_1,2412,Revenue,20000000_46282748,ANDREW T N SMITH
Oxford City Council,Suspense,Creditors - BACS,J8810,12/08/2014,46282764_1,1980,Revenue,20000000_46282764,SOHA HOUSING
Oxford City Council,"Policy, Culture and Communication",Pitch & Site Rents,K9534,19/08/2014,46282793_1,500,Revenue,20000000_46282793,COSME Ltd. 
Oxford City Council,"Policy, Culture and Communication",Pitch & Site Rents,K9534,19/08/2014,46282794_1,500,Revenue,20000000_46282794,West Oxford Community Association
Oxford City Council,Customer Services,Grants,D3701,19/08/2014,46282808_1,5000,Revenue,20000000_46282808,Redacted personal data
Oxford City Council,Suspense,Housing - Freehold Disposals 75%,W0000,27/08/2014,46282860_1,2000,Revenue,20000000_46282860,Redacted personal data
Oxford City Council,Suspense,Bank Credits Suspense,K9901,05/09/2014,46282963_1,1842.04,Revenue,20000000_46282963,Redacted personal data
Oxford City Council,HRA,Special Events,D3807,09/09/2014,46282984_1,700.18,Revenue,20000000_46282984,Redacted personal data
Oxford City Council,Environmental Development,Public Transport,C2501,23/09/2014,46283178_1,99.8,Revenue,20000000_46283178,Redacted personal data
Oxford City Council,Environmental Development,Subsistence,D3601,23/09/2014,46283178_2,41.67,Revenue,20000000_46283178,Redacted personal data
Oxford City Council,Environmental Development,General Contracted Services,D3401,23/09/2014,46283178_3,600,Revenue,20000000_46283178,Redacted personal data
Oxford City Council,HRA,Special Events,D3807,23/09/2014,46283219_1,781.97,Revenue,20000000_46283219,Redacted personal data
Oxford City Council,"Leisure, Parks & Communities",Grants,D3701,26/09/2014,46283244_1,978,Revenue,20000000_46283244,Oxford and District Federation of Allotment Associations
Oxford City Council,Housing and Property,Rent Allowance Cheques (Home Choice),F5033,01/07/2014,46282285_1,825,Revenue,20000010_46282285,Lansborough Lettings
Oxford City Council,Housing and Property,Rent Allowance Cheques (Home Choice),F5033,01/07/2014,46282285_2,1237.5,Revenue,20000010_46282285,Lansborough Lettings
Oxford City Council,Housing and Property,Rent Allowance Cheques (Home Choice),F5033,01/07/2014,46282285_3,300,Revenue,20000010_46282285,Lansborough Lettings
Oxford City Council,Housing and Property,Rent Allowance Cheques (Home Choice),F5033,01/07/2014,46282292_1,890.4,Revenue,20000010_46282292,Redacted personal data
Oxford City Council,Housing and Property,Rent Allowance Cheques (Home Choice),F5033,01/07/2014,46282292_2,900,Revenue,20000010_46282292,Redacted personal data
Oxford City Council,Housing and Property,Rent Allowance Cheques (Home Choice),F5033,08/07/2014,46282299_1,900,Revenue,20000010_46282299,Redacted personal data
Oxford City Council,Housing and Property,Rent Allowance Cheques (Home Choice),F5033,08/07/2014,46282299_2,132,Revenue,20000010_46282299,Redacted personal data
Oxford City Council,Housing and Property,Rent Allowance Cheques (Home Choice),F5033,08/07/2014,46282361_1,900,Revenue,20000010_46282361,Redacted personal data
Oxford City Council,Housing and Property,Homeless Prevention,D3426,08/07/2014,46282391_1,500,Revenue,20000010_46282391,Redacted personal data
Oxford City Council,Housing and Property,Rent,B1701,08/07/2014,46282393_1,1042.5,Revenue,20000010_46282393,Redacted personal data
Oxford City Council,HRA,Special Events,D3807,15/07/2014,46282426_1,726.88,Revenue,20000010_46282426,Redacted personal data
Oxford City Council,Housing and Property,Rent Allowance Cheques (Home Choice),F5033,15/07/2014,46282436_1,800,Revenue,20000010_46282436,Redacted personal data
Oxford City Council,Housing and Property,Rent Allowance Cheques (Home Choice),F5033,15/07/2014,46282437_1,890.4,Revenue,20000010_46282437,Redacted personal data
Oxford City Council,Housing and Property,Rent Allowance Cheques (Home Choice),F5033,15/07/2014,46282464_1,1000,Revenue,20000010_46282464,Redacted personal data
Oxford City Council,Housing and Property,Rent Allowance Cheques (Home Choice),F5033,15/07/2014,46282465_1,1094,Revenue,20000010_46282465,Redacted personal data
Oxford City Council,Housing and Property,Rent Allowance Cheques (Home Choice),F5033,15/07/2014,46282470_1,1315.39,Revenue,20000010_46282470,Redacted personal data
Oxford City Council,HRA,Special Events,D3807,22/07/2014,46282520_1,1000,Revenue,20000010_46282520,Redacted personal data
Oxford City Council,Housing and Property,Rent Allowance Cheques (Home Choice),F5033,22/07/2014,46282552_1,783,Revenue,20000010_46282552,Redacted personal data
Oxford City Council,Housing and Property,Rent Allowance Cheques (Home Choice),F5033,22/07/2014,46282557_1,1050,Revenue,20000010_46282557,Redacted personal data
Oxford City Council,Housing and Property,Rent Allowance Cheques (Home Choice),F5033,22/07/2014,46282557_2,2100,Revenue,20000010_46282557,Redacted personal data
Oxford City Council,Housing and Property,Rent Allowance Cheques (Home Choice),F5033,22/07/2014,46282565_1,895,Revenue,20000010_46282565,Redacted personal data
Oxford City Council,Housing and Property,Rent Allowance Cheques (Home Choice),F5033,22/07/2014,46282565_2,415.2,Revenue,20000010_46282565,Redacted personal data
Oxford City Council,Housing and Property,Homeless Prevention,D3426,22/07/2014,46282568_1,695,Revenue,20000010_46282568,Oxfordshire Estates
Oxford City Council,HRA,Special Events,D3807,29/07/2014,46282581_1,1686.01,Revenue,20000010_46282581,Redacted personal data
Oxford City Council,HRA,Special Events,D3807,29/07/2014,46282585_1,651.44,Revenue,20000010_46282585,Redacted personal data
Oxford City Council,Housing and Property,Rent Allowance Cheques (Home Choice),F5033,29/07/2014,46282603_1,3444,Revenue,20000010_46282603,Redacted personal data
Oxford City Council,Housing and Property,Rent Allowance Cheques (Home Choice),F5033,29/07/2014,46282624_1,150,Revenue,20000010_46282624,Redacted personal data
Oxford City Council,Housing and Property,Rent Allowance Cheques (Home Choice),F5033,29/07/2014,46282624_2,420,Revenue,20000010_46282624,Redacted personal data
Oxford City Council,Housing and Property,Rent Allowance Cheques (Home Choice),F5033,29/07/2014,46282624_3,855,Revenue,20000010_46282624,Redacted personal data
Oxford City Council,Housing and Property,Rent Allowance Cheques (Home Choice),F5033,29/07/2014,46282624_4,950,Revenue,20000010_46282624,Redacted personal data
Oxford City Council,Housing and Property,Rent Allowance Cheques (Home Choice),F5033,29/07/2014,46282633_1,900,Revenue,20000010_46282633,Redacted personal data
Oxford City Council,Housing and Property,Rent Allowance Cheques (Home Choice),F5033,29/07/2014,46282633_2,525,Revenue,20000010_46282633,Redacted personal data
Oxford City Council,Housing and Property,Rent Allowance Cheques (Home Choice),F5033,29/07/2014,46282633_3,525,Revenue,20000010_46282633,Redacted personal data
Oxford City Council,Housing and Property,Rent Allowance Cheques (Home Choice),F5033,05/08/2014,46282663_1,1350,Revenue,20000010_46282663,Redacted personal data
Oxford City Council,Housing and Property,Rent Allowance Cheques (Home Choice),F5033,12/08/2014,46282711_1,2200,Revenue,20000010_46282711,ANDREWS LETTINGS & MANAGEMENT
Oxford City Council,Housing and Property,Rent Allowance Cheques (Home Choice),F5033,12/08/2014,46282712_1,1100,Revenue,20000010_46282712,ANDREWS LETTINGS & MANAGEMENT
Oxford City Council,Housing and Property,Rent Allowance Cheques (Home Choice),F5033,12/08/2014,46282713_1,1074.25,Revenue,20000010_46282713,Redacted personal data
Oxford City Council,Housing and Property,Rent Allowance Cheques (Home Choice),F5033,12/08/2014,46282729_1,787.7,Revenue,20000010_46282729,Redacted personal data
Oxford City Council,Housing and Property,Rent Allowance Cheques (Home Choice),F5033,12/08/2014,46282730_1,2850,Revenue,20000010_46282730,Redacted personal data
Oxford City Council,Housing and Property,Rent Allowance Cheques (Home Choice),F5033,12/08/2014,46282731_1,1275,Revenue,20000010_46282731,Redacted personal data
Oxford City Council,Direct Services,Rent Allowance Cheques (Home Choice),F5033,12/08/2014,46282734_1,1722,Revenue,20000010_46282734,Redacted personal data
Oxford City Council,Housing and Property,Rent Allowance Cheques (Home Choice),F5033,12/08/2014,46282735_1,900,Revenue,20000010_46282735,Redacted personal data
Oxford City Council,Housing and Property,Rent Allowance Cheques (Home Choice),F5033,12/08/2014,46282736_1,1190.4,Revenue,20000010_46282736,Redacted personal data
Oxford City Council,Housing and Property,Homeless Prevention,D3426,12/08/2014,46282747_1,500,Revenue,20000010_46282747,Redacted personal data
Oxford City Council,Housing and Property,Rent Allowance Cheques (Home Choice),F5033,19/08/2014,46282811_1,1312.5,Revenue,20000010_46282811,Redacted personal data
Oxford City Council,Housing and Property,Rent Allowance Cheques (Home Choice),F5033,19/08/2014,46282820_1,1490.4,Revenue,20000010_46282820,Redacted personal data
Oxford City Council,HRA,Special Events,D3807,27/08/2014,46282863_1,854.48,Revenue,20000010_46282863,Redacted personal data
Oxford City Council,Housing and Property,Rent Allowance Cheques (Home Choice),F5033,27/08/2014,46282870_1,1387.5,Revenue,20000010_46282870,Redacted personal data
Oxford City Council,Housing and Property,Rent Allowance Cheques (Home Choice),F5033,27/08/2014,46282870_2,925,Revenue,20000010_46282870,Redacted personal data
Oxford City Council,Housing and Property,Rent Allowance Cheques (Home Choice),F5033,27/08/2014,46282870_3,429,Revenue,20000010_46282870,Redacted personal data
Oxford City Council,Housing and Property,Rent Allowance Cheques (Home Choice),F5033,27/08/2014,46282873_1,590.4,Revenue,20000010_46282873,Redacted personal data
Oxford City Council,Housing and Property,Rent Allowance Cheque For Single Persons,F5032,27/08/2014,46282886_1,605.76,Revenue,20000010_46282886,Housing 21
Oxford City Council,Housing and Property,Rent Allowance Cheques (Home Choice),F5033,27/08/2014,46282887_1,825.8,Revenue,20000010_46282887,Redacted personal data
Oxford City Council,Housing and Property,Rent Allowance Cheques (Home Choice),F5033,27/08/2014,46282888_1,900,Revenue,20000010_46282888,Redacted personal data
Oxford City Council,Housing and Property,Rent Allowance Cheques (Home Choice),F5033,02/09/2014,46282914_1,1490.4,Revenue,20000010_46282914,Redacted personal data
Oxford City Council,Housing and Property,Rent Allowance Cheques (Home Choice),F5033,02/09/2014,46282935_1,495,Revenue,20000010_46282935,Redacted personal data
Oxford City Council,Housing and Property,Rent Allowance Cheques (Home Choice),F5033,02/09/2014,46282935_2,495,Revenue,20000010_46282935,Redacted personal data
Oxford City Council,Housing and Property,Rent Allowance Cheques (Home Choice),F5033,02/09/2014,46282935_3,699.88,Revenue,20000010_46282935,Redacted personal data
Oxford City Council,Housing and Property,Rent Allowance Cheques (Home Choice),F5033,02/09/2014,46282935_4,240,Revenue,20000010_46282935,Redacted personal data
Oxford City Council,Housing and Property,Homeless Prevention,D3426,02/09/2014,46282936_1,1785,Revenue,20000010_46282936,Peter Ball & Co.
Oxford City Council,Housing and Property,Homeless Prevention,D3426,02/09/2014,46282936_2,98,Revenue,20000010_46282936,Peter Ball & Co.
Oxford City Council,Housing and Property,Homeless Prevention,D3426,02/09/2014,46282938_1,1440,Revenue,20000010_46282938,Redacted personal data
Oxford City Council,Housing and Property,Homeless Prevention,D3426,02/09/2014,46282938_2,134,Revenue,20000010_46282938,Redacted personal data
Oxford City Council,Housing and Property,Homeless Prevention,D3426,02/09/2014,46282940_1,545,Revenue,20000010_46282940,CHALK HILLS LETTINGS
Oxford City Council,HRA,Special Events,D3807,02/09/2014,46282952_1,896.64,Revenue,20000010_46282952,Redacted personal data
Oxford City Council,Direct Services,Compensation,D3805,02/09/2014,46282954_1,1000,Revenue,20000010_46282954,Redacted personal data
Oxford City Council,Housing and Property,Rent Allowance Cheques (Home Choice),F5033,09/09/2014,46282959_1,1425,Revenue,20000010_46282959,Redacted personal data
Oxford City Council,Housing and Property,Rent Allowance Cheques (Home Choice),F5033,09/09/2014,46282959_2,950,Revenue,20000010_46282959,Redacted personal data
Oxford City Council,Housing and Property,Rent Allowance Cheques (Home Choice),F5033,09/09/2014,46282962_1,825.8,Revenue,20000010_46282962,Redacted personal data
Oxford City Council,Housing and Property,Rent Allowance Cheques (Home Choice),F5033,09/09/2014,46282962_2,900,Revenue,20000010_46282962,Redacted personal data
Oxford City Council,Housing and Property,Rent Allowance Cheques (Home Choice),F5033,09/09/2014,46282966_1,1190.4,Revenue,20000010_46282966,Redacted personal data
Oxford City Council,Housing and Property,Rent Allowance Cheques (Home Choice),F5033,09/09/2014,46282967_1,1190.4,Revenue,20000010_46282967,Redacted personal data
Oxford City Council,Housing and Property,Rent Allowance Cheques (Home Choice),F5033,09/09/2014,46282980_1,588,Revenue,20000010_46282980,Cherwell Property Services Ltd. 
Oxford City Council,Housing and Property,Rent Allowance Cheques (Home Choice),F5033,16/09/2014,46283014_1,1190.4,Revenue,20000010_46283014,Redacted personal data
Oxford City Council,Housing and Property,Rent Allowance Cheques (Home Choice),F5033,16/09/2014,46283015_1,1000,Revenue,20000010_46283015,Redacted personal data
Oxford City Council,Housing and Property,Rent Allowance Cheques (Home Choice),F5033,16/09/2014,46283015_2,144,Revenue,20000010_46283015,Redacted personal data
Oxford City Council,Housing and Property,Rent Allowance Cheques (Home Choice),F5033,16/09/2014,46283015_3,500,Revenue,20000010_46283015,Redacted personal data
Oxford City Council,Housing and Property,Rent Allowance Cheques (Home Choice),F5033,16/09/2014,46283086_1,1387.5,Revenue,20000010_46283086,Redacted personal data
Oxford City Council,Housing and Property,Rent Allowance Cheques (Home Choice),F5033,16/09/2014,46283086_2,320,Revenue,20000010_46283086,Redacted personal data
Oxford City Council,Housing and Property,Rent Allowance Cheques (Home Choice),F5033,16/09/2014,46283086_3,925,Revenue,20000010_46283086,Redacted personal data
Oxford City Council,Housing and Property,Rent Allowance Cheques (Home Choice),F5033,16/09/2014,46283087_1,340,Revenue,20000010_46283087,Redacted personal data
Oxford City Council,Housing and Property,Rent Allowance Cheques (Home Choice),F5033,16/09/2014,46283087_2,965,Revenue,20000010_46283087,Redacted personal data
Oxford City Council,Housing and Property,Rent Allowance Cheques (Home Choice),F5033,16/09/2014,46283088_1,500,Revenue,20000010_46283088,Redacted personal data
Oxford City Council,Housing and Property,Homeless Prevention,D3426,16/09/2014,46283100_1,500,Revenue,20000010_46283100,Redacted personal data
Oxford City Council,Housing and Property,Homeless Prevention,D3426,23/09/2014,46283166_1,625,Revenue,20000010_46283166,HMT Property Management
Oxford City Council,Housing and Property,Rent Allowance Cheques (Home Choice),F5033,23/09/2014,46283232_1,750,Revenue,20000010_46283232,Redacted personal data
Oxford City Council,Housing and Property,Rent Allowance Cheques (Home Choice),F5033,23/09/2014,46283237_1,590.4,Revenue,20000010_46283237,Redacted personal data
Oxford City Council,Housing and Property,Rent Allowance Cheques (Home Choice),F5033,30/09/2014,46283275_1,744,Revenue,20000010_46283275,Redacted personal data
Oxford City Council,Housing and Property,Rent Allowance Cheques (Home Choice),F5033,30/09/2014,46283276_1,900,Revenue,20000010_46283276,Redacted personal data
Oxford City Council,Housing and Property,Social Lettings Agency,D3606,30/09/2014,46283282_1,1800,Revenue,20000010_46283282,Ethical Lettings CIC
Oxford City Council,Housing and Property,Homeless Prevention,D3426,30/09/2014,46283290_1,707.68,Revenue,20000010_46283290,Ace Property Services
Oxford City Council,Housing and Property,Homeless Prevention,D3426,29/07/2014,46282579_1,1650,Revenue,20000018_46282579,Johnsons
Oxford City Council,Housing and Property,Homeless Prevention,D3426,02/09/2014,46282948_1,550,Revenue,20000018_46282948,McFarlane Sales & Lettings
Oxford City Council,Housing and Property,Homeless Prevention,D3426,02/09/2014,46282955_1,607.68,Revenue,20000018_46282955,ACE PROPERTY SERVICES
Oxford City Council,Housing and Property,Homeless Prevention,D3426,02/09/2014,46282955_2,100,Revenue,20000018_46282955,ACE PROPERTY SERVICES
Oxford City Council,"Leisure, Parks & Communities",Instructors & Coaching Fees,D3413,01/07/2014,46282263_1,5278,Revenue,20000019_46282263,Oxford RL
Oxford City Council,City Development,Grants,D3701,22/07/2014,46282521_1,1817,Revenue,20000019_46282521,Redacted personal data
Oxford City Council,"Leisure, Parks & Communities",Instructors & Coaching Fees,D3413,05/08/2014,46282664_1,532.23,Revenue,20000019_46282664,ROZ MCKENZIE
Oxford City Council,Environmental Development,General Contracted Services,D3401,19/08/2014,46282833_1,500,Revenue,20000019_46282833,LIFELINE PROJECT
Oxford City Council,Environmental Development,General Contracted Services,D3401,19/08/2014,46282835_1,500,Revenue,20000019_46282835,THE SURVIVORS TRUST
Oxford City Council,Environmental Development,General Contracted Services,D3401,19/08/2014,46282836_1,500,Revenue,20000019_46282836,THE DASH CHARITY
Oxford City Council,Environmental Development,General Contracted Services,D3401,27/08/2014,46282859_1,500,Revenue,20000019_46282859,Aylesbury Women's Aid
Oxford City Council,Environmental Development,General Contracted Services,D3401,16/09/2014,46283044_1,500,Revenue,20000019_46283044,OASIS
Oxford City Council,"Leisure, Parks & Communities",Contributions,D3702,16/09/2014,46283136_1,500,Revenue,20000019_46283136,Our Community Time Bank
Oxford City Council,Business Improvement & Technology,Temporary Bureau Staffing,A0108,05/08/2014,1007935_1,4070.85,Revenue,20000200,CHAMPION EMPLOYMENT LTD
Oxford City Council,Business Improvement & Technology,Commission/Discount,K9472,22/07/2014,46282519_1,-1115.63,Revenue,20000200,CHAMPION EMPLOYMENT LTD
Oxford City Council,Business Improvement & Technology,Temporary Bureau Staffing,A0108,22/07/2014,46282519_10,5359.64,Revenue,20000200,CHAMPION EMPLOYMENT LTD
Oxford City Council,Business Improvement & Technology,Temporary Bureau Staffing,A0108,22/07/2014,46282519_11,8357.48,Revenue,20000200,CHAMPION EMPLOYMENT LTD
Oxford City Council,Transformation,Temporary Bureau Staffing,A0108,22/07/2014,46282519_12,2123.73,Revenue,20000200,CHAMPION EMPLOYMENT LTD
Oxford City Council,Finance,Temporary Bureau Staffing,A0108,22/07/2014,46282519_13,4121.57,Revenue,20000200,CHAMPION EMPLOYMENT LTD
Oxford City Council,Finance,Temporary Bureau Staffing,A0108,22/07/2014,46282519_14,7920,Revenue,20000200,CHAMPION EMPLOYMENT LTD
Oxford City Council,Customer Services,Temporary Bureau Staffing,A0108,22/07/2014,46282519_15,1701.51,Revenue,20000200,CHAMPION EMPLOYMENT LTD
Oxford City Council,Customer Services,Temporary Bureau Staffing,A0108,22/07/2014,46282519_16,2360,Revenue,20000200,CHAMPION EMPLOYMENT LTD
Oxford City Council,Customer Services,Temporary Bureau Staffing,A0108,22/07/2014,46282519_17,15243.5,Revenue,20000200,CHAMPION EMPLOYMENT LTD
Oxford City Council,Customer Services,Temporary Bureau Staffing,A0108,22/07/2014,46282519_18,1262.05,Revenue,20000200,CHAMPION EMPLOYMENT LTD
Oxford City Council,Transformation,Temporary Bureau Staffing,A0108,22/07/2014,46282519_19,5197.5,Revenue,20000200,CHAMPION EMPLOYMENT LTD
Oxford City Council,Holding Accounts & Other Funds,Difference A/c,Z910198,22/07/2014,46282519_2,-0.01,Revenue,20000200,CHAMPION EMPLOYMENT LTD
Oxford City Council,Transformation,Temporary Bureau Staffing,A0108,22/07/2014,46282519_20,923,Revenue,20000200,CHAMPION EMPLOYMENT LTD
Oxford City Council,Environmental Development,Temporary Bureau Staffing,A0108,22/07/2014,46282519_21,2022.24,Revenue,20000200,CHAMPION EMPLOYMENT LTD
Oxford City Council,Environmental Development,Temporary Bureau Staffing,A0108,22/07/2014,46282519_22,9205.78,Revenue,20000200,CHAMPION EMPLOYMENT LTD
Oxford City Council,Environmental Development,Temporary Bureau Staffing,A0108,22/07/2014,46282519_23,8266.6,Revenue,20000200,CHAMPION EMPLOYMENT LTD
Oxford City Council,Environmental Development,Temporary Bureau Staffing,A0108,22/07/2014,46282519_24,17212.33,Revenue,20000200,CHAMPION EMPLOYMENT LTD
Oxford City Council,Environmental Development,Temporary Bureau Staffing,A0108,22/07/2014,46282519_25,2434.02,Revenue,20000200,CHAMPION EMPLOYMENT LTD
Oxford City Council,Environmental Development,Temporary Bureau Staffing,A0108,22/07/2014,46282519_26,2532.27,Revenue,20000200,CHAMPION EMPLOYMENT LTD
Oxford City Council,Housing and Property,Temporary Bureau Staffing,A0108,22/07/2014,46282519_27,58.5,Revenue,20000200,CHAMPION EMPLOYMENT LTD
Oxford City Council,Housing and Property,Temporary Bureau Staffing,A0108,22/07/2014,46282519_28,5880,Revenue,20000200,CHAMPION EMPLOYMENT LTD
Oxford City Council,Housing and Property,Temporary Bureau Staffing,A0108,22/07/2014,46282519_29,1906.6,Revenue,20000200,CHAMPION EMPLOYMENT LTD
Oxford City Council,"Leisure, Parks & Communities",Temporary Bureau Staffing,A0108,22/07/2014,46282519_3,1568.64,Revenue,20000200,CHAMPION EMPLOYMENT LTD
Oxford City Council,"Policy, Culture and Communication",Main Contractor,Y021,22/07/2014,46282519_30,2448.3,Capital,20000200,CHAMPION EMPLOYMENT LTD
Oxford City Council,City Development,Temporary Bureau Staffing,A0108,22/07/2014,46282519_31,5593.5,Revenue,20000200,CHAMPION EMPLOYMENT LTD
Oxford City Council,City Development,Temporary Bureau Staffing,A0108,22/07/2014,46282519_32,1788.94,Revenue,20000200,CHAMPION EMPLOYMENT LTD
Oxford City Council,City Development,Temporary Bureau Staffing,A0108,22/07/2014,46282519_33,9200,Revenue,20000200,CHAMPION EMPLOYMENT LTD
Oxford City Council,"Leisure, Parks & Communities",Temporary Bureau Staffing,A0108,22/07/2014,46282519_34,6174.06,Revenue,20000200,CHAMPION EMPLOYMENT LTD
Oxford City Council,Law and Governance,Temporary Bureau Staffing,A0108,22/07/2014,46282519_35,1250.83,Revenue,20000200,CHAMPION EMPLOYMENT LTD
Oxford City Council,"Leisure, Parks & Communities",Temporary Bureau Staffing,A0108,22/07/2014,46282519_36,174.08,Revenue,20000200,CHAMPION EMPLOYMENT LTD
Oxford City Council,"Policy, Culture and Communication",Temporary Bureau Staffing,A0108,22/07/2014,46282519_37,3374.81,Revenue,20000200,CHAMPION EMPLOYMENT LTD
Oxford City Council,HRA,Temporary Bureau Staffing,A0108,22/07/2014,46282519_38,9887.07,Revenue,20000200,CHAMPION EMPLOYMENT LTD
Oxford City Council,HRA,Temporary Bureau Staffing,A0108,22/07/2014,46282519_39,2612.15,Revenue,20000200,CHAMPION EMPLOYMENT LTD
Oxford City Council,Human Resources & Facilities,Temporary Bureau Staffing,A0108,22/07/2014,46282519_4,4761.2,Revenue,20000200,CHAMPION EMPLOYMENT LTD
Oxford City Council,HRA,Temporary Bureau Staffing,A0108,22/07/2014,46282519_40,8781.23,Revenue,20000200,CHAMPION EMPLOYMENT LTD
Oxford City Council,Direct Services,Temporary Bureau Staffing,A0108,22/07/2014,46282519_41,1504.92,Revenue,20000200,CHAMPION EMPLOYMENT LTD
Oxford City Council,Direct Services,Temporary Bureau Staffing,A0108,22/07/2014,46282519_42,514.01,Revenue,20000200,CHAMPION EMPLOYMENT LTD
Oxford City Council,Direct Services,Temporary Bureau Staffing,A0108,22/07/2014,46282519_43,1542.05,Revenue,20000200,CHAMPION EMPLOYMENT LTD
Oxford City Council,Direct Services,Temporary Bureau Staffing,A0108,22/07/2014,46282519_44,1776.18,Revenue,20000200,CHAMPION EMPLOYMENT LTD
Oxford City Council,Direct Services,Temporary Bureau Staffing,A0108,22/07/2014,46282519_45,1806.82,Revenue,20000200,CHAMPION EMPLOYMENT LTD
Oxford City Council,Direct Services,Temporary Bureau Staffing,A0108,22/07/2014,46282519_46,3949.47,Revenue,20000200,CHAMPION EMPLOYMENT LTD
Oxford City Council,Direct Services,Temporary Bureau Staffing,A0108,22/07/2014,46282519_47,19880.57,Revenue,20000200,CHAMPION EMPLOYMENT LTD
Oxford City Council,Direct Services,Temporary Bureau Staffing,A0108,22/07/2014,46282519_48,2798.28,Revenue,20000200,CHAMPION EMPLOYMENT LTD
Oxford City Council,Direct Services,Temporary Bureau Staffing,A0108,22/07/2014,46282519_49,2247.97,Revenue,20000200,CHAMPION EMPLOYMENT LTD
Oxford City Council,Regeneration and Major Projects Team,Temporary Bureau Staffing,A0108,22/07/2014,46282519_5,3441,Revenue,20000200,CHAMPION EMPLOYMENT LTD
Oxford City Council,Direct Services,Temporary Bureau Staffing,A0108,22/07/2014,46282519_50,3422.27,Revenue,20000200,CHAMPION EMPLOYMENT LTD
Oxford City Council,Direct Services,Temporary Bureau Staffing,A0108,22/07/2014,46282519_51,8016.7,Revenue,20000200,CHAMPION EMPLOYMENT LTD
Oxford City Council,Direct Services,Temporary Bureau Staffing,A0108,22/07/2014,46282519_52,1520.12,Revenue,20000200,CHAMPION EMPLOYMENT LTD
Oxford City Council,Regeneration and Major Projects Team,Temporary Bureau Staffing,A0108,22/07/2014,46282519_6,5054.94,Revenue,20000200,CHAMPION EMPLOYMENT LTD
Oxford City Council,Housing and Property,Temporary Bureau Staffing,A0108,22/07/2014,46282519_7,1837.5,Revenue,20000200,CHAMPION EMPLOYMENT LTD
Oxford City Council,City Development,Temporary Bureau Staffing,A0108,22/07/2014,46282519_8,3133.5,Revenue,20000200,CHAMPION EMPLOYMENT LTD
Oxford City Council,Business Improvement & Technology,Temporary Bureau Staffing,A0108,22/07/2014,46282519_9,4439,Revenue,20000200,CHAMPION EMPLOYMENT LTD
Oxford City Council,Business Improvement & Technology,Commission/Discount,K9472,12/08/2014,46282791_1,-1370.5,Revenue,20000200,CHAMPION EMPLOYMENT LTD
Oxford City Council,Business Improvement & Technology,Temporary Bureau Staffing,A0108,12/08/2014,46282791_10,5368.73,Revenue,20000200,CHAMPION EMPLOYMENT LTD
Oxford City Council,Business Improvement & Technology,Temporary Bureau Staffing,A0108,12/08/2014,46282791_11,10181.94,Revenue,20000200,CHAMPION EMPLOYMENT LTD
Oxford City Council,Transformation,Temporary Bureau Staffing,A0108,12/08/2014,46282791_12,2899.28,Revenue,20000200,CHAMPION EMPLOYMENT LTD
Oxford City Council,Finance,Temporary Bureau Staffing,A0108,12/08/2014,46282791_13,4358.67,Revenue,20000200,CHAMPION EMPLOYMENT LTD
Oxford City Council,Finance,Temporary Bureau Staffing,A0108,12/08/2014,46282791_14,5931.21,Revenue,20000200,CHAMPION EMPLOYMENT LTD
Oxford City Council,Customer Services,Temporary Bureau Staffing,A0108,12/08/2014,46282791_15,1454.12,Revenue,20000200,CHAMPION EMPLOYMENT LTD
Oxford City Council,Customer Services,Temporary Bureau Staffing,A0108,12/08/2014,46282791_16,1091.5,Revenue,20000200,CHAMPION EMPLOYMENT LTD
Oxford City Council,Customer Services,Temporary Bureau Staffing,A0108,12/08/2014,46282791_17,15824.5,Revenue,20000200,CHAMPION EMPLOYMENT LTD
Oxford City Council,Transformation,Temporary Bureau Staffing,A0108,12/08/2014,46282791_18,6930,Revenue,20000200,CHAMPION EMPLOYMENT LTD
Oxford City Council,Environmental Development,Temporary Bureau Staffing,A0108,12/08/2014,46282791_19,1934.32,Revenue,20000200,CHAMPION EMPLOYMENT LTD
Oxford City Council,Holding Accounts & Other Funds,Difference A/c,Z910198,12/08/2014,46282791_2,0.01,Revenue,20000200,CHAMPION EMPLOYMENT LTD
Oxford City Council,Environmental Development,Temporary Bureau Staffing,A0108,12/08/2014,46282791_20,10352.46,Revenue,20000200,CHAMPION EMPLOYMENT LTD
Oxford City Council,Environmental Development,Temporary Bureau Staffing,A0108,12/08/2014,46282791_21,139.96,Revenue,20000200,CHAMPION EMPLOYMENT LTD
Oxford City Council,Environmental Development,Temporary Bureau Staffing,A0108,12/08/2014,46282791_22,6766.61,Revenue,20000200,CHAMPION EMPLOYMENT LTD
Oxford City Council,Environmental Development,Temporary Bureau Staffing,A0108,12/08/2014,46282791_23,11401.48,Revenue,20000200,CHAMPION EMPLOYMENT LTD
Oxford City Council,Environmental Development,Temporary Bureau Staffing,A0108,12/08/2014,46282791_24,2949.6,Revenue,20000200,CHAMPION EMPLOYMENT LTD
Oxford City Council,Environmental Development,Temporary Bureau Staffing,A0108,12/08/2014,46282791_25,2591.48,Revenue,20000200,CHAMPION EMPLOYMENT LTD
Oxford City Council,Housing and Property,Temporary Bureau Staffing,A0108,12/08/2014,46282791_26,6063.75,Revenue,20000200,CHAMPION EMPLOYMENT LTD
Oxford City Council,Housing and Property,Temporary Bureau Staffing,A0108,12/08/2014,46282791_27,1986.72,Revenue,20000200,CHAMPION EMPLOYMENT LTD
Oxford City Council,Direct Services,Temporary Bureau Staffing,A0108,12/08/2014,46282791_28,348.16,Revenue,20000200,CHAMPION EMPLOYMENT LTD
Oxford City Council,City Development,Temporary Bureau Staffing,A0108,12/08/2014,46282791_29,2384.14,Revenue,20000200,CHAMPION EMPLOYMENT LTD
Oxford City Council,"Leisure, Parks & Communities",Temporary Bureau Staffing,A0108,12/08/2014,46282791_3,1176.48,Revenue,20000200,CHAMPION EMPLOYMENT LTD
Oxford City Council,City Development,Temporary Bureau Staffing,A0108,12/08/2014,46282791_30,1826.01,Revenue,20000200,CHAMPION EMPLOYMENT LTD
Oxford City Council,City Development,Temporary Bureau Staffing,A0108,12/08/2014,46282791_31,2050,Revenue,20000200,CHAMPION EMPLOYMENT LTD
Oxford City Council,City Development,Temporary Bureau Staffing,A0108,12/08/2014,46282791_32,2768.45,Revenue,20000200,CHAMPION EMPLOYMENT LTD
Oxford City Council,City Development,Temporary Bureau Staffing,A0108,12/08/2014,46282791_33,6440,Revenue,20000200,CHAMPION EMPLOYMENT LTD
Oxford City Council,"Leisure, Parks & Communities",Temporary Bureau Staffing,A0108,12/08/2014,46282791_34,6256.86,Revenue,20000200,CHAMPION EMPLOYMENT LTD
Oxford City Council,Law and Governance,Temporary Bureau Staffing,A0108,12/08/2014,46282791_35,926.45,Revenue,20000200,CHAMPION EMPLOYMENT LTD
Oxford City Council,HRA,Temporary Bureau Staffing,A0108,12/08/2014,46282791_36,5476.18,Revenue,20000200,CHAMPION EMPLOYMENT LTD
Oxford City Council,HRA,Temporary Bureau Staffing,A0108,12/08/2014,46282791_37,2076.25,Revenue,20000200,CHAMPION EMPLOYMENT LTD
Oxford City Council,HRA,Temporary Bureau Staffing,A0108,12/08/2014,46282791_38,3524.57,Revenue,20000200,CHAMPION EMPLOYMENT LTD
Oxford City Council,Direct Services,Temporary Bureau Staffing,A0108,12/08/2014,46282791_39,1966.95,Revenue,20000200,CHAMPION EMPLOYMENT LTD
Oxford City Council,Human Resources & Facilities,Temporary Bureau Staffing,A0108,12/08/2014,46282791_4,6014.5,Revenue,20000200,CHAMPION EMPLOYMENT LTD
Oxford City Council,Direct Services,Temporary Bureau Staffing,A0108,12/08/2014,46282791_40,2287.23,Revenue,20000200,CHAMPION EMPLOYMENT LTD
Oxford City Council,Direct Services,Temporary Bureau Staffing,A0108,12/08/2014,46282791_41,1562.33,Revenue,20000200,CHAMPION EMPLOYMENT LTD
Oxford City Council,Direct Services,Temporary Bureau Staffing,A0108,12/08/2014,46282791_42,3577.78,Revenue,20000200,CHAMPION EMPLOYMENT LTD
Oxford City Council,Direct Services,Temporary Bureau Staffing,A0108,12/08/2014,46282791_43,4664.53,Revenue,20000200,CHAMPION EMPLOYMENT LTD
Oxford City Council,Direct Services,Temporary Bureau Staffing,A0108,12/08/2014,46282791_44,1226.73,Revenue,20000200,CHAMPION EMPLOYMENT LTD
Oxford City Council,Direct Services,Temporary Bureau Staffing,A0108,12/08/2014,46282791_45,214.97,Revenue,20000200,CHAMPION EMPLOYMENT LTD
Oxford City Council,Direct Services,Temporary Bureau Staffing,A0108,12/08/2014,46282791_46,4496.93,Revenue,20000200,CHAMPION EMPLOYMENT LTD
Oxford City Council,Direct Services,Temporary Bureau Staffing,A0108,12/08/2014,46282791_47,21291.8,Revenue,20000200,CHAMPION EMPLOYMENT LTD
Oxford City Council,Direct Services,Temporary Bureau Staffing,A0108,12/08/2014,46282791_48,2310.75,Revenue,20000200,CHAMPION EMPLOYMENT LTD
Oxford City Council,Direct Services,Temporary Bureau Staffing,A0108,12/08/2014,46282791_49,2864.3,Revenue,20000200,CHAMPION EMPLOYMENT LTD
Oxford City Council,Regeneration and Major Projects Team,Temporary Bureau Staffing,A0108,12/08/2014,46282791_5,4138.5,Revenue,20000200,CHAMPION EMPLOYMENT LTD
Oxford City Council,Direct Services,Temporary Bureau Staffing,A0108,12/08/2014,46282791_50,5043.86,Revenue,20000200,CHAMPION EMPLOYMENT LTD
Oxford City Council,Direct Services,Temporary Bureau Staffing,A0108,12/08/2014,46282791_51,8200.69,Revenue,20000200,CHAMPION EMPLOYMENT LTD
Oxford City Council,Direct Services,Temporary Bureau Staffing,A0108,12/08/2014,46282791_52,5244.92,Revenue,20000200,CHAMPION EMPLOYMENT LTD
Oxford City Council,Housing and Property,Temporary Bureau Staffing,A0108,12/08/2014,46282791_53,19.9,Revenue,20000200,CHAMPION EMPLOYMENT LTD
Oxford City Council,Regeneration and Major Projects Team,Temporary Bureau Staffing,A0108,12/08/2014,46282791_6,5410.88,Revenue,20000200,CHAMPION EMPLOYMENT LTD
Oxford City Council,Housing and Property,Temporary Bureau Staffing,A0108,12/08/2014,46282791_7,12383.06,Revenue,20000200,CHAMPION EMPLOYMENT LTD
Oxford City Council,City Development,Temporary Bureau Staffing,A0108,12/08/2014,46282791_8,1165.5,Revenue,20000200,CHAMPION EMPLOYMENT LTD
Oxford City Council,Business Improvement & Technology,Temporary Bureau Staffing,A0108,12/08/2014,46282791_9,4562.8,Revenue,20000200,CHAMPION EMPLOYMENT LTD
Oxford City Council,Direct Services,Temporary Bureau Staffing,A0108,16/09/2014,46283006_0,6130.69,Revenue,20000200,CHAMPION EMPLOYMENT LTD
Oxford City Council,Direct Services,Temporary Bureau Staffing,A0108,16/09/2014,46283006_1,1602.89,Revenue,20000200,CHAMPION EMPLOYMENT LTD
Oxford City Council,"Policy, Culture and Communication",Temporary Bureau Staffing,A0108,16/09/2014,46283006_10,1827.96,Revenue,20000200,CHAMPION EMPLOYMENT LTD
Oxford City Council,Human Resources & Facilities,Temporary Bureau Staffing,A0108,16/09/2014,46283006_11,6725.46,Revenue,20000200,CHAMPION EMPLOYMENT LTD
Oxford City Council,Regeneration and Major Projects Team,Temporary Bureau Staffing,A0108,16/09/2014,46283006_12,868,Revenue,20000200,CHAMPION EMPLOYMENT LTD
Oxford City Council,Regeneration and Major Projects Team,Temporary Bureau Staffing,A0108,16/09/2014,46283006_13,6251.76,Revenue,20000200,CHAMPION EMPLOYMENT LTD
Oxford City Council,Housing and Property,Temporary Bureau Staffing,A0108,16/09/2014,46283006_14,8424.51,Revenue,20000200,CHAMPION EMPLOYMENT LTD
Oxford City Council,Business Improvement & Technology,Temporary Bureau Staffing,A0108,16/09/2014,46283006_15,7770.15,Revenue,20000200,CHAMPION EMPLOYMENT LTD
Oxford City Council,Business Improvement & Technology,Temporary Bureau Staffing,A0108,16/09/2014,46283006_16,4166.64,Revenue,20000200,CHAMPION EMPLOYMENT LTD
Oxford City Council,Business Improvement & Technology,Temporary Bureau Staffing,A0108,16/09/2014,46283006_17,28627.16,Revenue,20000200,CHAMPION EMPLOYMENT LTD
Oxford City Council,Transformation,Temporary Bureau Staffing,A0108,16/09/2014,46283006_18,1508.96,Revenue,20000200,CHAMPION EMPLOYMENT LTD
Oxford City Council,Finance,Temporary Bureau Staffing,A0108,16/09/2014,46283006_19,5703.35,Revenue,20000200,CHAMPION EMPLOYMENT LTD
Oxford City Council,Direct Services,Temporary Bureau Staffing,A0108,16/09/2014,46283006_2,11503.43,Revenue,20000200,CHAMPION EMPLOYMENT LTD
Oxford City Council,Finance,Temporary Bureau Staffing,A0108,16/09/2014,46283006_20,11433.03,Revenue,20000200,CHAMPION EMPLOYMENT LTD
Oxford City Council,Customer Services,Temporary Bureau Staffing,A0108,16/09/2014,46283006_21,2353.64,Revenue,20000200,CHAMPION EMPLOYMENT LTD
Oxford City Council,Customer Services,Temporary Bureau Staffing,A0108,16/09/2014,46283006_22,25736.69,Revenue,20000200,CHAMPION EMPLOYMENT LTD
Oxford City Council,Customer Services,Temporary Bureau Staffing,A0108,16/09/2014,46283006_23,16352.64,Revenue,20000200,CHAMPION EMPLOYMENT LTD
Oxford City Council,Transformation,Temporary Bureau Staffing,A0108,16/09/2014,46283006_24,8316,Revenue,20000200,CHAMPION EMPLOYMENT LTD
Oxford City Council,Transformation,Temporary Bureau Staffing,A0108,16/09/2014,46283006_25,398.72,Revenue,20000200,CHAMPION EMPLOYMENT LTD
Oxford City Council,Environmental Development,Temporary Bureau Staffing,A0108,16/09/2014,46283006_26,1312.09,Revenue,20000200,CHAMPION EMPLOYMENT LTD
Oxford City Council,Environmental Development,Temporary Bureau Staffing,A0108,16/09/2014,46283006_27,751.83,Revenue,20000200,CHAMPION EMPLOYMENT LTD
Oxford City Council,Environmental Development,Temporary Bureau Staffing,A0108,16/09/2014,46283006_28,9985.6,Revenue,20000200,CHAMPION EMPLOYMENT LTD
Oxford City Council,Environmental Development,Temporary Bureau Staffing,A0108,16/09/2014,46283006_29,279.93,Revenue,20000200,CHAMPION EMPLOYMENT LTD
Oxford City Council,Direct Services,Temporary Bureau Staffing,A0108,16/09/2014,46283006_3,4759.98,Revenue,20000200,CHAMPION EMPLOYMENT LTD
Oxford City Council,Environmental Development,Temporary Bureau Staffing,A0108,16/09/2014,46283006_30,5606.61,Revenue,20000200,CHAMPION EMPLOYMENT LTD
Oxford City Council,Environmental Development,Temporary Bureau Staffing,A0108,16/09/2014,46283006_31,11692.74,Revenue,20000200,CHAMPION EMPLOYMENT LTD
Oxford City Council,Environmental Development,Temporary Bureau Staffing,A0108,16/09/2014,46283006_32,4308.07,Revenue,20000200,CHAMPION EMPLOYMENT LTD
Oxford City Council,Environmental Development,Temporary Bureau Staffing,A0108,16/09/2014,46283006_33,3038.63,Revenue,20000200,CHAMPION EMPLOYMENT LTD
Oxford City Council,Housing and Property,Temporary Bureau Staffing,A0108,16/09/2014,46283006_34,22509.5,Revenue,20000200,CHAMPION EMPLOYMENT LTD
Oxford City Council,Housing and Property,Temporary Bureau Staffing,A0108,16/09/2014,46283006_35,2575.34,Revenue,20000200,CHAMPION EMPLOYMENT LTD
Oxford City Council,Housing and Property,Temporary Bureau Staffing,A0108,16/09/2014,46283006_36,7194.95,Revenue,20000200,CHAMPION EMPLOYMENT LTD
Oxford City Council,Housing and Property,Temporary Bureau Staffing,A0108,16/09/2014,46283006_37,2103.59,Revenue,20000200,CHAMPION EMPLOYMENT LTD
Oxford City Council,Direct Services,Temporary Bureau Staffing,A0108,16/09/2014,46283006_38,2932.16,Revenue,20000200,CHAMPION EMPLOYMENT LTD
Oxford City Council,"Policy, Culture and Communication",Main Contractor,Y021,16/09/2014,46283006_39,2881.67,Capital,20000200,CHAMPION EMPLOYMENT LTD
Oxford City Council,"Leisure, Parks & Communities",Temporary Bureau Staffing,A0108,16/09/2014,46283006_4,2115.46,Revenue,20000200,CHAMPION EMPLOYMENT LTD
Oxford City Council,City Development,Temporary Bureau Staffing,A0108,16/09/2014,46283006_40,2635.8,Revenue,20000200,CHAMPION EMPLOYMENT LTD
Oxford City Council,City Development,Temporary Bureau Staffing,A0108,16/09/2014,46283006_41,3616.5,Revenue,20000200,CHAMPION EMPLOYMENT LTD
Oxford City Council,City Development,Temporary Bureau Staffing,A0108,16/09/2014,46283006_42,1581.14,Revenue,20000200,CHAMPION EMPLOYMENT LTD
Oxford City Council,City Development,Temporary Bureau Staffing,A0108,16/09/2014,46283006_43,5520,Revenue,20000200,CHAMPION EMPLOYMENT LTD
Oxford City Council,"Leisure, Parks & Communities",Temporary Bureau Staffing,A0108,16/09/2014,46283006_44,7640.25,Revenue,20000200,CHAMPION EMPLOYMENT LTD
Oxford City Council,Law and Governance,Temporary Bureau Staffing,A0108,16/09/2014,46283006_45,1872.11,Revenue,20000200,CHAMPION EMPLOYMENT LTD
Oxford City Council,"Policy, Culture and Communication",Temporary Bureau Staffing,A0108,16/09/2014,46283006_46,5988.32,Revenue,20000200,CHAMPION EMPLOYMENT LTD
Oxford City Council,"Policy, Culture and Communication",Temporary Bureau Staffing,A0108,16/09/2014,46283006_47,4452.8,Revenue,20000200,CHAMPION EMPLOYMENT LTD
Oxford City Council,HRA,Temporary Bureau Staffing,A0108,16/09/2014,46283006_48,4805.56,Revenue,20000200,CHAMPION EMPLOYMENT LTD
Oxford City Council,HRA,Temporary Bureau Staffing,A0108,16/09/2014,46283006_49,1882.52,Revenue,20000200,CHAMPION EMPLOYMENT LTD
Oxford City Council,Direct Services,Temporary Bureau Staffing,A0108,16/09/2014,46283006_5,28.7,Revenue,20000200,CHAMPION EMPLOYMENT LTD
Oxford City Council,HRA,Temporary Bureau Staffing,A0108,16/09/2014,46283006_50,4128.79,Revenue,20000200,CHAMPION EMPLOYMENT LTD
Oxford City Council,Direct Services,Temporary Bureau Staffing,A0108,16/09/2014,46283006_51,2366.54,Revenue,20000200,CHAMPION EMPLOYMENT LTD
Oxford City Council,Direct Services,Temporary Bureau Staffing,A0108,16/09/2014,46283006_52,2690.42,Revenue,20000200,CHAMPION EMPLOYMENT LTD
Oxford City Council,Direct Services,Temporary Bureau Staffing,A0108,16/09/2014,46283006_53,2434.8,Revenue,20000200,CHAMPION EMPLOYMENT LTD
Oxford City Council,Direct Services,Temporary Bureau Staffing,A0108,16/09/2014,46283006_54,4005.29,Revenue,20000200,CHAMPION EMPLOYMENT LTD
Oxford City Council,Direct Services,Temporary Bureau Staffing,A0108,16/09/2014,46283006_55,11061.46,Revenue,20000200,CHAMPION EMPLOYMENT LTD
Oxford City Council,Direct Services,Temporary Bureau Staffing,A0108,16/09/2014,46283006_56,1878.78,Revenue,20000200,CHAMPION EMPLOYMENT LTD
Oxford City Council,Direct Services,Temporary Bureau Staffing,A0108,16/09/2014,46283006_57,6023.22,Revenue,20000200,CHAMPION EMPLOYMENT LTD
Oxford City Council,Direct Services,Temporary Bureau Staffing,A0108,16/09/2014,46283006_58,53.74,Revenue,20000200,CHAMPION EMPLOYMENT LTD
Oxford City Council,Direct Services,Temporary Bureau Staffing,A0108,16/09/2014,46283006_59,7866.45,Revenue,20000200,CHAMPION EMPLOYMENT LTD
Oxford City Council,Direct Services,Temporary Bureau Staffing,A0108,16/09/2014,46283006_60,2590.86,Revenue,20000200,CHAMPION EMPLOYMENT LTD
Oxford City Council,Direct Services,Temporary Bureau Staffing,A0108,16/09/2014,46283006_61,28526.03,Revenue,20000200,CHAMPION EMPLOYMENT LTD
Oxford City Council,Business Improvement & Technology,Commission/Discount,K9472,16/09/2014,46283006_7,-1955.36,Revenue,20000200,CHAMPION EMPLOYMENT LTD
Oxford City Council,Holding Accounts & Other Funds,Difference A/c,Z910198,16/09/2014,46283006_8,-0.01,Revenue,20000200,CHAMPION EMPLOYMENT LTD
Oxford City Council,"Leisure, Parks & Communities",Temporary Bureau Staffing,A0108,16/09/2014,46283006_9,2418.66,Revenue,20000200,CHAMPION EMPLOYMENT LTD
Oxford City Council,Direct Services,Reactive Maintenance & Minor Repairs,B1101,19/08/2014,60024552_1,1059.62,Revenue,20000203,KONE PLC
Oxford City Council,Housing and Property,Services Maintenance (Planned),B1103,12/08/2014,46282752_1,2577.76,Revenue,20000210,BARKER & EVANS LTD
Oxford City Council,Direct Services,Services Maintenance (Planned),B1103,12/08/2014,46282752_2,1647,Revenue,20000210,BARKER & EVANS LTD
Oxford City Council,"Leisure, Parks & Communities",Services Maintenance (Planned),B1103,12/08/2014,46282752_3,943.1,Revenue,20000210,BARKER & EVANS LTD
Oxford City Council,Regeneration and Major Projects Team,Services Maintenance (Planned),B1103,12/08/2014,46282752_4,1052,Revenue,20000210,BARKER & EVANS LTD
Oxford City Council,Regeneration and Major Projects Team,Services Maintenance (Planned),B1103,12/08/2014,46282752_5,952.5,Revenue,20000210,BARKER & EVANS LTD
Oxford City Council,Direct Services,Services Maintenance (Planned),B1103,12/08/2014,46282752_6,442.14,Revenue,20000210,BARKER & EVANS LTD
Oxford City Council,Direct Services,Services Maintenance (Planned),B1103,12/08/2014,46282752_7,340,Revenue,20000210,BARKER & EVANS LTD
Oxford City Council,Direct Services,Direct Services Sub Contractors,B1111   ,29/07/2014,60023585_1,758.55,Revenue,20000210,BARKER & EVANS LTD
Oxford City Council,Direct Services,Direct Services Supplies & Services,D3311,27/08/2014,60024970_0,12752.63,Revenue,20000210,BARKER & EVANS LTD
Oxford City Council,Direct Services,Direct Services Sub Contractors,B1111   ,23/09/2014,60026047_1,733.38,Revenue,20000210,BARKER & EVANS LTD
Oxford City Council,Direct Services,Direct Services Sub Contractors,B1111   ,23/09/2014,60026049_1,645.16,Revenue,20000210,BARKER & EVANS LTD
Oxford City Council,"Leisure, Parks & Communities",Services Maintenance (Planned),B1103,22/07/2014,46282396_1,513,Revenue,20000216,CHRISTY LIGHTING LTD
Oxford City Council,General Fund,VAT Pro Forma Invoices,Z110205,22/07/2014,46282396_2,102.6,Revenue,20000216,CHRISTY LIGHTING LTD
Oxford City Council,Environmental Development,Grants-Private Persons,Y005,01/07/2014,1006786_1,1509.85,Capital,20000222,ELLIOTT & JORDAN LTD
Oxford City Council,Environmental Development,Grants-Private Persons,Y005,01/07/2014,1006787_1,4288.28,Capital,20000222,ELLIOTT & JORDAN LTD
Oxford City Council,Environmental Development,Grants-Private Persons,Y005,01/07/2014,1006823_1,6343.24,Capital,20000222,ELLIOTT & JORDAN LTD
Oxford City Council,Environmental Development,Grants-Private Persons,Y005,01/07/2014,1006970_1,1331.55,Capital,20000222,ELLIOTT & JORDAN LTD
Oxford City Council,Environmental Development,Grants-Private Persons,Y005,23/09/2014,1007864_1,2439.23,Capital,20000222,ELLIOTT & JORDAN LTD
Oxford City Council,Environmental Development,Grants-Private Persons,Y005,19/08/2014,1007865_1,3884.7,Capital,20000222,ELLIOTT & JORDAN LTD
Oxford City Council,Environmental Development,Grants-Private Persons,Y005,23/09/2014,1008756_1,3921,Capital,20000222,ELLIOTT & JORDAN LTD
Oxford City Council,Environmental Development,Grants-Private Persons,Y005,27/08/2014,1007689_1,2168.58,Capital,20000227,GEORGE HENRY & CO RELAY LTD
Oxford City Council,Human Resources & Facilities,Reactive Maintenance & Minor Repairs,B1101,02/09/2014,1008075_1,727.75,Revenue,20000227,GEORGE HENRY & CO RELAY LTD
Oxford City Council,Direct Services,Direct Services Supplies & Services,D3311,08/07/2014,60022574_0,1788,Revenue,20000233,JONES & REEVES
Oxford City Council,Direct Services,Direct Services Supplies & Services,D3311,08/07/2014,60022575_2,2216,Revenue,20000233,JONES & REEVES
Oxford City Council,Direct Services,Direct Services Supplies & Services,D3311,08/07/2014,60022576_0,1504,Revenue,20000233,JONES & REEVES
Oxford City Council,Direct Services,Direct Services Supplies & Services,D3311,08/07/2014,60022589_2,4890,Revenue,20000233,JONES & REEVES
Oxford City Council,Direct Services,Direct Services Supplies & Services,D3311,08/07/2014,60022608_0,1285.7,Revenue,20000233,JONES & REEVES
Oxford City Council,Direct Services,Direct Services Supplies & Services,D3311,08/07/2014,60022609_2,2000,Revenue,20000233,JONES & REEVES
Oxford City Council,Direct Services,Direct Services Supplies & Services,D3311,08/07/2014,60022610_0,500,Revenue,20000233,JONES & REEVES
Oxford City Council,Direct Services,Direct Services Supplies & Services,D3311,08/07/2014,60022611_2,500,Revenue,20000233,JONES & REEVES
Oxford City Council,Direct Services,Direct Services Supplies & Services,D3311,08/07/2014,60022832_1,500,Revenue,20000233,JONES & REEVES
Oxford City Council,Direct Services,Direct Services Supplies & Services,D3311,08/07/2014,60022860_1,500,Revenue,20000233,JONES & REEVES
Oxford City Council,Direct Services,Direct Services Supplies & Services,D3311,08/07/2014,60022861_1,900,Revenue,20000233,JONES & REEVES
Oxford City Council,Direct Services,Direct Services Supplies & Services,D3311,08/07/2014,60022865_1,578,Revenue,20000233,JONES & REEVES
Oxford City Council,Direct Services,Direct Services Supplies & Services,D3311,08/07/2014,60022869_1,578,Revenue,20000233,JONES & REEVES
Oxford City Council,Direct Services,Direct Services Supplies & Services,D3311,08/07/2014,60022870_1,1200,Revenue,20000233,JONES & REEVES
Oxford City Council,Direct Services,Direct Services Supplies & Services,D3311,08/07/2014,60022883_1,600,Revenue,20000233,JONES & REEVES
Oxford City Council,Direct Services,Direct Services Supplies & Services,D3311,08/07/2014,60022888_1,600,Revenue,20000233,JONES & REEVES
Oxford City Council,Direct Services,Direct Services Supplies & Services,D3311,08/07/2014,60022892_1,600,Revenue,20000233,JONES & REEVES
Oxford City Council,Direct Services,Direct Services Supplies & Services,D3311,27/08/2014,60024998_2,600,Revenue,20000233,JONES & REEVES
Oxford City Council,Direct Services,Direct Services Supplies & Services,D3311,27/08/2014,60025003_0,600,Revenue,20000233,JONES & REEVES
Oxford City Council,Direct Services,Direct Services Supplies & Services,D3311,27/08/2014,60025008_2,800,Revenue,20000233,JONES & REEVES
Oxford City Council,Direct Services,Direct Services Supplies & Services,D3311,27/08/2014,60025009_0,600,Revenue,20000233,JONES & REEVES
Oxford City Council,Direct Services,Direct Services Supplies & Services,D3311,27/08/2014,60025030_0,2400,Revenue,20000233,JONES & REEVES
Oxford City Council,Direct Services,Direct Services Supplies & Services,D3311   ,09/09/2014,60025662_0,900,Revenue,20000233,JONES & REEVES
Oxford City Council,Direct Services,Direct Services Supplies & Services,D3311   ,23/09/2014,60026207_1,1600,Revenue,20000233,JONES & REEVES
Oxford City Council,Direct Services,Direct Services Supplies & Services,D3311   ,23/09/2014,60026209_1,500,Revenue,20000233,JONES & REEVES
Oxford City Council,HRA,Main Contractor,Y021,02/09/2014,1008501_1,956476.15,Capital,20000236,J B LEADBITTER & CO LTD
Oxford City Council,HRA,Main Contractor,Y021,01/07/2014,48020901_1,560297.43,Capital,20000236,J B LEADBITTER & CO LTD
Oxford City Council,HRA,Main Contractor,Y021,05/08/2014,48020939_1,633382.33,Capital,20000236,J B LEADBITTER & CO LTD
Oxford City Council,Environmental Development,General Contracted Services,D3401,23/09/2014,1008646_1,915,Revenue,20000244,OXFORD REFRIGERATION LTD
Oxford City Council,Direct Services,Direct Services Sub Contractors,B1111   ,01/07/2014,60022389_0,4925,Revenue,20000244,OXFORD REFRIGERATION LTD
Oxford City Council,Direct Services,Services Maintenance (Planned),B1103   ,01/07/2014,60022512_2,1541,Revenue,20000244,OXFORD REFRIGERATION LTD
Oxford City Council,Direct Services,Direct Services Sub Contractors,B1111,15/07/2014,60023119_2,13327,Revenue,20000244,OXFORD REFRIGERATION LTD
Oxford City Council,Direct Services,Direct Services Sub Contractors,B1111   ,09/09/2014,60025645_2,6016,Revenue,20000244,OXFORD REFRIGERATION LTD
Oxford City Council,Regeneration and Major Projects Team,Repairs & Refurbishment,B1107,12/08/2014,46282785_1,13215.83,Revenue,20000249,SSE CONTRACTING LTD
Oxford City Council,Housing and Property,Services Maintenance (Planned),B1103,12/08/2014,46282786_1,3152.13,Revenue,20000249,SSE CONTRACTING LTD
Oxford City Council,"Leisure, Parks & Communities",Services Maintenance (Planned),B1103,12/08/2014,46282786_2,141.2,Revenue,20000249,SSE CONTRACTING LTD
Oxford City Council,"Leisure, Parks & Communities",Materials,D3021,05/08/2014,1007768_1,3666,Revenue,20000253,S. J.  MCBRIDE  LTD.  T/A  WAREFENCE
Oxford City Council,"Leisure, Parks & Communities",Materials,D3021,19/08/2014,1008279_1,2923,Revenue,20000253,S. J.  MCBRIDE  LTD.  T/A  WAREFENCE
Oxford City Council,"Leisure, Parks & Communities",Materials,D3021,19/08/2014,1008280_1,6554.8,Revenue,20000253,S. J.  MCBRIDE  LTD.  T/A  WAREFENCE
Oxford City Council,"Leisure, Parks & Communities",Materials,D3021,19/08/2014,1008281_1,2884,Revenue,20000253,S. J.  MCBRIDE  LTD.  T/A  WAREFENCE
Oxford City Council,"Leisure, Parks & Communities",Materials,D3021,19/08/2014,1008282_1,13817.98,Revenue,20000253,S. J.  MCBRIDE  LTD.  T/A  WAREFENCE
Oxford City Council,Direct Services,Direct Services Sub Contractors,B1111,15/07/2014,60023124_0,507.56,Revenue,20000258,L A WOOD (OXON) LTD
Oxford City Council,Direct Services,Direct Services Sub Contractors,B1111,15/07/2014,60023125_2,1068.12,Revenue,20000258,L A WOOD (OXON) LTD
Oxford City Council,Direct Services,Direct Services Sub Contractors,B1111,15/07/2014,60023227_2,1223.37,Revenue,20000258,L A WOOD (OXON) LTD
Oxford City Council,Direct Services,Direct Services Sub Contractors,B1111,15/07/2014,60023230_0,587.46,Revenue,20000258,L A WOOD (OXON) LTD
Oxford City Council,Direct Services,Direct Services Sub Contractors,B1111,15/07/2014,60023231_2,971.52,Revenue,20000258,L A WOOD (OXON) LTD
Oxford City Council,Direct Services,Direct Services Sub Contractors,B1111   ,22/07/2014,60023435_2,761.86,Revenue,20000258,L A WOOD (OXON) LTD
Oxford City Council,Direct Services,Direct Services Sub Contractors,B1111   ,22/07/2014,60023437_2,703.44,Revenue,20000258,L A WOOD (OXON) LTD
Oxford City Council,Direct Services,Direct Services Sub Contractors,B1111   ,05/08/2014,60023875_0,735.74,Revenue,20000258,L A WOOD (OXON) LTD
Oxford City Council,Direct Services,Direct Services Sub Contractors,B1111   ,05/08/2014,60023877_0,3331.81,Revenue,20000258,L A WOOD (OXON) LTD
Oxford City Council,Direct Services,Direct Services Sub Contractors,B1111   ,05/08/2014,60023879_0,883.1,Revenue,20000258,L A WOOD (OXON) LTD
Oxford City Council,Direct Services,Direct Services Sub Contractors,B1111   ,05/08/2014,60023880_2,1113.36,Revenue,20000258,L A WOOD (OXON) LTD
Oxford City Council,Direct Services,Direct Services Supplies & Services,D3311   ,05/08/2014,60023887_0,1131.66,Revenue,20000258,L A WOOD (OXON) LTD
Oxford City Council,Direct Services,Direct Services Sub Contractors,B1111,19/08/2014,60024406_1,773.21,Revenue,20000258,L A WOOD (OXON) LTD
Oxford City Council,Direct Services,Direct Services Sub Contractors,B1111,27/08/2014,60024927_1,638.74,Revenue,20000258,L A WOOD (OXON) LTD
Oxford City Council,Direct Services,Direct Services Sub Contractors,B1111,27/08/2014,60024931_1,511.9,Revenue,20000258,L A WOOD (OXON) LTD
Oxford City Council,Direct Services,Direct Services Sub Contractors,B1111,27/08/2014,60024977_1,950,Revenue,20000258,L A WOOD (OXON) LTD
Oxford City Council,Direct Services,Direct Services Sub Contractors,B1111   ,02/09/2014,60025255_2,600.58,Revenue,20000258,L A WOOD (OXON) LTD
Oxford City Council,Direct Services,Direct Services Sub Contractors,B1111   ,02/09/2014,60025256_0,927.86,Revenue,20000258,L A WOOD (OXON) LTD
Oxford City Council,Direct Services,Direct Services Sub Contractors,B1111   ,02/09/2014,60025257_2,840.16,Revenue,20000258,L A WOOD (OXON) LTD
Oxford City Council,Direct Services,Direct Services Sub Contractors,B1111   ,02/09/2014,60025259_2,1821.17,Revenue,20000258,L A WOOD (OXON) LTD
Oxford City Council,Direct Services,Direct Services Sub Contractors,B1111   ,02/09/2014,60025262_0,1118.14,Revenue,20000258,L A WOOD (OXON) LTD
Oxford City Council,Direct Services,Direct Services Sub Contractors,B1111   ,02/09/2014,60025263_2,958.33,Revenue,20000258,L A WOOD (OXON) LTD
Oxford City Council,Direct Services,Direct Services Sub Contractors,B1111   ,09/09/2014,60025644_0,8000,Revenue,20000258,L A WOOD (OXON) LTD
Oxford City Council,Direct Services,Direct Services Sub Contractors,B1111   ,09/09/2014,60025701_2,1107.16,Revenue,20000258,L A WOOD (OXON) LTD
Oxford City Council,Direct Services,Direct Services Sub Contractors,B1111,16/09/2014,60025949_0,897.68,Revenue,20000258,L A WOOD (OXON) LTD
Oxford City Council,Direct Services,Direct Services Sub Contractors,B1111,16/09/2014,60025950_1,542.9,Revenue,20000258,L A WOOD (OXON) LTD
Oxford City Council,Direct Services,Direct Services Sub Contractors,B1111,16/09/2014,60025952_1,1720,Revenue,20000258,L A WOOD (OXON) LTD
Oxford City Council,Direct Services,Direct Services Sub Contractors,B1111   ,23/09/2014,60026098_1,5870,Revenue,20000258,L A WOOD (OXON) LTD
Oxford City Council,"Leisure, Parks & Communities",Waste Disposal & Skip Hire,D3420,19/08/2014,1008136_1,861.1,Revenue,20000263,SHEEHAN HAULAGE & PLANT HIRE LTD
Oxford City Council,"Leisure, Parks & Communities",Waste Disposal & Skip Hire,D3420,19/08/2014,1008141_1,592.1,Revenue,20000263,SHEEHAN HAULAGE & PLANT HIRE LTD
Oxford City Council,"Leisure, Parks & Communities",Waste Disposal & Skip Hire,D3420,02/09/2014,1008555_1,887.8,Revenue,20000263,SHEEHAN HAULAGE & PLANT HIRE LTD
Oxford City Council,Direct Services,General Contracted Services,D3401   ,22/07/2014,60023444_0,2883.92,Revenue,20000263,SHEEHAN HAULAGE & PLANT HIRE LTD
Oxford City Council,Direct Services,Materials,D3021   ,22/07/2014,60023445_2,924.33,Revenue,20000263,SHEEHAN HAULAGE & PLANT HIRE LTD
Oxford City Council,Direct Services,General Contracted Services,D3401   ,29/07/2014,60023634_0,1586.26,Revenue,20000263,SHEEHAN HAULAGE & PLANT HIRE LTD
Oxford City Council,Direct Services,General Contracted Services,D3401   ,29/07/2014,60023637_2,2258.1,Revenue,20000263,SHEEHAN HAULAGE & PLANT HIRE LTD
Oxford City Council,Direct Services,Tipping Charges,D3421   ,29/07/2014,60023716_1,528,Revenue,20000263,SHEEHAN HAULAGE & PLANT HIRE LTD
Oxford City Council,Direct Services,Tipping Charges,D3421   ,29/07/2014,60023718_1,824,Revenue,20000263,SHEEHAN HAULAGE & PLANT HIRE LTD
Oxford City Council,Direct Services,Tipping Charges,D3421   ,29/07/2014,60023722_1,810,Revenue,20000263,SHEEHAN HAULAGE & PLANT HIRE LTD
Oxford City Council,Direct Services,Tipping Charges,D3421   ,29/07/2014,60023732_1,726,Revenue,20000263,SHEEHAN HAULAGE & PLANT HIRE LTD
Oxford City Council,HRA,Asbestos Work,B1106   ,29/07/2014,60023737_1,1496,Revenue,20000263,SHEEHAN HAULAGE & PLANT HIRE LTD
Oxford City Council,Direct Services,Tipping Charges,D3421   ,29/07/2014,60023739_1,716,Revenue,20000263,SHEEHAN HAULAGE & PLANT HIRE LTD
Oxford City Council,Direct Services,Tipping Charges,D3421   ,29/07/2014,60023740_1,780,Revenue,20000263,SHEEHAN HAULAGE & PLANT HIRE LTD
Oxford City Council,Direct Services,Materials,D3021,19/08/2014,60024372_1,2239.24,Revenue,20000263,SHEEHAN HAULAGE & PLANT HIRE LTD
Oxford City Council,Direct Services,Tipping Charges,D3421,27/08/2014,60024827_1,610,Revenue,20000263,SHEEHAN HAULAGE & PLANT HIRE LTD
Oxford City Council,Direct Services,Tipping Charges,D3421,27/08/2014,60024829_1,672,Revenue,20000263,SHEEHAN HAULAGE & PLANT HIRE LTD
Oxford City Council,Direct Services,Tipping Charges,D3421,27/08/2014,60024831_1,522,Revenue,20000263,SHEEHAN HAULAGE & PLANT HIRE LTD
Oxford City Council,Direct Services,Tipping Charges,D3421,27/08/2014,60024833_1,686,Revenue,20000263,SHEEHAN HAULAGE & PLANT HIRE LTD
Oxford City Council,HRA,Asbestos Work,B1106,27/08/2014,60024834_1,600,Revenue,20000263,SHEEHAN HAULAGE & PLANT HIRE LTD
Oxford City Council,HRA,Asbestos Work,B1106,27/08/2014,60024835_1,798,Revenue,20000263,SHEEHAN HAULAGE & PLANT HIRE LTD
Oxford City Council,Direct Services,Tipping Charges,D3421,27/08/2014,60024838_1,700,Revenue,20000263,SHEEHAN HAULAGE & PLANT HIRE LTD
Oxford City Council,Direct Services,General Contracted Services,D3401,27/08/2014,60024902_1,2388.2,Revenue,20000263,SHEEHAN HAULAGE & PLANT HIRE LTD
Oxford City Council,Direct Services,General Contracted Services,D3401,27/08/2014,60024903_1,2137.27,Revenue,20000263,SHEEHAN HAULAGE & PLANT HIRE LTD
Oxford City Council,Direct Services,General Contracted Services,D3401,27/08/2014,60024905_2,1431.19,Revenue,20000263,SHEEHAN HAULAGE & PLANT HIRE LTD
Oxford City Council,Direct Services,General Contracted Services,D3401,27/08/2014,60024907_2,4436.8,Revenue,20000263,SHEEHAN HAULAGE & PLANT HIRE LTD
Oxford City Council,Direct Services,Tipping Charges,D3421   ,02/09/2014,60025086_0,678,Revenue,20000263,SHEEHAN HAULAGE & PLANT HIRE LTD
Oxford City Council,Direct Services,Materials,D3021   ,02/09/2014,60025116_0,617.76,Revenue,20000263,SHEEHAN HAULAGE & PLANT HIRE LTD
Oxford City Council,Direct Services,Materials,D3021   ,02/09/2014,60025117_2,3398.67,Revenue,20000263,SHEEHAN HAULAGE & PLANT HIRE LTD
Oxford City Council,Direct Services,Tipping Charges,D3421   ,02/09/2014,60025241_2,736,Revenue,20000263,SHEEHAN HAULAGE & PLANT HIRE LTD
Oxford City Council,Direct Services,Materials,D3021   ,09/09/2014,60025324_0,1968.8,Revenue,20000263,SHEEHAN HAULAGE & PLANT HIRE LTD
Oxford City Council,Direct Services,Materials,D3021   ,09/09/2014,60025325_2,1424.38,Revenue,20000263,SHEEHAN HAULAGE & PLANT HIRE LTD
Oxford City Council,Direct Services,Materials,D3021   ,09/09/2014,60025326_0,1130.72,Revenue,20000263,SHEEHAN HAULAGE & PLANT HIRE LTD
Oxford City Council,Direct Services,Materials,D3021   ,09/09/2014,60025335_2,1491.78,Revenue,20000263,SHEEHAN HAULAGE & PLANT HIRE LTD
Oxford City Council,Direct Services,General Contracted Services,D3401   ,09/09/2014,60025348_0,3771.28,Revenue,20000263,SHEEHAN HAULAGE & PLANT HIRE LTD
Oxford City Council,Direct Services,General Contracted Services,D3401   ,09/09/2014,60025351_2,2388.36,Revenue,20000263,SHEEHAN HAULAGE & PLANT HIRE LTD
Oxford City Council,HRA,Asbestos Work,B1106   ,09/09/2014,60025509_2,894,Revenue,20000263,SHEEHAN HAULAGE & PLANT HIRE LTD
Oxford City Council,Direct Services,Materials,D3021   ,09/09/2014,60025543_0,984.57,Revenue,20000263,SHEEHAN HAULAGE & PLANT HIRE LTD
Oxford City Council,Direct Services,Materials,D3021   ,09/09/2014,60025708_1,813.96,Revenue,20000263,SHEEHAN HAULAGE & PLANT HIRE LTD
Oxford City Council,Direct Services,Materials,D3021   ,09/09/2014,60025709_1,2410.36,Revenue,20000263,SHEEHAN HAULAGE & PLANT HIRE LTD
Oxford City Council,Direct Services,Materials,D3021   ,09/09/2014,60025710_1,4069.07,Revenue,20000263,SHEEHAN HAULAGE & PLANT HIRE LTD
Oxford City Council,Direct Services,Materials,D3021,16/09/2014,60025841_0,2143.68,Revenue,20000263,SHEEHAN HAULAGE & PLANT HIRE LTD
Oxford City Council,Direct Services,Materials,D3021,16/09/2014,60025842_1,936.21,Revenue,20000263,SHEEHAN HAULAGE & PLANT HIRE LTD
Oxford City Council,Direct Services,Tipping Charges,D3421   ,23/09/2014,60026146_2,556,Revenue,20000263,SHEEHAN HAULAGE & PLANT HIRE LTD
Oxford City Council,Direct Services,Tipping Charges,D3421   ,23/09/2014,60026147_0,564,Revenue,20000263,SHEEHAN HAULAGE & PLANT HIRE LTD
Oxford City Council,Direct Services,Materials,D3021,30/09/2014,60026441_2,2323.76,Revenue,20000263,SHEEHAN HAULAGE & PLANT HIRE LTD
Oxford City Council,Direct Services,Materials,D3021,30/09/2014,60026442_0,2192.38,Revenue,20000263,SHEEHAN HAULAGE & PLANT HIRE LTD
Oxford City Council,Direct Services,Materials,D3021,30/09/2014,60026448_0,667.41,Revenue,20000263,SHEEHAN HAULAGE & PLANT HIRE LTD
Oxford City Council,Direct Services,Materials,D3021,30/09/2014,60026449_2,943.47,Revenue,20000263,SHEEHAN HAULAGE & PLANT HIRE LTD
Oxford City Council,Direct Services,Materials,D3021,30/09/2014,60026451_2,2411.43,Revenue,20000263,SHEEHAN HAULAGE & PLANT HIRE LTD
Oxford City Council,Direct Services,General Contracted Services,D3401,30/09/2014,60026452_0,5767.84,Revenue,20000263,SHEEHAN HAULAGE & PLANT HIRE LTD
Oxford City Council,Direct Services,Materials,D3021,30/09/2014,60026510_0,1565.85,Revenue,20000263,SHEEHAN HAULAGE & PLANT HIRE LTD
Oxford City Council,Direct Services,General Contracted Services,D3401   ,09/09/2014,60025521_2,22268.16,Revenue,20000267,JOHN SHEEHAN (OXFORD) LTD
Oxford City Council,Direct Services,Sign Shop Materials,D3018,27/08/2014,60024909_0,1437.54,Revenue,20000278,B & M ENGINEERS LIMITED
Oxford City Council,Direct Services,Sign Shop Materials,D3018,27/08/2014,60024910_2,1437.54,Revenue,20000278,B & M ENGINEERS LIMITED
Oxford City Council,Direct Services,Sign Shop Materials,D3018,30/09/2014,60026458_0,1094.16,Revenue,20000278,B & M ENGINEERS LIMITED
Oxford City Council,Environmental Development,Grants-Private Persons,Y005,01/07/2014,1006310_1,2725.11,Capital,20000281,STANNAH LIFT SERVICES LTD
Oxford City Council,Environmental Development,Grants-Private Persons,Y005,01/07/2014,1006468_1,4275,Capital,20000281,STANNAH LIFT SERVICES LTD
Oxford City Council,Regeneration and Major Projects Team,Reactive Maintenance & Minor Repairs,B1101,08/07/2014,46282385_1,618.81,Revenue,20000286,D E & H V HUSSEY
Oxford City Council,Regeneration and Major Projects Team,Reactive Maintenance & Minor Repairs,B1101,15/07/2014,46282432_1,542.5,Revenue,20000286,D E & H V HUSSEY
Oxford City Council,Regeneration and Major Projects Team,Main Contractor,Y021,08/07/2014,48020905_1,505,Capital,20000286,D E & H V HUSSEY
Oxford City Council,Regeneration and Major Projects Team,Main Contractor,Y021,12/08/2014,48020952_1,1068,Capital,20000286,D E & H V HUSSEY
Oxford City Council,Regeneration and Major Projects Team,Reactive Maintenance & Minor Repairs,B1101   ,29/07/2014,60023685_2,1438,Revenue,20000286,D E & H V HUSSEY
Oxford City Council,Regeneration and Major Projects Team,Reactive Maintenance & Minor Repairs,B1101   ,05/08/2014,60023994_1,835,Revenue,20000286,D E & H V HUSSEY
Oxford City Council,Regeneration and Major Projects Team,Reactive Maintenance & Minor Repairs,B1101,30/09/2014,60026479_1,1576,Revenue,20000286,D E & H V HUSSEY
Oxford City Council,Direct Services,Reactive Maintenance & Minor Repairs,B1101,19/08/2014,47976364_0,1240,Revenue,20000289,THOMAS RAFFERTY & CO
Oxford City Council,Direct Services,Reactive Maintenance & Minor Repairs,B1101,23/09/2014,47976822_0,3700,Revenue,20000289,THOMAS RAFFERTY & CO
Oxford City Council,HRA,Controlled Entry Maintenance,B1243,01/07/2014,46282157_1,1412.28,Revenue,20000293,TUNSTALL TELECOM LIMITED
Oxford City Council,HRA,Controlled Entry Maintenance,B1243,01/07/2014,46282157_2,92.64,Revenue,20000293,TUNSTALL TELECOM LIMITED
Oxford City Council,HRA,Controlled Entry Maintenance,B1243,12/08/2014,46282788_1,1412.28,Revenue,20000293,TUNSTALL TELECOM LIMITED
Oxford City Council,HRA,Controlled Entry Maintenance,B1243,12/08/2014,46282788_2,92.64,Revenue,20000293,TUNSTALL TELECOM LIMITED
Oxford City Council,Direct Services,Direct Services Sub Contractors,B1111,27/08/2014,60025013_0,4630.88,Revenue,20000332,SYSTEMAIR FANS & SPARES
Oxford City Council,Direct Services,Direct Services Sub Contractors,B1111   ,09/09/2014,60025647_2,580,Revenue,20000332,SYSTEMAIR FANS & SPARES
Oxford City Council,Regeneration and Major Projects Team,Services Maintenance (Planned),B1103,08/07/2014,46282386_1,5011.26,Revenue,20000386,OTIS LIMITED
Oxford City Council,Regeneration and Major Projects Team,Reactive Maintenance & Minor Repairs,B1101,08/07/2014,46282296_1,2530,Revenue,20000397,WINDRUSH DOOR & WINDOW SERVICES LTD
Oxford City Council,Regeneration and Major Projects Team,Services Maintenance (Planned),B1103,22/07/2014,46282560_1,725,Revenue,20000397,WINDRUSH DOOR & WINDOW SERVICES LTD
Oxford City Council,Regeneration and Major Projects Team,Reactive Maintenance & Minor Repairs,B1101,19/08/2014,46282852_1,665,Revenue,20000397,WINDRUSH DOOR & WINDOW SERVICES LTD
Oxford City Council,Direct Services,Direct Services Sub Contractors,B1111,15/07/2014,60023116_0,3686.6,Revenue,20000441,1ST CHOICE SCAFFOLDING (OXFORD) LTD
Oxford City Council,Direct Services,Direct Services Sub Contractors,B1111,15/07/2014,60023232_0,873.6,Revenue,20000441,1ST CHOICE SCAFFOLDING (OXFORD) LTD
Oxford City Council,Direct Services,Direct Services Sub Contractors,B1111,15/07/2014,60023236_0,7150,Revenue,20000441,1ST CHOICE SCAFFOLDING (OXFORD) LTD
Oxford City Council,HRA,Direct Services,Y237,15/07/2014,60023240_0,1344,Capital,20000441,1ST CHOICE SCAFFOLDING (OXFORD) LTD
Oxford City Council,Direct Services,Direct Services Supplies & Services,D3311,15/07/2014,60023242_0,585,Revenue,20000441,1ST CHOICE SCAFFOLDING (OXFORD) LTD
Oxford City Council,Direct Services,Direct Services Supplies & Services,D3311,15/07/2014,60023248_0,585,Revenue,20000441,1ST CHOICE SCAFFOLDING (OXFORD) LTD
Oxford City Council,Direct Services,Direct Services Sub Contractors,B1111,15/07/2014,60023250_0,585,Revenue,20000441,1ST CHOICE SCAFFOLDING (OXFORD) LTD
Oxford City Council,Direct Services,Direct Services Sub Contractors,B1111   ,22/07/2014,60023421_0,561.6,Revenue,20000441,1ST CHOICE SCAFFOLDING (OXFORD) LTD
Oxford City Council,Direct Services,Direct Services Sub Contractors,B1111   ,29/07/2014,60023582_0,650,Revenue,20000441,1ST CHOICE SCAFFOLDING (OXFORD) LTD
Oxford City Council,Direct Services,Direct Services Sub Contractors,B1111,19/08/2014,60024558_2,600.6,Revenue,20000441,1ST CHOICE SCAFFOLDING (OXFORD) LTD
Oxford City Council,Direct Services,Direct Services Sub Contractors,B1111,27/08/2014,60025054_1,795.6,Revenue,20000441,1ST CHOICE SCAFFOLDING (OXFORD) LTD
Oxford City Council,Direct Services,Direct Services Sub Contractors,B1111   ,09/09/2014,60025676_1,624,Revenue,20000441,1ST CHOICE SCAFFOLDING (OXFORD) LTD
Oxford City Council,HRA,Laundry Appliances,B1222,05/08/2014,46282680_1,943.7,Revenue,20002002,AJB ENGINEERING SERVICES LTD
Oxford City Council,HRA,Laundry Appliances,B1222,05/08/2014,46282680_2,169.17,Revenue,20002002,AJB ENGINEERING SERVICES LTD
Oxford City Council,HRA,Laundry Appliances,B1222,12/08/2014,46282751_1,2819.68,Revenue,20002002,AJB ENGINEERING SERVICES LTD
Oxford City Council,HRA,Laundry Appliances,B1222,12/08/2014,46282751_2,558.42,Revenue,20002002,AJB ENGINEERING SERVICES LTD
Oxford City Council,Suspense,Materials,D3021   ,01/07/2014,60022503_0,1257,Revenue,20002005,HANSON AGGREGATES
Oxford City Council,Direct Services,Materials,D3021   ,01/07/2014,60022513_0,926.63,Revenue,20002005,HANSON AGGREGATES
Oxford City Council,Direct Services,Materials,D3021   ,01/07/2014,60022519_0,1152.92,Revenue,20002005,HANSON AGGREGATES
Oxford City Council,Direct Services,Materials,D3021   ,01/07/2014,60022520_2,1509.38,Revenue,20002005,HANSON AGGREGATES
Oxford City Council,Direct Services,Materials,D3021   ,01/07/2014,60022521_0,1644,Revenue,20002005,HANSON AGGREGATES
Oxford City Council,Direct Services,Materials,D3021   ,01/07/2014,60022522_2,1409.08,Revenue,20002005,HANSON AGGREGATES
Oxford City Council,Direct Services,Materials,D3021,08/07/2014,60022949_2,717.06,Revenue,20002005,HANSON AGGREGATES
Oxford City Council,Direct Services,Materials,D3021,08/07/2014,60022950_0,794.8,Revenue,20002005,HANSON AGGREGATES
Oxford City Council,Direct Services,Materials,D3021,08/07/2014,60022951_2,1331.64,Revenue,20002005,HANSON AGGREGATES
Oxford City Council,Direct Services,Materials,D3021,08/07/2014,60022952_0,794.8,Revenue,20002005,HANSON AGGREGATES
Oxford City Council,Direct Services,Materials,D3021,08/07/2014,60022953_2,820.8,Revenue,20002005,HANSON AGGREGATES
Oxford City Council,Direct Services,Materials,D3021,15/07/2014,60023166_0,897.5,Revenue,20002005,HANSON AGGREGATES
Oxford City Council,Direct Services,Materials,D3021   ,22/07/2014,60023357_0,1540.56,Revenue,20002005,HANSON AGGREGATES
Oxford City Council,Direct Services,Materials,D3021   ,22/07/2014,60023358_2,1243.85,Revenue,20002005,HANSON AGGREGATES
Oxford City Council,Direct Services,Materials,D3021   ,22/07/2014,60023364_2,875,Revenue,20002005,HANSON AGGREGATES
Oxford City Council,Direct Services,Materials,D3021   ,22/07/2014,60023366_2,1077,Revenue,20002005,HANSON AGGREGATES
Oxford City Council,Direct Services,Materials,D3021   ,29/07/2014,60023562_0,1077,Revenue,20002005,HANSON AGGREGATES
Oxford City Council,Direct Services,Materials,D3021   ,29/07/2014,60023563_2,3353.28,Revenue,20002005,HANSON AGGREGATES
Oxford City Council,Direct Services,Materials,D3021   ,12/08/2014,60024273_0,521.75,Revenue,20002005,HANSON AGGREGATES
Oxford City Council,Direct Services,Materials,D3021   ,12/08/2014,60024274_1,1428.82,Revenue,20002005,HANSON AGGREGATES
Oxford City Council,Direct Services,Materials,D3021   ,12/08/2014,60024275_0,831.86,Revenue,20002005,HANSON AGGREGATES
Oxford City Council,Direct Services,Materials,D3021   ,12/08/2014,60024277_0,856.8,Revenue,20002005,HANSON AGGREGATES
Oxford City Council,Direct Services,Materials,D3021,27/08/2014,60024763_1,730.45,Revenue,20002005,HANSON AGGREGATES
Oxford City Council,Direct Services,Materials,D3021,27/08/2014,60024891_0,936.12,Revenue,20002005,HANSON AGGREGATES
Oxford City Council,Direct Services,Materials,D3021,27/08/2014,60024894_2,1160,Revenue,20002005,HANSON AGGREGATES
Oxford City Council,Direct Services,Materials,D3021,27/08/2014,60024895_0,1697.85,Revenue,20002005,HANSON AGGREGATES
Oxford City Council,Direct Services,Materials,D3021,27/08/2014,60024896_2,729.6,Revenue,20002005,HANSON AGGREGATES
Oxford City Council,Direct Services,Materials,D3021,27/08/2014,60024898_2,1184.4,Revenue,20002005,HANSON AGGREGATES
Oxford City Council,Direct Services,Materials,D3021,27/08/2014,60024900_2,856.8,Revenue,20002005,HANSON AGGREGATES
Oxford City Council,Direct Services,Materials,D3021,27/08/2014,60024908_2,1680,Revenue,20002005,HANSON AGGREGATES
Oxford City Council,Direct Services,Materials,D3021,27/08/2014,60024923_2,830.63,Revenue,20002005,HANSON AGGREGATES
Oxford City Council,Direct Services,Materials,D3021,27/08/2014,60024924_0,1505.63,Revenue,20002005,HANSON AGGREGATES
Oxford City Council,Direct Services,Materials,D3021   ,02/09/2014,60025093_2,916.4,Revenue,20002005,HANSON AGGREGATES
Oxford City Council,Direct Services,Materials,D3021   ,02/09/2014,60025094_0,729.6,Revenue,20002005,HANSON AGGREGATES
Oxford City Council,Direct Services,Materials,D3021   ,02/09/2014,60025100_0,1154.2,Revenue,20002005,HANSON AGGREGATES
Oxford City Council,Direct Services,Materials,D3021   ,02/09/2014,60025101_2,1160,Revenue,20002005,HANSON AGGREGATES
Oxford City Council,Direct Services,Materials,D3021   ,09/09/2014,60025327_2,1802.18,Revenue,20002005,HANSON AGGREGATES
Oxford City Council,Suspense,Materials,D3021   ,09/09/2014,60025330_2,1192.1,Revenue,20002005,HANSON AGGREGATES
Oxford City Council,Direct Services,Materials,D3021   ,09/09/2014,60025715_1,1436,Revenue,20002005,HANSON AGGREGATES
Oxford City Council,Direct Services,Materials,D3021   ,09/09/2014,60025718_1,1086.8,Revenue,20002005,HANSON AGGREGATES
Oxford City Council,Direct Services,Materials,D3021   ,09/09/2014,60025719_1,1871.25,Revenue,20002005,HANSON AGGREGATES
Oxford City Council,Direct Services,Materials,D3021   ,09/09/2014,60025722_1,1051.87,Revenue,20002005,HANSON AGGREGATES
Oxford City Council,Direct Services,Materials,D3021   ,09/09/2014,60025723_1,1147.85,Revenue,20002005,HANSON AGGREGATES
Oxford City Council,Direct Services,Materials,D3021,16/09/2014,60025943_0,1344,Revenue,20002005,HANSON AGGREGATES
Oxford City Council,Direct Services,Veh.maint direct purchase,D3031   ,01/07/2014,47975695_1,1342.72,Revenue,20002033,TENNANT UK CLEANING SOLUTIONS LTD (FORMERLY APPLIED SWEEPERS LTD)
Oxford City Council,Suspense,Materials,D3021   ,27/08/2014,47976410_0,613.44,Revenue,20002033,TENNANT UK CLEANING SOLUTIONS LTD (FORMERLY APPLIED SWEEPERS LTD)
Oxford City Council,Direct Services,Veh.maint direct purchase,D3031   ,27/08/2014,47976422_0,742.99,Revenue,20002033,TENNANT UK CLEANING SOLUTIONS LTD (FORMERLY APPLIED SWEEPERS LTD)
Oxford City Council,"Leisure, Parks & Communities",Protective Clothing,D3201,01/07/2014,1006601_1,59.51,Revenue,20002034,ARCO LTD
Oxford City Council,"Leisure, Parks & Communities",Protective Clothing,D3201,01/07/2014,1006601_2,191.74,Revenue,20002034,ARCO LTD
Oxford City Council,"Leisure, Parks & Communities",Protective Clothing,D3201,01/07/2014,1006601_3,48.07,Revenue,20002034,ARCO LTD
Oxford City Council,"Leisure, Parks & Communities",Tools,D3023,01/07/2014,1006601_4,50.74,Revenue,20002034,ARCO LTD
Oxford City Council,"Leisure, Parks & Communities",Tools,D3023,01/07/2014,1006601_5,57.8,Revenue,20002034,ARCO LTD
Oxford City Council,"Leisure, Parks & Communities",Protective Clothing,D3201,01/07/2014,1006601_6,149.25,Revenue,20002034,ARCO LTD
Oxford City Council,"Leisure, Parks & Communities",Protective Clothing,D3201,19/08/2014,1008046_1,269.22,Revenue,20002034,ARCO LTD
Oxford City Council,"Leisure, Parks & Communities",Protective Clothing,D3201,19/08/2014,1008046_2,28.21,Revenue,20002034,ARCO LTD
Oxford City Council,"Leisure, Parks & Communities",Protective Clothing,D3201,19/08/2014,1008046_3,285.33,Revenue,20002034,ARCO LTD
Oxford City Council,"Leisure, Parks & Communities",Protective Clothing,D3201,19/08/2014,1008046_4,98.75,Revenue,20002034,ARCO LTD
Oxford City Council,"Leisure, Parks & Communities",Protective Clothing,D3201,19/08/2014,1008046_5,161.43,Revenue,20002034,ARCO LTD
Oxford City Council,Direct Services,Materials,D3021   ,09/09/2014,60025418_0,595.04,Revenue,20002034,ARCO LTD
Oxford City Council,"Leisure, Parks & Communities",Grants,D3701,05/08/2014,46282670_1,7000,Revenue,20002063,BARTON COMMUNITY ASSOCIATION
Oxford City Council,HRA,Gas,B1502,22/07/2014,1007370_1,1869.87,Revenue,20002096,BRITISH GAS TRADING LTD
Oxford City Council,Housing and Property,Gas,B1502,02/09/2014,46282937_1,965.16,Revenue,20002096,BRITISH GAS TRADING LTD
Oxford City Council,"Leisure, Parks & Communities",Rent,B1701,16/09/2014,1008655_1,1358.35,Revenue,20002099,CANAL & RIVER TRUST
Oxford City Council,HRA,Rent,B1701,16/09/2014,1008656_1,1000,Revenue,20002099,CANAL & RIVER TRUST
Oxford City Council,Direct Services,Security Services,D3418,19/08/2014,1007852_1,543.13,Revenue,20002120,OCS GROUP UK LTD T/A CANNON
Oxford City Council,Direct Services,Security Services,D3418,19/08/2014,1007853_1,4449.11,Revenue,20002120,OCS GROUP UK LTD T/A CANNON
Oxford City Council,Direct Services,Security Services,D3418,27/08/2014,1007980_1,4449.11,Revenue,20002120,OCS GROUP UK LTD T/A CANNON
Oxford City Council,Direct Services,Security Services,D3418,27/08/2014,1007981_1,543.13,Revenue,20002120,OCS GROUP UK LTD T/A CANNON
Oxford City Council,Direct Services,Security Services,D3418,30/09/2014,1008699_1,4449.11,Revenue,20002120,OCS GROUP UK LTD T/A CANNON
Oxford City Council,Direct Services,Security Services,D3418,30/09/2014,1008731_1,543.13,Revenue,20002120,OCS GROUP UK LTD T/A CANNON
Oxford City Council,Suspense,Other Miscellaneous Expenses,D3811,23/09/2014,1008932_1,4992.24,Revenue,20002120,OCS GROUP UK LTD T/A CANNON
Oxford City Council,Regeneration and Major Projects Team,General Contracted Services,D3401,19/08/2014,46282668_1,21.33,Revenue,20002120,OCS GROUP UK LTD T/A CANNON
Oxford City Council,Direct Services,Toilet Requisites,B1604,19/08/2014,46282668_10,22.11,Revenue,20002120,OCS GROUP UK LTD T/A CANNON
Oxford City Council,"Policy, Culture and Communication",Toilet Requisites,B1604,19/08/2014,46282668_11,4.8,Revenue,20002120,OCS GROUP UK LTD T/A CANNON
Oxford City Council,"Leisure, Parks & Communities",Toilet Requisites,B1604,19/08/2014,46282668_12,9.63,Revenue,20002120,OCS GROUP UK LTD T/A CANNON
Oxford City Council,Regeneration and Major Projects Team,Toilet Requisites,B1604,19/08/2014,46282668_13,4.8,Revenue,20002120,OCS GROUP UK LTD T/A CANNON
Oxford City Council,"Leisure, Parks & Communities",Toilet Requisites,B1604,19/08/2014,46282668_14,65.4,Revenue,20002120,OCS GROUP UK LTD T/A CANNON
Oxford City Council,Regeneration and Major Projects Team,Toilet Requisites,B1604,19/08/2014,46282668_2,62.52,Revenue,20002120,OCS GROUP UK LTD T/A CANNON
Oxford City Council,Regeneration and Major Projects Team,Toilet Requisites,B1604,19/08/2014,46282668_3,14.43,Revenue,20002120,OCS GROUP UK LTD T/A CANNON
Oxford City Council,Regeneration and Major Projects Team,Toilet Requisites,B1604,19/08/2014,46282668_4,86.97,Revenue,20002120,OCS GROUP UK LTD T/A CANNON
Oxford City Council,Regeneration and Major Projects Team,Toilet Requisites,B1604,19/08/2014,46282668_5,17.43,Revenue,20002120,OCS GROUP UK LTD T/A CANNON
Oxford City Council,Housing and Property,Toilet Requisites,B1604,19/08/2014,46282668_6,9.63,Revenue,20002120,OCS GROUP UK LTD T/A CANNON
Oxford City Council,Regeneration and Major Projects Team,General Contracted Services,D3401,19/08/2014,46282668_7,76.71,Revenue,20002120,OCS GROUP UK LTD T/A CANNON
Oxford City Council,Regeneration and Major Projects Team,Toilet Requisites,B1604,19/08/2014,46282668_8,81.9,Revenue,20002120,OCS GROUP UK LTD T/A CANNON
Oxford City Council,Regeneration and Major Projects Team,Toilet Requisites,B1604,19/08/2014,46282668_9,258.69,Revenue,20002120,OCS GROUP UK LTD T/A CANNON
Oxford City Council,Human Resources & Facilities,Photocopying/Paper Supplies,D3306,22/07/2014,1007169_1,543.42,Revenue,20002121,CANON (UK) LTD
Oxford City Council,Human Resources & Facilities,Photocopying/Paper Supplies,D3306,22/07/2014,1007170_1,962.77,Revenue,20002121,CANON (UK) LTD
Oxford City Council,Human Resources & Facilities,Photocopying/Paper Supplies,D3306,29/07/2014,1007266_1,933.59,Revenue,20002121,CANON (UK) LTD
Oxford City Council,Human Resources & Facilities,Photocopying/Paper Supplies,D3306,12/08/2014,1007812_1,586.55,Revenue,20002121,CANON (UK) LTD
Oxford City Council,Human Resources & Facilities,Photocopying/Paper Supplies,D3306,23/09/2014,1008721_1,1175.37,Revenue,20002121,CANON (UK) LTD
Oxford City Council,Human Resources & Facilities,Photocopying/Paper Supplies,D3306,23/09/2014,1008722_1,2022.96,Revenue,20002121,CANON (UK) LTD
Oxford City Council,Human Resources & Facilities,Photocopying/Paper Supplies,D3306,23/09/2014,1008723_1,4972.87,Revenue,20002121,CANON (UK) LTD
Oxford City Council,Direct Services,Photocopying/Paper Supplies,D3306,23/09/2014,1008724_1,598.38,Revenue,20002121,CANON (UK) LTD
Oxford City Council,Direct Services,Photocopying/Paper Supplies,D3306,23/09/2014,1008727_1,1542.6,Revenue,20002121,CANON (UK) LTD
Oxford City Council,Direct Services,Main Contractor,Y021,19/08/2014,47976353_1,200,Capital,20002134,HARTWELL FORD KIDLINGTON
Oxford City Council,Direct Services,Main Contractor,Y021,19/08/2014,47976353_10,140,Capital,20002134,HARTWELL FORD KIDLINGTON
Oxford City Council,Direct Services,Main Contractor,Y021,19/08/2014,47976353_2,150,Capital,20002134,HARTWELL FORD KIDLINGTON
Oxford City Council,Direct Services,Main Contractor,Y021,19/08/2014,47976353_3,70,Capital,20002134,HARTWELL FORD KIDLINGTON
Oxford City Council,Direct Services,Main Contractor,Y021,19/08/2014,47976353_4,245,Capital,20002134,HARTWELL FORD KIDLINGTON
Oxford City Council,Direct Services,Main Contractor,Y021,19/08/2014,47976353_5,621,Capital,20002134,HARTWELL FORD KIDLINGTON
Oxford City Council,Direct Services,Main Contractor,Y021,19/08/2014,47976353_6,150,Capital,20002134,HARTWELL FORD KIDLINGTON
Oxford City Council,Direct Services,Main Contractor,Y021,19/08/2014,47976353_7,195,Capital,20002134,HARTWELL FORD KIDLINGTON
Oxford City Council,Direct Services,Main Contractor,Y021,19/08/2014,47976353_8,4450,Capital,20002134,HARTWELL FORD KIDLINGTON
Oxford City Council,Direct Services,Main Contractor,Y021,19/08/2014,47976353_9,12020.4,Capital,20002134,HARTWELL FORD KIDLINGTON
Oxford City Council,Direct Services,Main Contractor,Y021,19/08/2014,47976399_2,5993.16,Capital,20002134,HARTWELL FORD KIDLINGTON
Oxford City Council,Direct Services,Main Contractor,Y021,19/08/2014,47976399_3,45,Capital,20002134,HARTWELL FORD KIDLINGTON
Oxford City Council,Direct Services,Main Contractor,Y021,19/08/2014,47976399_4,65,Capital,20002134,HARTWELL FORD KIDLINGTON
Oxford City Council,Direct Services,Main Contractor,Y021,19/08/2014,47976399_5,259,Capital,20002134,HARTWELL FORD KIDLINGTON
Oxford City Council,Direct Services,Main Contractor,Y021,19/08/2014,47976399_6,562.5,Capital,20002134,HARTWELL FORD KIDLINGTON
Oxford City Council,Direct Services,Main Contractor,Y021,19/08/2014,47976399_7,55,Capital,20002134,HARTWELL FORD KIDLINGTON
Oxford City Council,Direct Services,Main Contractor,Y021,19/08/2014,47976399_8,150,Capital,20002134,HARTWELL FORD KIDLINGTON
Oxford City Council,Direct Services,Main Contractor,Y021,19/08/2014,47976399_9,495,Capital,20002134,HARTWELL FORD KIDLINGTON
Oxford City Council,Direct Services,Veh.maint direct purchase,D3031   ,01/07/2014,47975679_1,146.08,Revenue,20002168,DENNIS EAGLE LTD
Oxford City Council,Direct Services,Veh.maint direct purchase,D3031   ,01/07/2014,47975679_2,348.85,Revenue,20002168,DENNIS EAGLE LTD
Oxford City Council,Direct Services,Veh.maint direct purchase,D3031   ,01/07/2014,47975679_3,127.36,Revenue,20002168,DENNIS EAGLE LTD
Oxford City Council,Direct Services,Veh.maint direct purchase,D3031   ,01/07/2014,47975679_4,348.85,Revenue,20002168,DENNIS EAGLE LTD
Oxford City Council,Direct Services,Veh.maint direct purchase,D3031   ,01/07/2014,47975679_5,190.59,Revenue,20002168,DENNIS EAGLE LTD
Oxford City Council,Direct Services,Veh.maint direct purchase,D3031   ,01/07/2014,47975679_6,35,Revenue,20002168,DENNIS EAGLE LTD
Oxford City Council,Direct Services,Main Contractor,Y021,19/08/2014,47976300_1,100,Capital,20002168,DENNIS EAGLE LTD
Oxford City Council,Direct Services,Main Contractor,Y021,19/08/2014,47976300_10,950,Capital,20002168,DENNIS EAGLE LTD
Oxford City Council,Direct Services,Main Contractor,Y021,19/08/2014,47976300_11,750,Capital,20002168,DENNIS EAGLE LTD
Oxford City Council,Direct Services,Main Contractor,Y021,19/08/2014,47976300_12,4724,Capital,20002168,DENNIS EAGLE LTD
Oxford City Council,Direct Services,Main Contractor,Y021,19/08/2014,47976300_13,485,Capital,20002168,DENNIS EAGLE LTD
Oxford City Council,Direct Services,Main Contractor,Y021,19/08/2014,47976300_14,895,Capital,20002168,DENNIS EAGLE LTD
Oxford City Council,Direct Services,Main Contractor,Y021,19/08/2014,47976300_15,300,Capital,20002168,DENNIS EAGLE LTD
Oxford City Council,Direct Services,Main Contractor,Y021,19/08/2014,47976300_16,990,Capital,20002168,DENNIS EAGLE LTD
Oxford City Council,Direct Services,Main Contractor,Y021,19/08/2014,47976300_17,705,Capital,20002168,DENNIS EAGLE LTD
Oxford City Council,Direct Services,Main Contractor,Y021,19/08/2014,47976300_19,82131,Capital,20002168,DENNIS EAGLE LTD
Oxford City Council,Direct Services,Main Contractor,Y021,19/08/2014,47976300_2,630,Capital,20002168,DENNIS EAGLE LTD
Oxford City Council,Direct Services,Main Contractor,Y021,19/08/2014,47976300_20,49680,Capital,20002168,DENNIS EAGLE LTD
Oxford City Council,Direct Services,Main Contractor,Y021,19/08/2014,47976300_21,15276,Capital,20002168,DENNIS EAGLE LTD
Oxford City Council,Direct Services,Main Contractor,Y021,19/08/2014,47976300_22,580,Capital,20002168,DENNIS EAGLE LTD
Oxford City Council,Direct Services,Main Contractor,Y021,19/08/2014,47976300_3,310,Capital,20002168,DENNIS EAGLE LTD
Oxford City Council,Direct Services,Main Contractor,Y021,19/08/2014,47976300_4,260,Capital,20002168,DENNIS EAGLE LTD
Oxford City Council,Direct Services,Main Contractor,Y021,19/08/2014,47976300_5,500,Capital,20002168,DENNIS EAGLE LTD
Oxford City Council,Direct Services,Main Contractor,Y021,19/08/2014,47976300_6,1281,Capital,20002168,DENNIS EAGLE LTD
Oxford City Council,Direct Services,Main Contractor,Y021,19/08/2014,47976300_7,1295,Capital,20002168,DENNIS EAGLE LTD
Oxford City Council,Direct Services,Main Contractor,Y021,19/08/2014,47976300_8,3300,Capital,20002168,DENNIS EAGLE LTD
Oxford City Council,Direct Services,Main Contractor,Y021,19/08/2014,47976300_9,1800,Capital,20002168,DENNIS EAGLE LTD
Oxford City Council,Direct Services,Veh.maint direct purchase,D3031,19/08/2014,47976305_1,500,Revenue,20002168,DENNIS EAGLE LTD
Oxford City Council,Direct Services,Veh.maint direct purchase,D3031,19/08/2014,47976305_2,446.22,Revenue,20002168,DENNIS EAGLE LTD
Oxford City Council,Direct Services,Main Contractor,Y021,19/08/2014,47976331_0,82131,Capital,20002168,DENNIS EAGLE LTD
Oxford City Council,Direct Services,Main Contractor,Y021,19/08/2014,47976331_1,49680,Capital,20002168,DENNIS EAGLE LTD
Oxford City Council,Direct Services,Main Contractor,Y021,19/08/2014,47976331_10,260,Capital,20002168,DENNIS EAGLE LTD
Oxford City Council,Direct Services,Main Contractor,Y021,19/08/2014,47976331_11,500,Capital,20002168,DENNIS EAGLE LTD
Oxford City Council,Direct Services,Main Contractor,Y021,19/08/2014,47976331_12,1281,Capital,20002168,DENNIS EAGLE LTD
Oxford City Council,Direct Services,Main Contractor,Y021,19/08/2014,47976331_13,3300,Capital,20002168,DENNIS EAGLE LTD
Oxford City Council,Direct Services,Main Contractor,Y021,19/08/2014,47976331_14,950,Capital,20002168,DENNIS EAGLE LTD
Oxford City Council,Direct Services,Main Contractor,Y021,19/08/2014,47976331_15,4724,Capital,20002168,DENNIS EAGLE LTD
Oxford City Council,Direct Services,Main Contractor,Y021,19/08/2014,47976331_16,485,Capital,20002168,DENNIS EAGLE LTD
Oxford City Council,Direct Services,Main Contractor,Y021,19/08/2014,47976331_17,895,Capital,20002168,DENNIS EAGLE LTD
Oxford City Council,Direct Services,Main Contractor,Y021,19/08/2014,47976331_18,300,Capital,20002168,DENNIS EAGLE LTD
Oxford City Council,Direct Services,Main Contractor,Y021,19/08/2014,47976331_19,1295,Capital,20002168,DENNIS EAGLE LTD
Oxford City Council,Direct Services,Main Contractor,Y021,19/08/2014,47976331_2,14465,Capital,20002168,DENNIS EAGLE LTD
Oxford City Council,Direct Services,Main Contractor,Y021,19/08/2014,47976331_20,1800,Capital,20002168,DENNIS EAGLE LTD
Oxford City Council,Direct Services,Main Contractor,Y021,19/08/2014,47976331_21,705,Capital,20002168,DENNIS EAGLE LTD
Oxford City Council,Direct Services,Main Contractor,Y021,19/08/2014,47976331_3,2764,Capital,20002168,DENNIS EAGLE LTD
Oxford City Council,Direct Services,Main Contractor,Y021,19/08/2014,47976331_4,500,Capital,20002168,DENNIS EAGLE LTD
Oxford City Council,Direct Services,Main Contractor,Y021,19/08/2014,47976331_5,10553,Capital,20002168,DENNIS EAGLE LTD
Oxford City Council,Direct Services,Main Contractor,Y021,19/08/2014,47976331_6,580,Capital,20002168,DENNIS EAGLE LTD
Oxford City Council,Direct Services,Main Contractor,Y021,19/08/2014,47976331_7,100,Capital,20002168,DENNIS EAGLE LTD
Oxford City Council,Direct Services,Main Contractor,Y021,19/08/2014,47976331_8,630,Capital,20002168,DENNIS EAGLE LTD
Oxford City Council,Direct Services,Main Contractor,Y021,19/08/2014,47976331_9,310,Capital,20002168,DENNIS EAGLE LTD
Oxford City Council,Direct Services,Main Contractor,Y021,19/08/2014,47976350_1,1800,Capital,20002168,DENNIS EAGLE LTD
Oxford City Council,Direct Services,Main Contractor,Y021,19/08/2014,47976350_10,49680,Capital,20002168,DENNIS EAGLE LTD
Oxford City Council,Direct Services,Main Contractor,Y021,19/08/2014,47976350_11,14465,Capital,20002168,DENNIS EAGLE LTD
Oxford City Council,Direct Services,Main Contractor,Y021,19/08/2014,47976350_12,2764,Capital,20002168,DENNIS EAGLE LTD
Oxford City Council,Direct Services,Main Contractor,Y021,19/08/2014,47976350_13,500,Capital,20002168,DENNIS EAGLE LTD
Oxford City Council,Direct Services,Main Contractor,Y021,19/08/2014,47976350_14,10553,Capital,20002168,DENNIS EAGLE LTD
Oxford City Council,Direct Services,Main Contractor,Y021,19/08/2014,47976350_15,580,Capital,20002168,DENNIS EAGLE LTD
Oxford City Council,Direct Services,Main Contractor,Y021,19/08/2014,47976350_16,100,Capital,20002168,DENNIS EAGLE LTD
Oxford City Council,Direct Services,Main Contractor,Y021,19/08/2014,47976350_17,630,Capital,20002168,DENNIS EAGLE LTD
Oxford City Council,Direct Services,Main Contractor,Y021,19/08/2014,47976350_18,310,Capital,20002168,DENNIS EAGLE LTD
Oxford City Council,Direct Services,Main Contractor,Y021,19/08/2014,47976350_19,260,Capital,20002168,DENNIS EAGLE LTD
Oxford City Council,Direct Services,Main Contractor,Y021,19/08/2014,47976350_2,950,Capital,20002168,DENNIS EAGLE LTD
Oxford City Council,Direct Services,Main Contractor,Y021,19/08/2014,47976350_20,500,Capital,20002168,DENNIS EAGLE LTD
Oxford City Council,Direct Services,Main Contractor,Y021,19/08/2014,47976350_21,1281,Capital,20002168,DENNIS EAGLE LTD
Oxford City Council,Direct Services,Main Contractor,Y021,19/08/2014,47976350_22,1295,Capital,20002168,DENNIS EAGLE LTD
Oxford City Council,Direct Services,Main Contractor,Y021,19/08/2014,47976350_23,3300,Capital,20002168,DENNIS EAGLE LTD
Oxford City Council,Direct Services,Main Contractor,Y021,19/08/2014,47976350_3,485,Capital,20002168,DENNIS EAGLE LTD
Oxford City Council,Direct Services,Main Contractor,Y021,19/08/2014,47976350_4,895,Capital,20002168,DENNIS EAGLE LTD
Oxford City Council,Direct Services,Main Contractor,Y021,19/08/2014,47976350_5,300,Capital,20002168,DENNIS EAGLE LTD
Oxford City Council,Direct Services,Main Contractor,Y021,19/08/2014,47976350_6,705,Capital,20002168,DENNIS EAGLE LTD
Oxford City Council,Direct Services,Main Contractor,Y021,19/08/2014,47976350_7,4724,Capital,20002168,DENNIS EAGLE LTD
Oxford City Council,Direct Services,Main Contractor,Y021,19/08/2014,47976350_9,82131,Capital,20002168,DENNIS EAGLE LTD
Oxford City Council,Direct Services,Veh.maint direct purchase,D3031   ,27/08/2014,47976453_1,2231.1,Revenue,20002168,DENNIS EAGLE LTD
Oxford City Council,Direct Services,Main Contractor,Y021    ,09/09/2014,47976525_1,82131,Capital,20002168,DENNIS EAGLE LTD
Oxford City Council,Direct Services,Main Contractor,Y021    ,09/09/2014,47976525_10,1281,Capital,20002168,DENNIS EAGLE LTD
Oxford City Council,Direct Services,Main Contractor,Y021    ,09/09/2014,47976525_11,1295,Capital,20002168,DENNIS EAGLE LTD
Oxford City Council,Direct Services,Main Contractor,Y021    ,09/09/2014,47976525_12,3300,Capital,20002168,DENNIS EAGLE LTD
Oxford City Council,Direct Services,Main Contractor,Y021    ,09/09/2014,47976525_13,1800,Capital,20002168,DENNIS EAGLE LTD
Oxford City Council,Direct Services,Main Contractor,Y021    ,09/09/2014,47976525_14,950,Capital,20002168,DENNIS EAGLE LTD
Oxford City Council,Direct Services,Main Contractor,Y021    ,09/09/2014,47976525_15,750,Capital,20002168,DENNIS EAGLE LTD
Oxford City Council,Direct Services,Main Contractor,Y021    ,09/09/2014,47976525_16,4724,Capital,20002168,DENNIS EAGLE LTD
Oxford City Council,Direct Services,Main Contractor,Y021    ,09/09/2014,47976525_17,485,Capital,20002168,DENNIS EAGLE LTD
Oxford City Council,Direct Services,Main Contractor,Y021    ,09/09/2014,47976525_18,895,Capital,20002168,DENNIS EAGLE LTD
Oxford City Council,Direct Services,Main Contractor,Y021    ,09/09/2014,47976525_19,300,Capital,20002168,DENNIS EAGLE LTD
Oxford City Council,Direct Services,Main Contractor,Y021    ,09/09/2014,47976525_2,49680,Capital,20002168,DENNIS EAGLE LTD
Oxford City Council,Direct Services,Main Contractor,Y021    ,09/09/2014,47976525_20,990,Capital,20002168,DENNIS EAGLE LTD
Oxford City Council,Direct Services,Main Contractor,Y021    ,09/09/2014,47976525_21,705,Capital,20002168,DENNIS EAGLE LTD
Oxford City Council,Direct Services,Main Contractor,Y021    ,09/09/2014,47976525_3,15276,Capital,20002168,DENNIS EAGLE LTD
Oxford City Council,Direct Services,Main Contractor,Y021    ,09/09/2014,47976525_4,580,Capital,20002168,DENNIS EAGLE LTD
Oxford City Council,Direct Services,Main Contractor,Y021    ,09/09/2014,47976525_5,100,Capital,20002168,DENNIS EAGLE LTD
Oxford City Council,Direct Services,Main Contractor,Y021    ,09/09/2014,47976525_6,630,Capital,20002168,DENNIS EAGLE LTD
Oxford City Council,Direct Services,Main Contractor,Y021    ,09/09/2014,47976525_7,310,Capital,20002168,DENNIS EAGLE LTD
Oxford City Council,Direct Services,Main Contractor,Y021    ,09/09/2014,47976525_8,260,Capital,20002168,DENNIS EAGLE LTD
Oxford City Council,Direct Services,Main Contractor,Y021    ,09/09/2014,47976525_9,500,Capital,20002168,DENNIS EAGLE LTD
Oxford City Council,Direct Services,Materials,D3021   ,02/09/2014,60025188_0,3030.3,Revenue,20002171,EDMUNDSON ELECTRICAL LTD
Oxford City Council,Direct Services,Materials,D3021   ,01/07/2014,60022314_2,1109.29,Revenue,20002183,EYRE & ELLISTON LTD
Oxford City Council,Direct Services,Direct Services Supplies & Services,D3311   ,01/07/2014,60022416_2,1044.9,Revenue,20002183,EYRE & ELLISTON LTD
Oxford City Council,Direct Services,Materials,D3021   ,01/07/2014,60022442_2,663.95,Revenue,20002183,EYRE & ELLISTON LTD
Oxford City Council,Direct Services,Direct Services Supplies & Services,D3311   ,01/07/2014,60022467_0,669.76,Revenue,20002183,EYRE & ELLISTON LTD
Oxford City Council,Direct Services,Direct Services Supplies & Services,D3311   ,01/07/2014,60022478_2,1048.32,Revenue,20002183,EYRE & ELLISTON LTD
Oxford City Council,Direct Services,Materials,D3021,08/07/2014,60022639_2,699.5,Revenue,20002183,EYRE & ELLISTON LTD
Oxford City Council,Direct Services,Materials,D3021,08/07/2014,60022689_2,789,Revenue,20002183,EYRE & ELLISTON LTD
Oxford City Council,Direct Services,Materials,D3021,08/07/2014,60022733_1,2707.98,Revenue,20002183,EYRE & ELLISTON LTD
Oxford City Council,Direct Services,Materials,D3021,08/07/2014,60022734_0,4074.79,Revenue,20002183,EYRE & ELLISTON LTD
Oxford City Council,Direct Services,Materials,D3021,08/07/2014,60022737_2,1239.09,Revenue,20002183,EYRE & ELLISTON LTD
Oxford City Council,Direct Services,Materials,D3021,08/07/2014,60022913_2,4520.63,Revenue,20002183,EYRE & ELLISTON LTD
Oxford City Council,Direct Services,Direct Services Supplies & Services,D3311,15/07/2014,60022977_1,9214.9,Revenue,20002183,EYRE & ELLISTON LTD
Oxford City Council,Direct Services,Materials,D3021,15/07/2014,60023069_2,1415.48,Revenue,20002183,EYRE & ELLISTON LTD
Oxford City Council,Direct Services,Materials,D3021,15/07/2014,60023075_2,788.61,Revenue,20002183,EYRE & ELLISTON LTD
Oxford City Council,Direct Services,Direct Services Supplies & Services,D3311,15/07/2014,60023135_2,523.68,Revenue,20002183,EYRE & ELLISTON LTD
Oxford City Council,Direct Services,Materials,D3021   ,22/07/2014,60023262_2,764.43,Revenue,20002183,EYRE & ELLISTON LTD
Oxford City Council,Direct Services,Materials,D3021   ,22/07/2014,60023274_2,859.49,Revenue,20002183,EYRE & ELLISTON LTD
Oxford City Council,Direct Services,Materials,D3021   ,29/07/2014,60023514_0,3694.77,Revenue,20002183,EYRE & ELLISTON LTD
Oxford City Council,Direct Services,Materials,D3021   ,29/07/2014,60023525_2,2031.21,Revenue,20002183,EYRE & ELLISTON LTD
Oxford City Council,Direct Services,Materials,D3021   ,29/07/2014,60023727_1,901.3,Revenue,20002183,EYRE & ELLISTON LTD
Oxford City Council,Direct Services,Materials,D3021   ,29/07/2014,60023728_1,3427.53,Revenue,20002183,EYRE & ELLISTON LTD
Oxford City Council,Direct Services,Direct Services Supplies & Services,D3311   ,05/08/2014,60023920_1,587.6,Revenue,20002183,EYRE & ELLISTON LTD
Oxford City Council,Direct Services,Direct Services Supplies & Services,D3311   ,12/08/2014,60024112_1,5040,Revenue,20002183,EYRE & ELLISTON LTD
Oxford City Council,Direct Services,Materials,D3021   ,12/08/2014,60024126_1,1427.82,Revenue,20002183,EYRE & ELLISTON LTD
Oxford City Council,Direct Services,Materials,D3021   ,12/08/2014,60024131_0,645.9,Revenue,20002183,EYRE & ELLISTON LTD
Oxford City Council,Direct Services,Materials,D3021   ,12/08/2014,60024132_1,2915.63,Revenue,20002183,EYRE & ELLISTON LTD
Oxford City Council,Direct Services,Materials,D3021   ,12/08/2014,60024135_0,553.4,Revenue,20002183,EYRE & ELLISTON LTD
Oxford City Council,Direct Services,Materials,D3021   ,12/08/2014,60024136_1,1693.2,Revenue,20002183,EYRE & ELLISTON LTD
Oxford City Council,Direct Services,Materials,D3021   ,12/08/2014,60024139_0,1325.3,Revenue,20002183,EYRE & ELLISTON LTD
Oxford City Council,Direct Services,Materials,D3021   ,12/08/2014,60024140_1,1037.68,Revenue,20002183,EYRE & ELLISTON LTD
Oxford City Council,Direct Services,Materials,D3021   ,12/08/2014,60024142_1,1069.21,Revenue,20002183,EYRE & ELLISTON LTD
Oxford City Council,Direct Services,Materials,D3021,19/08/2014,60024314_0,4546.12,Revenue,20002183,EYRE & ELLISTON LTD
Oxford City Council,Direct Services,Materials,D3021,19/08/2014,60024315_2,516.54,Revenue,20002183,EYRE & ELLISTON LTD
Oxford City Council,Direct Services,Direct Services Supplies & Services,D3311,19/08/2014,60024452_1,1144.08,Revenue,20002183,EYRE & ELLISTON LTD
Oxford City Council,Direct Services,Materials,D3021,19/08/2014,60024481_1,2156.14,Revenue,20002183,EYRE & ELLISTON LTD
Oxford City Council,Direct Services,Direct Services Supplies & Services,D3311,19/08/2014,60024482_1,1069.88,Revenue,20002183,EYRE & ELLISTON LTD
Oxford City Council,Direct Services,Materials,D3021,27/08/2014,60024706_2,6067.63,Revenue,20002183,EYRE & ELLISTON LTD
Oxford City Council,Direct Services,General Contracted Services,D3401,27/08/2014,60024707_0,523.68,Revenue,20002183,EYRE & ELLISTON LTD
Oxford City Council,Direct Services,Materials,D3021,27/08/2014,60024709_0,2468.75,Revenue,20002183,EYRE & ELLISTON LTD
Oxford City Council,Direct Services,Materials,D3021,27/08/2014,60024969_2,1167.66,Revenue,20002183,EYRE & ELLISTON LTD
Oxford City Council,Direct Services,Materials,D3021,27/08/2014,60024971_1,1048.08,Revenue,20002183,EYRE & ELLISTON LTD
Oxford City Council,Direct Services,Direct Services Supplies & Services,D3311   ,02/09/2014,60025072_0,2356.01,Revenue,20002183,EYRE & ELLISTON LTD
Oxford City Council,Direct Services,Direct Services Supplies & Services,D3311   ,02/09/2014,60025201_2,991.76,Revenue,20002183,EYRE & ELLISTON LTD
Oxford City Council,Direct Services,Materials,D3021   ,02/09/2014,60025205_2,2251.24,Revenue,20002183,EYRE & ELLISTON LTD
Oxford City Council,Direct Services,Materials,D3021   ,02/09/2014,60025227_2,1479.95,Revenue,20002183,EYRE & ELLISTON LTD
Oxford City Council,Direct Services,Direct Services Supplies & Services,D3311   ,09/09/2014,60025552_2,511.92,Revenue,20002183,EYRE & ELLISTON LTD
Oxford City Council,Direct Services,Direct Services Supplies & Services,D3311   ,09/09/2014,60025553_0,664.62,Revenue,20002183,EYRE & ELLISTON LTD
Oxford City Council,Direct Services,Direct Services Supplies & Services,D3311   ,09/09/2014,60025563_2,2250,Revenue,20002183,EYRE & ELLISTON LTD
Oxford City Council,Direct Services,Materials,D3021   ,09/09/2014,60025607_2,2859.66,Revenue,20002183,EYRE & ELLISTON LTD
Oxford City Council,Direct Services,Materials,D3021   ,09/09/2014,60025610_0,1295.69,Revenue,20002183,EYRE & ELLISTON LTD
Oxford City Council,Direct Services,Materials,D3021,16/09/2014,60025739_0,981.43,Revenue,20002183,EYRE & ELLISTON LTD
Oxford City Council,Direct Services,Direct Services Supplies & Services,D3311,16/09/2014,60025806_1,1073.04,Revenue,20002183,EYRE & ELLISTON LTD
Oxford City Council,Direct Services,Direct Services Supplies & Services,D3311   ,23/09/2014,60026040_2,1334,Revenue,20002183,EYRE & ELLISTON LTD
Oxford City Council,Direct Services,Materials,D3021   ,23/09/2014,60026156_1,3574.92,Revenue,20002183,EYRE & ELLISTON LTD
Oxford City Council,Direct Services,Materials,D3021   ,23/09/2014,60026202_1,2675.83,Revenue,20002183,EYRE & ELLISTON LTD
Oxford City Council,Direct Services,Materials,D3021   ,23/09/2014,60026203_1,1351.2,Revenue,20002183,EYRE & ELLISTON LTD
Oxford City Council,Direct Services,Materials,D3021   ,23/09/2014,60026204_1,4245.15,Revenue,20002183,EYRE & ELLISTON LTD
Oxford City Council,Direct Services,Materials,D3021,30/09/2014,60026236_2,1231.73,Revenue,20002183,EYRE & ELLISTON LTD
Oxford City Council,Direct Services,Materials,D3021,30/09/2014,60026340_2,1296.42,Revenue,20002183,EYRE & ELLISTON LTD
Oxford City Council,Direct Services,Materials,D3021,30/09/2014,60026341_0,1114.04,Revenue,20002183,EYRE & ELLISTON LTD
Oxford City Council,Direct Services,Direct Services Supplies & Services,D3311,30/09/2014,60026345_1,596.4,Revenue,20002183,EYRE & ELLISTON LTD
Oxford City Council,Direct Services,Materials,D3021,30/09/2014,60026346_1,2452.29,Revenue,20002183,EYRE & ELLISTON LTD
Oxford City Council,Direct Services,Materials,D3021,30/09/2014,60026546_0,2738.69,Revenue,20002183,EYRE & ELLISTON LTD
Oxford City Council,Direct Services,Direct Services Supplies & Services,D3311,30/09/2014,60026548_0,1077.2,Revenue,20002183,EYRE & ELLISTON LTD
Oxford City Council,Direct Services,Direct Services Supplies & Services,D3311,30/09/2014,60026549_2,570,Revenue,20002183,EYRE & ELLISTON LTD
Oxford City Council,Suspense,Materials,D3021,02/09/2014,46282932_1,3195,Revenue,20002198,FRENCO SERVICE REPLACMNTS LTD
Oxford City Council,Suspense,Materials,D3021   ,27/08/2014,47976419_2,915.4,Revenue,20002198,FRENCO SERVICE REPLACMNTS LTD
Oxford City Council,Suspense,Materials,D3021   ,27/08/2014,47976419_3,2450,Revenue,20002198,FRENCO SERVICE REPLACMNTS LTD
Oxford City Council,Suspense,Materials,D3021,23/09/2014,47976799_2,325.45,Revenue,20002198,FRENCO SERVICE REPLACMNTS LTD
Oxford City Council,Suspense,Materials,D3021,23/09/2014,47976799_3,348.25,Revenue,20002198,FRENCO SERVICE REPLACMNTS LTD
Oxford City Council,"Leisure, Parks & Communities",Waste Disposal & Skip Hire,D3420,01/07/2014,1006664_1,630.96,Revenue,20002222,GRUNDON WASTE MANAGEMENT LTD
Oxford City Council,"Leisure, Parks & Communities",Waste Disposal & Skip Hire,D3420,29/07/2014,1007336_1,913.44,Revenue,20002222,GRUNDON WASTE MANAGEMENT LTD
Oxford City Council,"Leisure, Parks & Communities",Waste Disposal & Skip Hire,D3420,27/08/2014,1008266_1,1199.92,Revenue,20002222,GRUNDON WASTE MANAGEMENT LTD
Oxford City Council,"Leisure, Parks & Communities",Waste Disposal & Skip Hire,D3420,30/09/2014,1008844_1,915.44,Revenue,20002222,GRUNDON WASTE MANAGEMENT LTD
Oxford City Council,Direct Services,Reactive Maintenance & Minor Repairs,B1101,16/09/2014,47976638_1,45,Revenue,20002241,HURLEY INDUSTRIAL CLEANING EQU
Oxford City Council,Direct Services,Reactive Maintenance & Minor Repairs,B1101,16/09/2014,47976638_2,590,Revenue,20002241,HURLEY INDUSTRIAL CLEANING EQU
Oxford City Council,Direct Services,Reactive Maintenance & Minor Repairs,B1101,16/09/2014,47976638_3,28,Revenue,20002241,HURLEY INDUSTRIAL CLEANING EQU
Oxford City Council,Suspense,Materials,D3021   ,01/07/2014,60022501_0,1720.72,Revenue,20002249,INSTARMAC LTD
Oxford City Council,Suspense,Materials,D3021   ,01/07/2014,60022505_0,1086.8,Revenue,20002249,INSTARMAC LTD
Oxford City Council,"Leisure, Parks & Communities",Materials,D3021,05/08/2014,1007389_1,936.1,Revenue,20002254,GRAFTON MERCHANTING GB LTD
Oxford City Council,"Leisure, Parks & Communities",Materials,D3021,16/09/2014,1008595_1,2526,Revenue,20002254,GRAFTON MERCHANTING GB LTD
Oxford City Council,"Leisure, Parks & Communities",Materials,D3021,30/09/2014,1009028_1,842,Revenue,20002254,GRAFTON MERCHANTING GB LTD
Oxford City Council,Suspense,Other Miscellaneous Expenses,D3811,16/09/2014,46283024_1,755.56,Revenue,20002254,GRAFTON MERCHANTING GB LTD
Oxford City Council,Direct Services,Direct Services Supplies & Services,D3311   ,01/07/2014,60022299_0,656.38,Revenue,20002254,GRAFTON MERCHANTING GB LTD
Oxford City Council,Direct Services,Direct Services Supplies & Services,D3311   ,01/07/2014,60022300_2,654.58,Revenue,20002254,GRAFTON MERCHANTING GB LTD
Oxford City Council,Direct Services,Direct Services Supplies & Services,D3311   ,01/07/2014,60022301_0,817.03,Revenue,20002254,GRAFTON MERCHANTING GB LTD
Oxford City Council,Direct Services,Direct Services Supplies & Services,D3311   ,01/07/2014,60022302_2,654.58,Revenue,20002254,GRAFTON MERCHANTING GB LTD
Oxford City Council,Direct Services,Direct Services Supplies & Services,D3311   ,01/07/2014,60022303_0,654.58,Revenue,20002254,GRAFTON MERCHANTING GB LTD
Oxford City Council,Direct Services,Direct Services Supplies & Services,D3311   ,01/07/2014,60022304_2,754.71,Revenue,20002254,GRAFTON MERCHANTING GB LTD
Oxford City Council,Direct Services,Direct Services Supplies & Services,D3311   ,01/07/2014,60022306_2,608.73,Revenue,20002254,GRAFTON MERCHANTING GB LTD
Oxford City Council,Direct Services,Direct Services Supplies & Services,D3311   ,01/07/2014,60022307_0,563.87,Revenue,20002254,GRAFTON MERCHANTING GB LTD
Oxford City Council,Direct Services,Materials,D3021   ,01/07/2014,60022324_2,3957.02,Revenue,20002254,GRAFTON MERCHANTING GB LTD
Oxford City Council,Direct Services,Direct Services Supplies & Services,D3311   ,01/07/2014,60022332_2,695.69,Revenue,20002254,GRAFTON MERCHANTING GB LTD
Oxford City Council,Direct Services,Direct Services Supplies & Services,D3311   ,01/07/2014,60022333_0,695.69,Revenue,20002254,GRAFTON MERCHANTING GB LTD
Oxford City Council,Direct Services,Direct Services Supplies & Services,D3311   ,01/07/2014,60022334_2,675.79,Revenue,20002254,GRAFTON MERCHANTING GB LTD
Oxford City Council,Direct Services,Direct Services Supplies & Services,D3311   ,01/07/2014,60022335_0,695.69,Revenue,20002254,GRAFTON MERCHANTING GB LTD
Oxford City Council,Direct Services,Direct Services Supplies & Services,D3311   ,01/07/2014,60022336_2,654.58,Revenue,20002254,GRAFTON MERCHANTING GB LTD
Oxford City Council,Direct Services,Direct Services Supplies & Services,D3311   ,01/07/2014,60022337_0,805.62,Revenue,20002254,GRAFTON MERCHANTING GB LTD
Oxford City Council,Direct Services,Direct Services Supplies & Services,D3311   ,01/07/2014,60022390_2,695.69,Revenue,20002254,GRAFTON MERCHANTING GB LTD
Oxford City Council,Direct Services,Direct Services Supplies & Services,D3311   ,01/07/2014,60022391_0,654.58,Revenue,20002254,GRAFTON MERCHANTING GB LTD
Oxford City Council,Direct Services,Direct Services Supplies & Services,D3311   ,01/07/2014,60022392_2,695.69,Revenue,20002254,GRAFTON MERCHANTING GB LTD
Oxford City Council,Direct Services,Direct Services Supplies & Services,D3311   ,01/07/2014,60022393_0,654.58,Revenue,20002254,GRAFTON MERCHANTING GB LTD
Oxford City Council,Direct Services,Direct Services Supplies & Services,D3311   ,01/07/2014,60022395_0,746.52,Revenue,20002254,GRAFTON MERCHANTING GB LTD
Oxford City Council,Direct Services,Materials,D3021   ,01/07/2014,60022397_0,1938.56,Revenue,20002254,GRAFTON MERCHANTING GB LTD
Oxford City Council,Direct Services,Materials,D3021   ,01/07/2014,60022433_0,1825.58,Revenue,20002254,GRAFTON MERCHANTING GB LTD
Oxford City Council,Direct Services,Direct Services Supplies & Services,D3311   ,01/07/2014,60022434_2,695.05,Revenue,20002254,GRAFTON MERCHANTING GB LTD
Oxford City Council,Direct Services,Direct Services Supplies & Services,D3311   ,01/07/2014,60022435_0,740.68,Revenue,20002254,GRAFTON MERCHANTING GB LTD
Oxford City Council,Direct Services,Direct Services Supplies & Services,D3311   ,01/07/2014,60022436_2,654.58,Revenue,20002254,GRAFTON MERCHANTING GB LTD
Oxford City Council,Direct Services,Direct Services Supplies & Services,D3311   ,01/07/2014,60022437_0,775.92,Revenue,20002254,GRAFTON MERCHANTING GB LTD
Oxford City Council,Direct Services,Direct Services Supplies & Services,D3311   ,01/07/2014,60022438_2,695.69,Revenue,20002254,GRAFTON MERCHANTING GB LTD
Oxford City Council,Direct Services,Direct Services Supplies & Services,D3311   ,01/07/2014,60022439_0,654.58,Revenue,20002254,GRAFTON MERCHANTING GB LTD
Oxford City Council,Direct Services,Materials,D3021   ,01/07/2014,60022440_2,815.33,Revenue,20002254,GRAFTON MERCHANTING GB LTD
Oxford City Council,Direct Services,Direct Services Supplies & Services,D3311   ,01/07/2014,60022481_0,815.14,Revenue,20002254,GRAFTON MERCHANTING GB LTD
Oxford City Council,Direct Services,Direct Services Supplies & Services,D3311   ,01/07/2014,60022482_2,679.33,Revenue,20002254,GRAFTON MERCHANTING GB LTD
Oxford City Council,Direct Services,Direct Services Supplies & Services,D3311   ,01/07/2014,60022483_0,815.14,Revenue,20002254,GRAFTON MERCHANTING GB LTD
Oxford City Council,Direct Services,Direct Services Supplies & Services,D3311   ,01/07/2014,60022484_2,654.58,Revenue,20002254,GRAFTON MERCHANTING GB LTD
Oxford City Council,Direct Services,Direct Services Supplies & Services,D3311   ,01/07/2014,60022485_0,807.55,Revenue,20002254,GRAFTON MERCHANTING GB LTD
Oxford City Council,Direct Services,Direct Services Supplies & Services,D3311   ,01/07/2014,60022486_2,708.54,Revenue,20002254,GRAFTON MERCHANTING GB LTD
Oxford City Council,Direct Services,Direct Services Supplies & Services,D3311   ,01/07/2014,60022496_2,598.55,Revenue,20002254,GRAFTON MERCHANTING GB LTD
Oxford City Council,Direct Services,Materials,D3021   ,01/07/2014,60022538_2,941.7,Revenue,20002254,GRAFTON MERCHANTING GB LTD
Oxford City Council,Direct Services,Materials,D3021,08/07/2014,60022650_1,656.91,Revenue,20002254,GRAFTON MERCHANTING GB LTD
Oxford City Council,Direct Services,Direct Services Supplies & Services,D3311,08/07/2014,60022654_1,3015.79,Revenue,20002254,GRAFTON MERCHANTING GB LTD
Oxford City Council,Direct Services,Direct Services Supplies & Services,D3311,08/07/2014,60022655_1,994,Revenue,20002254,GRAFTON MERCHANTING GB LTD
Oxford City Council,Direct Services,Direct Services Supplies & Services,D3311,08/07/2014,60022660_0,654.58,Revenue,20002254,GRAFTON MERCHANTING GB LTD
Oxford City Council,Direct Services,Direct Services Supplies & Services,D3311,08/07/2014,60022661_2,654.58,Revenue,20002254,GRAFTON MERCHANTING GB LTD
Oxford City Council,Direct Services,Direct Services Supplies & Services,D3311,08/07/2014,60022662_0,654.58,Revenue,20002254,GRAFTON MERCHANTING GB LTD
Oxford City Council,Direct Services,Direct Services Supplies & Services,D3311,08/07/2014,60022663_2,695.69,Revenue,20002254,GRAFTON MERCHANTING GB LTD
Oxford City Council,Direct Services,Direct Services Supplies & Services,D3311,08/07/2014,60022664_0,754.71,Revenue,20002254,GRAFTON MERCHANTING GB LTD
Oxford City Council,Direct Services,Direct Services Supplies & Services,D3311,08/07/2014,60022665_2,709.4,Revenue,20002254,GRAFTON MERCHANTING GB LTD
Oxford City Council,Direct Services,Materials,D3021,08/07/2014,60022695_1,793.08,Revenue,20002254,GRAFTON MERCHANTING GB LTD
Oxford City Council,Direct Services,Materials,D3021,08/07/2014,60022725_1,2431.82,Revenue,20002254,GRAFTON MERCHANTING GB LTD
Oxford City Council,Direct Services,Materials,D3021,08/07/2014,60022727_2,1895.66,Revenue,20002254,GRAFTON MERCHANTING GB LTD
Oxford City Council,Direct Services,Direct Services Supplies & Services,D3311,08/07/2014,60022728_0,654.58,Revenue,20002254,GRAFTON MERCHANTING GB LTD
Oxford City Council,Direct Services,Direct Services Supplies & Services,D3311,08/07/2014,60022729_2,654.58,Revenue,20002254,GRAFTON MERCHANTING GB LTD
Oxford City Council,Direct Services,Direct Services Supplies & Services,D3311,08/07/2014,60022730_0,695.69,Revenue,20002254,GRAFTON MERCHANTING GB LTD
Oxford City Council,Direct Services,Direct Services Supplies & Services,D3311,08/07/2014,60022744_1,654.58,Revenue,20002254,GRAFTON MERCHANTING GB LTD
Oxford City Council,Direct Services,Direct Services Supplies & Services,D3311,08/07/2014,60022745_1,654.58,Revenue,20002254,GRAFTON MERCHANTING GB LTD
Oxford City Council,Direct Services,Direct Services Supplies & Services,D3311,08/07/2014,60022746_1,932.05,Revenue,20002254,GRAFTON MERCHANTING GB LTD
Oxford City Council,Direct Services,Materials,D3021,08/07/2014,60022796_0,1207.6,Revenue,20002254,GRAFTON MERCHANTING GB LTD
Oxford City Council,Direct Services,Direct Services Supplies & Services,D3311,08/07/2014,60022797_2,1326.47,Revenue,20002254,GRAFTON MERCHANTING GB LTD
Oxford City Council,Direct Services,Direct Services Supplies & Services,D3311,08/07/2014,60022798_0,654.58,Revenue,20002254,GRAFTON MERCHANTING GB LTD
Oxford City Council,Direct Services,Direct Services Supplies & Services,D3311,08/07/2014,60022799_2,891.75,Revenue,20002254,GRAFTON MERCHANTING GB LTD
Oxford City Council,Direct Services,Direct Services Supplies & Services,D3311,08/07/2014,60022800_0,815.14,Revenue,20002254,GRAFTON MERCHANTING GB LTD
Oxford City Council,Direct Services,Direct Services Supplies & Services,D3311,08/07/2014,60022801_2,1714.69,Revenue,20002254,GRAFTON MERCHANTING GB LTD
Oxford City Council,Direct Services,Materials,D3021,08/07/2014,60022803_2,501.33,Revenue,20002254,GRAFTON MERCHANTING GB LTD
Oxford City Council,Direct Services,Direct Services Supplies & Services,D3311,08/07/2014,60022804_0,608.87,Revenue,20002254,GRAFTON MERCHANTING GB LTD
Oxford City Council,Direct Services,Direct Services Supplies & Services,D3311,08/07/2014,60022805_2,531.17,Revenue,20002254,GRAFTON MERCHANTING GB LTD
Oxford City Council,Direct Services,Direct Services Supplies & Services,D3311,08/07/2014,60022806_0,601.27,Revenue,20002254,GRAFTON MERCHANTING GB LTD
Oxford City Council,Direct Services,Direct Services Supplies & Services,D3311,08/07/2014,60022808_0,714.6,Revenue,20002254,GRAFTON MERCHANTING GB LTD
Oxford City Council,Direct Services,Direct Services Supplies & Services,D3311,08/07/2014,60022809_2,555.48,Revenue,20002254,GRAFTON MERCHANTING GB LTD
Oxford City Council,Direct Services,Direct Services Supplies & Services,D3311,08/07/2014,60022812_0,576.54,Revenue,20002254,GRAFTON MERCHANTING GB LTD
Oxford City Council,Direct Services,Direct Services Supplies & Services,D3311,08/07/2014,60022819_2,681.9,Revenue,20002254,GRAFTON MERCHANTING GB LTD
Oxford City Council,Direct Services,Materials,D3021,08/07/2014,60022941_1,1176.84,Revenue,20002254,GRAFTON MERCHANTING GB LTD
Oxford City Council,Direct Services,Materials,D3021,15/07/2014,60023029_2,5089.69,Revenue,20002254,GRAFTON MERCHANTING GB LTD
Oxford City Council,Direct Services,Materials,D3021,15/07/2014,60023030_0,960.89,Revenue,20002254,GRAFTON MERCHANTING GB LTD
Oxford City Council,Direct Services,Direct Services Supplies & Services,D3311,15/07/2014,60023034_0,727.51,Revenue,20002254,GRAFTON MERCHANTING GB LTD
Oxford City Council,Direct Services,Direct Services Supplies & Services,D3311,15/07/2014,60023038_0,937.9,Revenue,20002254,GRAFTON MERCHANTING GB LTD
Oxford City Council,Direct Services,Direct Services Supplies & Services,D3311,15/07/2014,60023057_2,704.07,Revenue,20002254,GRAFTON MERCHANTING GB LTD
Oxford City Council,Direct Services,Materials,D3021   ,22/07/2014,60023257_0,1993.03,Revenue,20002254,GRAFTON MERCHANTING GB LTD
Oxford City Council,Direct Services,Direct Services Supplies & Services,D3311   ,22/07/2014,60023265_0,531.5,Revenue,20002254,GRAFTON MERCHANTING GB LTD
Oxford City Council,Direct Services,Direct Services Supplies & Services,D3311   ,22/07/2014,60023284_2,762.96,Revenue,20002254,GRAFTON MERCHANTING GB LTD
Oxford City Council,Direct Services,Direct Services Supplies & Services,D3311   ,22/07/2014,60023285_0,654.58,Revenue,20002254,GRAFTON MERCHANTING GB LTD
Oxford City Council,Direct Services,Direct Services Supplies & Services,D3311   ,22/07/2014,60023286_2,654.58,Revenue,20002254,GRAFTON MERCHANTING GB LTD
Oxford City Council,Direct Services,Direct Services Supplies & Services,D3311   ,22/07/2014,60023287_0,1142.95,Revenue,20002254,GRAFTON MERCHANTING GB LTD
Oxford City Council,Direct Services,Direct Services Supplies & Services,D3311   ,22/07/2014,60023289_0,631.63,Revenue,20002254,GRAFTON MERCHANTING GB LTD
Oxford City Council,Direct Services,Direct Services Supplies & Services,D3311   ,22/07/2014,60023291_0,552.48,Revenue,20002254,GRAFTON MERCHANTING GB LTD
Oxford City Council,Direct Services,Materials,D3021   ,22/07/2014,60023292_2,4863.25,Revenue,20002254,GRAFTON MERCHANTING GB LTD
Oxford City Council,Direct Services,Direct Services Supplies & Services,D3311   ,22/07/2014,60023304_2,815.14,Revenue,20002254,GRAFTON MERCHANTING GB LTD
Oxford City Council,Direct Services,Direct Services Supplies & Services,D3311   ,22/07/2014,60023305_0,2992.91,Revenue,20002254,GRAFTON MERCHANTING GB LTD
Oxford City Council,Direct Services,Direct Services Supplies & Services,D3311   ,22/07/2014,60023306_2,675.79,Revenue,20002254,GRAFTON MERCHANTING GB LTD
Oxford City Council,Direct Services,Direct Services Supplies & Services,D3311   ,22/07/2014,60023307_0,754.71,Revenue,20002254,GRAFTON MERCHANTING GB LTD
Oxford City Council,Direct Services,Direct Services Supplies & Services,D3311   ,22/07/2014,60023308_2,815.14,Revenue,20002254,GRAFTON MERCHANTING GB LTD
Oxford City Council,Direct Services,Direct Services Supplies & Services,D3311   ,22/07/2014,60023309_0,654.58,Revenue,20002254,GRAFTON MERCHANTING GB LTD
Oxford City Council,Direct Services,Direct Services Supplies & Services,D3311   ,22/07/2014,60023310_2,659.53,Revenue,20002254,GRAFTON MERCHANTING GB LTD
Oxford City Council,Direct Services,Direct Services Supplies & Services,D3311   ,22/07/2014,60023312_2,1233.8,Revenue,20002254,GRAFTON MERCHANTING GB LTD
Oxford City Council,Direct Services,Direct Services Supplies & Services,D3311   ,22/07/2014,60023318_2,1045.2,Revenue,20002254,GRAFTON MERCHANTING GB LTD
Oxford City Council,Direct Services,Direct Services Supplies & Services,D3311   ,22/07/2014,60023319_0,768.38,Revenue,20002254,GRAFTON MERCHANTING GB LTD
Oxford City Council,Direct Services,Direct Services Supplies & Services,D3311   ,22/07/2014,60023320_2,878.26,Revenue,20002254,GRAFTON MERCHANTING GB LTD
Oxford City Council,Direct Services,Direct Services Supplies & Services,D3311   ,22/07/2014,60023321_0,654.58,Revenue,20002254,GRAFTON MERCHANTING GB LTD
Oxford City Council,Direct Services,Direct Services Supplies & Services,D3311   ,22/07/2014,60023322_2,838.21,Revenue,20002254,GRAFTON MERCHANTING GB LTD
Oxford City Council,Direct Services,Direct Services Supplies & Services,D3311   ,22/07/2014,60023323_0,1057.57,Revenue,20002254,GRAFTON MERCHANTING GB LTD
Oxford City Council,Direct Services,Direct Services Supplies & Services,D3311   ,22/07/2014,60023324_2,695.69,Revenue,20002254,GRAFTON MERCHANTING GB LTD
Oxford City Council,Direct Services,Materials,D3021   ,22/07/2014,60023328_2,1199.99,Revenue,20002254,GRAFTON MERCHANTING GB LTD
Oxford City Council,Direct Services,Direct Services Supplies & Services,D3311   ,22/07/2014,60023336_2,639.05,Revenue,20002254,GRAFTON MERCHANTING GB LTD
Oxford City Council,Direct Services,Materials,D3021   ,22/07/2014,60023337_0,2934.96,Revenue,20002254,GRAFTON MERCHANTING GB LTD
Oxford City Council,Direct Services,Direct Services Supplies & Services,D3311   ,22/07/2014,60023338_2,662.68,Revenue,20002254,GRAFTON MERCHANTING GB LTD
Oxford City Council,Direct Services,Materials,D3021   ,22/07/2014,60023341_0,2800.43,Revenue,20002254,GRAFTON MERCHANTING GB LTD
Oxford City Council,Direct Services,Direct Services Supplies & Services,D3311   ,22/07/2014,60023399_0,545.29,Revenue,20002254,GRAFTON MERCHANTING GB LTD
Oxford City Council,Direct Services,Direct Services Supplies & Services,D3311   ,22/07/2014,60023400_2,669.64,Revenue,20002254,GRAFTON MERCHANTING GB LTD
Oxford City Council,Direct Services,Direct Services Supplies & Services,D3311   ,22/07/2014,60023401_0,654.58,Revenue,20002254,GRAFTON MERCHANTING GB LTD
Oxford City Council,Direct Services,Direct Services Supplies & Services,D3311   ,22/07/2014,60023402_2,1067.77,Revenue,20002254,GRAFTON MERCHANTING GB LTD
Oxford City Council,Direct Services,Direct Services Supplies & Services,D3311   ,22/07/2014,60023403_0,654.58,Revenue,20002254,GRAFTON MERCHANTING GB LTD
Oxford City Council,Direct Services,Direct Services Supplies & Services,D3311   ,22/07/2014,60023404_2,654.58,Revenue,20002254,GRAFTON MERCHANTING GB LTD
Oxford City Council,Direct Services,Direct Services Supplies & Services,D3311   ,22/07/2014,60023405_0,654.58,Revenue,20002254,GRAFTON MERCHANTING GB LTD
Oxford City Council,Direct Services,Direct Services Supplies & Services,D3311   ,22/07/2014,60023406_2,654.58,Revenue,20002254,GRAFTON MERCHANTING GB LTD
Oxford City Council,Direct Services,Direct Services Supplies & Services,D3311   ,22/07/2014,60023448_0,695.69,Revenue,20002254,GRAFTON MERCHANTING GB LTD
Oxford City Council,Direct Services,Direct Services Supplies & Services,D3311   ,22/07/2014,60023488_0,806.56,Revenue,20002254,GRAFTON MERCHANTING GB LTD
Oxford City Council,Direct Services,Direct Services Supplies & Services,D3311   ,22/07/2014,60023510_1,654.58,Revenue,20002254,GRAFTON MERCHANTING GB LTD
Oxford City Council,Direct Services,Direct Services Supplies & Services,D3311   ,22/07/2014,60023511_1,654.58,Revenue,20002254,GRAFTON MERCHANTING GB LTD
Oxford City Council,Direct Services,Materials,D3021   ,29/07/2014,60023532_0,1277.83,Revenue,20002254,GRAFTON MERCHANTING GB LTD
Oxford City Council,Direct Services,Direct Services Supplies & Services,D3311   ,29/07/2014,60023533_2,975,Revenue,20002254,GRAFTON MERCHANTING GB LTD
Oxford City Council,Direct Services,Direct Services Supplies & Services,D3311   ,29/07/2014,60023534_0,654.58,Revenue,20002254,GRAFTON MERCHANTING GB LTD
Oxford City Council,Direct Services,Direct Services Supplies & Services,D3311   ,29/07/2014,60023535_2,654.58,Revenue,20002254,GRAFTON MERCHANTING GB LTD
Oxford City Council,Direct Services,Materials,D3021   ,29/07/2014,60023536_0,4418.21,Revenue,20002254,GRAFTON MERCHANTING GB LTD
Oxford City Council,Direct Services,Direct Services Supplies & Services,D3311   ,29/07/2014,60023603_2,654.58,Revenue,20002254,GRAFTON MERCHANTING GB LTD
Oxford City Council,Direct Services,Direct Services Supplies & Services,D3311   ,29/07/2014,60023604_0,654.58,Revenue,20002254,GRAFTON MERCHANTING GB LTD
Oxford City Council,Direct Services,Direct Services Supplies & Services,D3311   ,29/07/2014,60023605_2,654.58,Revenue,20002254,GRAFTON MERCHANTING GB LTD
Oxford City Council,Direct Services,Direct Services Supplies & Services,D3311   ,29/07/2014,60023606_0,654.58,Revenue,20002254,GRAFTON MERCHANTING GB LTD
Oxford City Council,Direct Services,Direct Services Supplies & Services,D3311   ,29/07/2014,60023607_2,654.58,Revenue,20002254,GRAFTON MERCHANTING GB LTD
Oxford City Council,Direct Services,Direct Services Supplies & Services,D3311   ,29/07/2014,60023610_0,654.58,Revenue,20002254,GRAFTON MERCHANTING GB LTD
Oxford City Council,Direct Services,Materials,D3021   ,29/07/2014,60023688_0,2359.07,Revenue,20002254,GRAFTON MERCHANTING GB LTD
Oxford City Council,Direct Services,Materials,D3021   ,29/07/2014,60023692_0,1389.15,Revenue,20002254,GRAFTON MERCHANTING GB LTD
Oxford City Council,Direct Services,Direct Services Supplies & Services,D3311   ,29/07/2014,60023694_0,513.74,Revenue,20002254,GRAFTON MERCHANTING GB LTD
Oxford City Council,Direct Services,Direct Services Supplies & Services,D3311   ,29/07/2014,60023695_2,513.22,Revenue,20002254,GRAFTON MERCHANTING GB LTD
Oxford City Council,Direct Services,Direct Services Supplies & Services,D3311   ,29/07/2014,60023700_0,803.05,Revenue,20002254,GRAFTON MERCHANTING GB LTD
Oxford City Council,Direct Services,Materials,D3021   ,29/07/2014,60023759_2,1043.87,Revenue,20002254,GRAFTON MERCHANTING GB LTD
Oxford City Council,Direct Services,Materials,D3021   ,29/07/2014,60023785_2,1362.58,Revenue,20002254,GRAFTON MERCHANTING GB LTD
Oxford City Council,Direct Services,Materials,D3021   ,29/07/2014,60023786_0,3002.4,Revenue,20002254,GRAFTON MERCHANTING GB LTD
Oxford City Council,Direct Services,Direct Services Supplies & Services,D3311   ,29/07/2014,60023790_0,654.58,Revenue,20002254,GRAFTON MERCHANTING GB LTD
Oxford City Council,Direct Services,Direct Services Supplies & Services,D3311   ,29/07/2014,60023791_2,675.79,Revenue,20002254,GRAFTON MERCHANTING GB LTD
Oxford City Council,Direct Services,Direct Services Supplies & Services,D3311   ,29/07/2014,60023801_2,654.58,Revenue,20002254,GRAFTON MERCHANTING GB LTD
Oxford City Council,Direct Services,Direct Services Supplies & Services,D3311   ,29/07/2014,60023802_0,654.58,Revenue,20002254,GRAFTON MERCHANTING GB LTD
Oxford City Council,Direct Services,Direct Services Supplies & Services,D3311   ,29/07/2014,60023803_2,697.03,Revenue,20002254,GRAFTON MERCHANTING GB LTD
Oxford City Council,Direct Services,Materials,D3021   ,05/08/2014,60023824_2,2642.76,Revenue,20002254,GRAFTON MERCHANTING GB LTD
Oxford City Council,Direct Services,Materials,D3021   ,05/08/2014,60023825_0,2018.11,Revenue,20002254,GRAFTON MERCHANTING GB LTD
Oxford City Council,Direct Services,Direct Services Supplies & Services,D3311   ,05/08/2014,60023826_2,654.58,Revenue,20002254,GRAFTON MERCHANTING GB LTD
Oxford City Council,Direct Services,Direct Services Supplies & Services,D3311   ,05/08/2014,60023827_0,654.58,Revenue,20002254,GRAFTON MERCHANTING GB LTD
Oxford City Council,Direct Services,Direct Services Supplies & Services,D3311   ,05/08/2014,60023828_2,654.58,Revenue,20002254,GRAFTON MERCHANTING GB LTD
Oxford City Council,Direct Services,Direct Services Supplies & Services,D3311   ,05/08/2014,60023829_0,654.58,Revenue,20002254,GRAFTON MERCHANTING GB LTD
Oxford City Council,Direct Services,Direct Services Supplies & Services,D3311   ,05/08/2014,60023830_2,695.69,Revenue,20002254,GRAFTON MERCHANTING GB LTD
Oxford City Council,Direct Services,Direct Services Supplies & Services,D3311   ,05/08/2014,60023831_0,1203.44,Revenue,20002254,GRAFTON MERCHANTING GB LTD
Oxford City Council,Direct Services,Direct Services Supplies & Services,D3311   ,05/08/2014,60023832_2,674.04,Revenue,20002254,GRAFTON MERCHANTING GB LTD
Oxford City Council,Direct Services,Materials,D3021   ,05/08/2014,60023850_1,1331.15,Revenue,20002254,GRAFTON MERCHANTING GB LTD
Oxford City Council,Direct Services,Materials,D3021   ,05/08/2014,60023851_1,2948.55,Revenue,20002254,GRAFTON MERCHANTING GB LTD
Oxford City Council,Direct Services,Materials,D3021   ,05/08/2014,60023852_1,633.8,Revenue,20002254,GRAFTON MERCHANTING GB LTD
Oxford City Council,Direct Services,Direct Services Supplies & Services,D3311   ,05/08/2014,60023856_1,574.45,Revenue,20002254,GRAFTON MERCHANTING GB LTD
Oxford City Council,Direct Services,Direct Services Supplies & Services,D3311   ,05/08/2014,60023857_1,666.48,Revenue,20002254,GRAFTON MERCHANTING GB LTD
Oxford City Council,Direct Services,Direct Services Supplies & Services,D3311   ,05/08/2014,60023860_1,582.3,Revenue,20002254,GRAFTON MERCHANTING GB LTD
Oxford City Council,Direct Services,Direct Services Supplies & Services,D3311   ,05/08/2014,60023861_1,583.26,Revenue,20002254,GRAFTON MERCHANTING GB LTD
Oxford City Council,Direct Services,Direct Services Supplies & Services,D3311   ,05/08/2014,60023864_1,794.38,Revenue,20002254,GRAFTON MERCHANTING GB LTD
Oxford City Council,Direct Services,Direct Services Supplies & Services,D3311   ,05/08/2014,60023911_0,868.14,Revenue,20002254,GRAFTON MERCHANTING GB LTD
Oxford City Council,Direct Services,Direct Services Supplies & Services,D3311   ,05/08/2014,60023957_1,746.15,Revenue,20002254,GRAFTON MERCHANTING GB LTD
Oxford City Council,Direct Services,Direct Services Supplies & Services,D3311   ,05/08/2014,60023958_1,918.19,Revenue,20002254,GRAFTON MERCHANTING GB LTD
Oxford City Council,Direct Services,Direct Services Supplies & Services,D3311   ,05/08/2014,60023959_1,773.86,Revenue,20002254,GRAFTON MERCHANTING GB LTD
Oxford City Council,Direct Services,Direct Services Supplies & Services,D3311   ,05/08/2014,60023960_1,654.58,Revenue,20002254,GRAFTON MERCHANTING GB LTD
Oxford City Council,Direct Services,Direct Services Supplies & Services,D3311   ,05/08/2014,60023961_1,675.79,Revenue,20002254,GRAFTON MERCHANTING GB LTD
Oxford City Council,Direct Services,Direct Services Supplies & Services,D3311   ,05/08/2014,60023962_1,679.2,Revenue,20002254,GRAFTON MERCHANTING GB LTD
Oxford City Council,Direct Services,Direct Services Supplies & Services,D3311   ,05/08/2014,60023963_1,654.58,Revenue,20002254,GRAFTON MERCHANTING GB LTD
Oxford City Council,Direct Services,Direct Services Supplies & Services,D3311   ,05/08/2014,60023964_1,695.69,Revenue,20002254,GRAFTON MERCHANTING GB LTD
Oxford City Council,Direct Services,Materials,D3021   ,05/08/2014,60023981_2,5016.22,Revenue,20002254,GRAFTON MERCHANTING GB LTD
Oxford City Council,Direct Services,Materials,D3021   ,05/08/2014,60023984_0,1660.03,Revenue,20002254,GRAFTON MERCHANTING GB LTD
Oxford City Council,Direct Services,Direct Services Supplies & Services,D3311   ,05/08/2014,60023987_2,1405.67,Revenue,20002254,GRAFTON MERCHANTING GB LTD
Oxford City Council,Direct Services,Materials,D3021   ,05/08/2014,60024029_1,2758.44,Revenue,20002254,GRAFTON MERCHANTING GB LTD
Oxford City Council,Direct Services,Materials,D3021   ,05/08/2014,60024031_1,1219.8,Revenue,20002254,GRAFTON MERCHANTING GB LTD
Oxford City Council,Direct Services,Materials,D3021   ,05/08/2014,60024032_1,914.75,Revenue,20002254,GRAFTON MERCHANTING GB LTD
Oxford City Council,Direct Services,Direct Services Supplies & Services,D3311   ,05/08/2014,60024033_1,707.14,Revenue,20002254,GRAFTON MERCHANTING GB LTD
Oxford City Council,Direct Services,Direct Services Supplies & Services,D3311   ,05/08/2014,60024039_1,805.38,Revenue,20002254,GRAFTON MERCHANTING GB LTD
Oxford City Council,Direct Services,Direct Services Supplies & Services,D3311   ,05/08/2014,60024041_1,1569.97,Revenue,20002254,GRAFTON MERCHANTING GB LTD
Oxford City Council,Direct Services,Direct Services Supplies & Services,D3311   ,05/08/2014,60024043_1,1033.91,Revenue,20002254,GRAFTON MERCHANTING GB LTD
Oxford City Council,Direct Services,Materials,D3021   ,12/08/2014,60024055_0,913.15,Revenue,20002254,GRAFTON MERCHANTING GB LTD
Oxford City Council,Direct Services,Materials,D3021   ,12/08/2014,60024057_0,1237.01,Revenue,20002254,GRAFTON MERCHANTING GB LTD
Oxford City Council,Direct Services,Direct Services Supplies & Services,D3311   ,12/08/2014,60024059_0,654.58,Revenue,20002254,GRAFTON MERCHANTING GB LTD
Oxford City Council,Direct Services,Direct Services Supplies & Services,D3311   ,12/08/2014,60024060_1,654.58,Revenue,20002254,GRAFTON MERCHANTING GB LTD
Oxford City Council,Direct Services,Direct Services Supplies & Services,D3311   ,12/08/2014,60024061_0,654.58,Revenue,20002254,GRAFTON MERCHANTING GB LTD
Oxford City Council,Direct Services,Direct Services Supplies & Services,D3311   ,12/08/2014,60024062_1,654.58,Revenue,20002254,GRAFTON MERCHANTING GB LTD
Oxford City Council,Direct Services,Direct Services Supplies & Services,D3311   ,12/08/2014,60024063_0,758.17,Revenue,20002254,GRAFTON MERCHANTING GB LTD
Oxford City Council,Direct Services,Direct Services Supplies & Services,D3311   ,12/08/2014,60024064_1,709.4,Revenue,20002254,GRAFTON MERCHANTING GB LTD
Oxford City Council,Direct Services,Direct Services Supplies & Services,D3311   ,12/08/2014,60024065_0,1068.28,Revenue,20002254,GRAFTON MERCHANTING GB LTD
Oxford City Council,Direct Services,Direct Services Supplies & Services,D3311   ,12/08/2014,60024066_1,1370.24,Revenue,20002254,GRAFTON MERCHANTING GB LTD
Oxford City Council,Direct Services,Direct Services Supplies & Services,D3311   ,12/08/2014,60024068_1,797.97,Revenue,20002254,GRAFTON MERCHANTING GB LTD
Oxford City Council,Direct Services,Direct Services Supplies & Services,D3311   ,12/08/2014,60024069_0,659.05,Revenue,20002254,GRAFTON MERCHANTING GB LTD
Oxford City Council,Direct Services,Direct Services Supplies & Services,D3311   ,12/08/2014,60024072_1,664.64,Revenue,20002254,GRAFTON MERCHANTING GB LTD
Oxford City Council,Direct Services,Direct Services Supplies & Services,D3311   ,12/08/2014,60024074_1,679.2,Revenue,20002254,GRAFTON MERCHANTING GB LTD
Oxford City Council,Direct Services,Direct Services Supplies & Services,D3311   ,12/08/2014,60024075_0,654.58,Revenue,20002254,GRAFTON MERCHANTING GB LTD
Oxford City Council,Direct Services,Materials,D3021   ,12/08/2014,60024077_0,1816.97,Revenue,20002254,GRAFTON MERCHANTING GB LTD
Oxford City Council,Direct Services,Materials,D3021   ,12/08/2014,60024078_1,708,Revenue,20002254,GRAFTON MERCHANTING GB LTD
Oxford City Council,Direct Services,Direct Services Supplies & Services,D3311   ,12/08/2014,60024081_0,771.66,Revenue,20002254,GRAFTON MERCHANTING GB LTD
Oxford City Council,Direct Services,Materials,D3021   ,12/08/2014,60024090_1,1024.22,Revenue,20002254,GRAFTON MERCHANTING GB LTD
Oxford City Council,Direct Services,Materials,D3021   ,12/08/2014,60024192_1,1228.36,Revenue,20002254,GRAFTON MERCHANTING GB LTD
Oxford City Council,Direct Services,Materials,D3021   ,12/08/2014,60024196_1,2543.11,Revenue,20002254,GRAFTON MERCHANTING GB LTD
Oxford City Council,Direct Services,Direct Services Supplies & Services,D3311   ,12/08/2014,60024198_1,905.51,Revenue,20002254,GRAFTON MERCHANTING GB LTD
Oxford City Council,Direct Services,Direct Services Supplies & Services,D3311   ,12/08/2014,60024207_0,918,Revenue,20002254,GRAFTON MERCHANTING GB LTD
Oxford City Council,Direct Services,Materials,D3021,19/08/2014,60024446_1,2701.7,Revenue,20002254,GRAFTON MERCHANTING GB LTD
Oxford City Council,Direct Services,Direct Services Supplies & Services,D3311,19/08/2014,60024487_1,592.5,Revenue,20002254,GRAFTON MERCHANTING GB LTD
Oxford City Council,Direct Services,Direct Services Supplies & Services,D3311,19/08/2014,60024488_1,1571.62,Revenue,20002254,GRAFTON MERCHANTING GB LTD
Oxford City Council,Direct Services,Direct Services Supplies & Services,D3311,19/08/2014,60024493_1,654.58,Revenue,20002254,GRAFTON MERCHANTING GB LTD
Oxford City Council,Direct Services,Direct Services Supplies & Services,D3311,19/08/2014,60024495_1,650.27,Revenue,20002254,GRAFTON MERCHANTING GB LTD
Oxford City Council,Direct Services,Materials,D3021,19/08/2014,60024496_1,2107.48,Revenue,20002254,GRAFTON MERCHANTING GB LTD
Oxford City Council,Direct Services,Materials,D3021,19/08/2014,60024499_1,1459,Revenue,20002254,GRAFTON MERCHANTING GB LTD
Oxford City Council,Direct Services,Direct Services Supplies & Services,D3311,19/08/2014,60024503_1,654.58,Revenue,20002254,GRAFTON MERCHANTING GB LTD
Oxford City Council,Direct Services,Direct Services Supplies & Services,D3311,19/08/2014,60024507_1,609.72,Revenue,20002254,GRAFTON MERCHANTING GB LTD
Oxford City Council,Direct Services,Direct Services Supplies & Services,D3311,19/08/2014,60024509_1,704.92,Revenue,20002254,GRAFTON MERCHANTING GB LTD
Oxford City Council,Direct Services,Materials,D3021,19/08/2014,60024510_1,518.67,Revenue,20002254,GRAFTON MERCHANTING GB LTD
Oxford City Council,Direct Services,Direct Services Supplies & Services,D3311,19/08/2014,60024512_1,512.01,Revenue,20002254,GRAFTON MERCHANTING GB LTD
Oxford City Council,Direct Services,Direct Services Supplies & Services,D3311,19/08/2014,60024518_1,758.17,Revenue,20002254,GRAFTON MERCHANTING GB LTD
Oxford City Council,Direct Services,Direct Services Supplies & Services,D3311,19/08/2014,60024519_1,950.69,Revenue,20002254,GRAFTON MERCHANTING GB LTD
Oxford City Council,Direct Services,Direct Services Supplies & Services,D3311,19/08/2014,60024522_1,654.58,Revenue,20002254,GRAFTON MERCHANTING GB LTD
Oxford City Council,Direct Services,Materials,D3021,19/08/2014,60024523_1,1913.86,Revenue,20002254,GRAFTON MERCHANTING GB LTD
Oxford City Council,Direct Services,Materials,D3021,19/08/2014,60024524_1,3047.14,Revenue,20002254,GRAFTON MERCHANTING GB LTD
Oxford City Council,Direct Services,Materials,D3021,27/08/2014,60024630_1,532.79,Revenue,20002254,GRAFTON MERCHANTING GB LTD
Oxford City Council,Direct Services,Direct Services Supplies & Services,D3311,27/08/2014,60024638_1,551.75,Revenue,20002254,GRAFTON MERCHANTING GB LTD
Oxford City Council,Direct Services,Direct Services Supplies & Services,D3311,27/08/2014,60024639_1,553.31,Revenue,20002254,GRAFTON MERCHANTING GB LTD
Oxford City Council,Direct Services,Materials,D3021,27/08/2014,60024642_1,3460.48,Revenue,20002254,GRAFTON MERCHANTING GB LTD
Oxford City Council,Direct Services,Materials,D3021,27/08/2014,60024645_1,5633.61,Revenue,20002254,GRAFTON MERCHANTING GB LTD
Oxford City Council,Direct Services,Direct Services Supplies & Services,D3311,27/08/2014,60024656_1,815.14,Revenue,20002254,GRAFTON MERCHANTING GB LTD
Oxford City Council,Direct Services,Direct Services Supplies & Services,D3311,27/08/2014,60024657_1,654.58,Revenue,20002254,GRAFTON MERCHANTING GB LTD
Oxford City Council,Direct Services,Direct Services Supplies & Services,D3311,27/08/2014,60024658_1,733.01,Revenue,20002254,GRAFTON MERCHANTING GB LTD
Oxford City Council,Direct Services,Direct Services Supplies & Services,D3311,27/08/2014,60024659_1,654.58,Revenue,20002254,GRAFTON MERCHANTING GB LTD
Oxford City Council,Direct Services,Direct Services Supplies & Services,D3311,27/08/2014,60024660_1,740.68,Revenue,20002254,GRAFTON MERCHANTING GB LTD
Oxford City Council,Direct Services,Direct Services Supplies & Services,D3311,27/08/2014,60024664_1,654.58,Revenue,20002254,GRAFTON MERCHANTING GB LTD
Oxford City Council,Direct Services,Direct Services Supplies & Services,D3311,27/08/2014,60024667_1,745.18,Revenue,20002254,GRAFTON MERCHANTING GB LTD
Oxford City Council,Direct Services,Direct Services Supplies & Services,D3311,27/08/2014,60024669_1,654.58,Revenue,20002254,GRAFTON MERCHANTING GB LTD
Oxford City Council,Direct Services,Direct Services Supplies & Services,D3311,27/08/2014,60024673_1,654.58,Revenue,20002254,GRAFTON MERCHANTING GB LTD
Oxford City Council,Direct Services,Direct Services Supplies & Services,D3311,27/08/2014,60024674_1,654.58,Revenue,20002254,GRAFTON MERCHANTING GB LTD
Oxford City Council,Direct Services,Direct Services Supplies & Services,D3311,27/08/2014,60024675_1,654.58,Revenue,20002254,GRAFTON MERCHANTING GB LTD
Oxford City Council,Direct Services,Direct Services Supplies & Services,D3311,27/08/2014,60024676_1,654.58,Revenue,20002254,GRAFTON MERCHANTING GB LTD
Oxford City Council,Direct Services,Direct Services Supplies & Services,D3311,27/08/2014,60024677_1,654.58,Revenue,20002254,GRAFTON MERCHANTING GB LTD
Oxford City Council,Direct Services,Direct Services Supplies & Services,D3311,27/08/2014,60024678_1,1248.42,Revenue,20002254,GRAFTON MERCHANTING GB LTD
Oxford City Council,Direct Services,Direct Services Supplies & Services,D3311,27/08/2014,60024679_1,815.14,Revenue,20002254,GRAFTON MERCHANTING GB LTD
Oxford City Council,Direct Services,Direct Services Supplies & Services,D3311,27/08/2014,60024680_1,699.57,Revenue,20002254,GRAFTON MERCHANTING GB LTD
Oxford City Council,Direct Services,Direct Services Supplies & Services,D3311,27/08/2014,60024681_1,654.58,Revenue,20002254,GRAFTON MERCHANTING GB LTD
Oxford City Council,Direct Services,Direct Services Supplies & Services,D3311,27/08/2014,60024682_1,1444.38,Revenue,20002254,GRAFTON MERCHANTING GB LTD
Oxford City Council,Direct Services,Direct Services Supplies & Services,D3311,27/08/2014,60024683_1,695.69,Revenue,20002254,GRAFTON MERCHANTING GB LTD
Oxford City Council,Direct Services,Direct Services Supplies & Services,D3311,27/08/2014,60024684_1,695.69,Revenue,20002254,GRAFTON MERCHANTING GB LTD
Oxford City Council,Direct Services,Materials,D3021,27/08/2014,60024687_1,519.55,Revenue,20002254,GRAFTON MERCHANTING GB LTD
Oxford City Council,Direct Services,Direct Services Supplies & Services,D3311,27/08/2014,60024689_1,654.58,Revenue,20002254,GRAFTON MERCHANTING GB LTD
Oxford City Council,Direct Services,Direct Services Supplies & Services,D3311,27/08/2014,60024690_1,654.58,Revenue,20002254,GRAFTON MERCHANTING GB LTD
Oxford City Council,Direct Services,Direct Services Supplies & Services,D3311,27/08/2014,60024691_1,773.35,Revenue,20002254,GRAFTON MERCHANTING GB LTD
Oxford City Council,Direct Services,Direct Services Supplies & Services,D3311,27/08/2014,60024692_1,1675,Revenue,20002254,GRAFTON MERCHANTING GB LTD
Oxford City Council,Direct Services,Direct Services Supplies & Services,D3311,27/08/2014,60024693_1,1375,Revenue,20002254,GRAFTON MERCHANTING GB LTD
Oxford City Council,Direct Services,Direct Services Supplies & Services,D3311,27/08/2014,60024694_1,654.58,Revenue,20002254,GRAFTON MERCHANTING GB LTD
Oxford City Council,Direct Services,Materials,D3021,27/08/2014,60024698_1,2433.12,Revenue,20002254,GRAFTON MERCHANTING GB LTD
Oxford City Council,Direct Services,Materials,D3021,27/08/2014,60024701_1,2521.37,Revenue,20002254,GRAFTON MERCHANTING GB LTD
Oxford City Council,Direct Services,Materials,D3021,27/08/2014,60024702_1,7929.19,Revenue,20002254,GRAFTON MERCHANTING GB LTD
Oxford City Council,Direct Services,Materials,D3021,27/08/2014,60024703_1,583.42,Revenue,20002254,GRAFTON MERCHANTING GB LTD
Oxford City Council,Direct Services,Materials,D3021,27/08/2014,60024814_1,2095.83,Revenue,20002254,GRAFTON MERCHANTING GB LTD
Oxford City Council,Direct Services,Direct Services Supplies & Services,D3311,27/08/2014,60024815_1,654.58,Revenue,20002254,GRAFTON MERCHANTING GB LTD
Oxford City Council,Direct Services,Direct Services Supplies & Services,D3311,27/08/2014,60024816_1,815.14,Revenue,20002254,GRAFTON MERCHANTING GB LTD
Oxford City Council,Direct Services,Direct Services Supplies & Services,D3311,27/08/2014,60024817_1,1393.14,Revenue,20002254,GRAFTON MERCHANTING GB LTD
Oxford City Council,Direct Services,Direct Services Supplies & Services,D3311,27/08/2014,60024818_1,654.58,Revenue,20002254,GRAFTON MERCHANTING GB LTD
Oxford City Council,Direct Services,Direct Services Supplies & Services,D3311,27/08/2014,60024940_0,773.86,Revenue,20002254,GRAFTON MERCHANTING GB LTD
Oxford City Council,Direct Services,Direct Services Supplies & Services,D3311,27/08/2014,60024942_0,654.58,Revenue,20002254,GRAFTON MERCHANTING GB LTD
Oxford City Council,Direct Services,Direct Services Supplies & Services,D3311,27/08/2014,60024944_0,667.08,Revenue,20002254,GRAFTON MERCHANTING GB LTD
Oxford City Council,Direct Services,Direct Services Supplies & Services,D3311,27/08/2014,60024946_0,654.58,Revenue,20002254,GRAFTON MERCHANTING GB LTD
Oxford City Council,Direct Services,Direct Services Supplies & Services,D3311,27/08/2014,60024948_0,654.58,Revenue,20002254,GRAFTON MERCHANTING GB LTD
Oxford City Council,Direct Services,Direct Services Supplies & Services,D3311   ,02/09/2014,60025064_0,754.71,Revenue,20002254,GRAFTON MERCHANTING GB LTD
Oxford City Council,Direct Services,Materials,D3021   ,02/09/2014,60025148_0,2147.62,Revenue,20002254,GRAFTON MERCHANTING GB LTD
Oxford City Council,Direct Services,Direct Services Supplies & Services,D3311   ,02/09/2014,60025153_2,788.43,Revenue,20002254,GRAFTON MERCHANTING GB LTD
Oxford City Council,Direct Services,Direct Services Supplies & Services,D3311   ,02/09/2014,60025154_0,654.58,Revenue,20002254,GRAFTON MERCHANTING GB LTD
Oxford City Council,Direct Services,Direct Services Supplies & Services,D3311   ,02/09/2014,60025160_0,654.58,Revenue,20002254,GRAFTON MERCHANTING GB LTD
Oxford City Council,Direct Services,Direct Services Supplies & Services,D3311   ,02/09/2014,60025161_2,654.58,Revenue,20002254,GRAFTON MERCHANTING GB LTD
Oxford City Council,Direct Services,Direct Services Supplies & Services,D3311   ,02/09/2014,60025162_0,871.79,Revenue,20002254,GRAFTON MERCHANTING GB LTD
Oxford City Council,Direct Services,Direct Services Supplies & Services,D3311   ,02/09/2014,60025163_2,654.58,Revenue,20002254,GRAFTON MERCHANTING GB LTD
Oxford City Council,Direct Services,Materials,D3021   ,02/09/2014,60025166_0,1514.62,Revenue,20002254,GRAFTON MERCHANTING GB LTD
Oxford City Council,Direct Services,Materials,D3021   ,02/09/2014,60025177_2,1621.93,Revenue,20002254,GRAFTON MERCHANTING GB LTD
Oxford City Council,Direct Services,Materials,D3021   ,02/09/2014,60025180_0,862.28,Revenue,20002254,GRAFTON MERCHANTING GB LTD
Oxford City Council,Direct Services,Direct Services Supplies & Services,D3311   ,02/09/2014,60025276_0,754.71,Revenue,20002254,GRAFTON MERCHANTING GB LTD
Oxford City Council,Direct Services,Direct Services Supplies & Services,D3311   ,02/09/2014,60025277_2,667.08,Revenue,20002254,GRAFTON MERCHANTING GB LTD
Oxford City Council,Direct Services,Direct Services Supplies & Services,D3311   ,02/09/2014,60025278_0,732.03,Revenue,20002254,GRAFTON MERCHANTING GB LTD
Oxford City Council,Direct Services,Direct Services Supplies & Services,D3311   ,02/09/2014,60025279_2,506.33,Revenue,20002254,GRAFTON MERCHANTING GB LTD
Oxford City Council,Direct Services,Direct Services Supplies & Services,D3311   ,02/09/2014,60025280_0,502.07,Revenue,20002254,GRAFTON MERCHANTING GB LTD
Oxford City Council,Direct Services,Materials,D3021   ,02/09/2014,60025284_0,1330.82,Revenue,20002254,GRAFTON MERCHANTING GB LTD
Oxford City Council,Direct Services,Materials,D3021   ,09/09/2014,60025369_2,746.65,Revenue,20002254,GRAFTON MERCHANTING GB LTD
Oxford City Council,Direct Services,Direct Services Supplies & Services,D3311   ,09/09/2014,60025372_0,815.14,Revenue,20002254,GRAFTON MERCHANTING GB LTD
Oxford City Council,Direct Services,Direct Services Supplies & Services,D3311   ,09/09/2014,60025373_2,950.69,Revenue,20002254,GRAFTON MERCHANTING GB LTD
Oxford City Council,Direct Services,Direct Services Supplies & Services,D3311   ,09/09/2014,60025374_0,699.57,Revenue,20002254,GRAFTON MERCHANTING GB LTD
Oxford City Council,Direct Services,Materials,D3021   ,09/09/2014,60025375_2,2339.46,Revenue,20002254,GRAFTON MERCHANTING GB LTD
Oxford City Council,Direct Services,Materials,D3021   ,09/09/2014,60025406_0,619.29,Revenue,20002254,GRAFTON MERCHANTING GB LTD
Oxford City Council,Direct Services,Direct Services Supplies & Services,D3311   ,09/09/2014,60025408_0,595.04,Revenue,20002254,GRAFTON MERCHANTING GB LTD
Oxford City Council,Direct Services,Direct Services Supplies & Services,D3311   ,09/09/2014,60025409_2,589.55,Revenue,20002254,GRAFTON MERCHANTING GB LTD
Oxford City Council,Direct Services,Direct Services Supplies & Services,D3311   ,09/09/2014,60025410_0,553.95,Revenue,20002254,GRAFTON MERCHANTING GB LTD
Oxford City Council,Direct Services,Direct Services Supplies & Services,D3311   ,09/09/2014,60025411_2,713.77,Revenue,20002254,GRAFTON MERCHANTING GB LTD
Oxford City Council,Direct Services,Direct Services Supplies & Services,D3311   ,09/09/2014,60025412_0,557.56,Revenue,20002254,GRAFTON MERCHANTING GB LTD
Oxford City Council,Direct Services,Direct Services Supplies & Services,D3311   ,09/09/2014,60025413_2,649.37,Revenue,20002254,GRAFTON MERCHANTING GB LTD
Oxford City Council,Direct Services,Direct Services Supplies & Services,D3311   ,09/09/2014,60025415_2,1278.42,Revenue,20002254,GRAFTON MERCHANTING GB LTD
Oxford City Council,Direct Services,Direct Services Supplies & Services,D3311   ,09/09/2014,60025444_0,745.18,Revenue,20002254,GRAFTON MERCHANTING GB LTD
Oxford City Council,Direct Services,Direct Services Supplies & Services,D3311   ,09/09/2014,60025446_0,1241.36,Revenue,20002254,GRAFTON MERCHANTING GB LTD
Oxford City Council,Direct Services,Direct Services Supplies & Services,D3311   ,09/09/2014,60025448_0,1549.15,Revenue,20002254,GRAFTON MERCHANTING GB LTD
Oxford City Council,Direct Services,Direct Services Supplies & Services,D3311   ,09/09/2014,60025451_1,2063.75,Revenue,20002254,GRAFTON MERCHANTING GB LTD
Oxford City Council,Direct Services,Direct Services Supplies & Services,D3311   ,09/09/2014,60025453_1,1648.48,Revenue,20002254,GRAFTON MERCHANTING GB LTD
Oxford City Council,Direct Services,Direct Services Supplies & Services,D3311   ,09/09/2014,60025459_2,603.42,Revenue,20002254,GRAFTON MERCHANTING GB LTD
Oxford City Council,Direct Services,Direct Services Supplies & Services,D3311   ,09/09/2014,60025460_0,516.3,Revenue,20002254,GRAFTON MERCHANTING GB LTD
Oxford City Council,Direct Services,Materials,D3021   ,09/09/2014,60025462_0,606.06,Revenue,20002254,GRAFTON MERCHANTING GB LTD
Oxford City Council,Direct Services,Materials,D3021   ,09/09/2014,60025463_2,787.88,Revenue,20002254,GRAFTON MERCHANTING GB LTD
Oxford City Council,Direct Services,Direct Services Supplies & Services,D3311   ,09/09/2014,60025466_0,1076.71,Revenue,20002254,GRAFTON MERCHANTING GB LTD
Oxford City Council,Direct Services,Materials,D3021   ,09/09/2014,60025471_2,3523.53,Revenue,20002254,GRAFTON MERCHANTING GB LTD
Oxford City Council,Direct Services,Direct Services Supplies & Services,D3311   ,09/09/2014,60025560_0,764.2,Revenue,20002254,GRAFTON MERCHANTING GB LTD
Oxford City Council,Direct Services,Materials,D3021   ,09/09/2014,60025567_2,1902.08,Revenue,20002254,GRAFTON MERCHANTING GB LTD
Oxford City Council,Direct Services,Materials,D3021   ,09/09/2014,60025568_0,731.74,Revenue,20002254,GRAFTON MERCHANTING GB LTD
Oxford City Council,Direct Services,Direct Services Supplies & Services,D3311   ,09/09/2014,60025571_2,654.58,Revenue,20002254,GRAFTON MERCHANTING GB LTD
Oxford City Council,Direct Services,Materials,D3021   ,09/09/2014,60025575_0,546.73,Revenue,20002254,GRAFTON MERCHANTING GB LTD
Oxford City Council,Direct Services,Materials,D3021   ,09/09/2014,60025584_2,1226.46,Revenue,20002254,GRAFTON MERCHANTING GB LTD
Oxford City Council,Direct Services,Materials,D3021   ,09/09/2014,60025585_0,993.7,Revenue,20002254,GRAFTON MERCHANTING GB LTD
Oxford City Council,Direct Services,Direct Services Supplies & Services,D3311   ,09/09/2014,60025590_0,732.56,Revenue,20002254,GRAFTON MERCHANTING GB LTD
Oxford City Council,Direct Services,Direct Services Supplies & Services,D3311   ,09/09/2014,60025592_0,558,Revenue,20002254,GRAFTON MERCHANTING GB LTD
Oxford City Council,Direct Services,Direct Services Supplies & Services,D3311   ,09/09/2014,60025593_2,559.68,Revenue,20002254,GRAFTON MERCHANTING GB LTD
Oxford City Council,Direct Services,Materials,D3021,16/09/2014,60025738_1,1069.74,Revenue,20002254,GRAFTON MERCHANTING GB LTD
Oxford City Council,Direct Services,Materials,D3021,16/09/2014,60025744_1,804.22,Revenue,20002254,GRAFTON MERCHANTING GB LTD
Oxford City Council,Direct Services,Materials,D3021,16/09/2014,60025747_0,2647.03,Revenue,20002254,GRAFTON MERCHANTING GB LTD
Oxford City Council,Direct Services,Direct Services Supplies & Services,D3311,16/09/2014,60025752_1,654.58,Revenue,20002254,GRAFTON MERCHANTING GB LTD
Oxford City Council,Direct Services,Direct Services Supplies & Services,D3311,16/09/2014,60025753_0,815.14,Revenue,20002254,GRAFTON MERCHANTING GB LTD
Oxford City Council,Direct Services,Direct Services Supplies & Services,D3311,16/09/2014,60025756_1,659.16,Revenue,20002254,GRAFTON MERCHANTING GB LTD
Oxford City Council,Direct Services,Direct Services Supplies & Services,D3311,16/09/2014,60025757_0,704.07,Revenue,20002254,GRAFTON MERCHANTING GB LTD
Oxford City Council,Direct Services,Direct Services Supplies & Services,D3311,16/09/2014,60025758_1,679.2,Revenue,20002254,GRAFTON MERCHANTING GB LTD
Oxford City Council,Direct Services,Direct Services Supplies & Services,D3311,16/09/2014,60025759_0,654.58,Revenue,20002254,GRAFTON MERCHANTING GB LTD
Oxford City Council,Direct Services,Direct Services Supplies & Services,D3311,16/09/2014,60025760_1,667.08,Revenue,20002254,GRAFTON MERCHANTING GB LTD
Oxford City Council,Direct Services,Direct Services Supplies & Services,D3311,16/09/2014,60025761_0,654.58,Revenue,20002254,GRAFTON MERCHANTING GB LTD
Oxford City Council,Direct Services,Materials,D3021,16/09/2014,60025763_0,644.25,Revenue,20002254,GRAFTON MERCHANTING GB LTD
Oxford City Council,Direct Services,Direct Services Supplies & Services,D3311,16/09/2014,60025771_0,871.89,Revenue,20002254,GRAFTON MERCHANTING GB LTD
Oxford City Council,Direct Services,Direct Services Supplies & Services,D3311,16/09/2014,60025772_1,1196.55,Revenue,20002254,GRAFTON MERCHANTING GB LTD
Oxford City Council,Direct Services,Direct Services Supplies & Services,D3311,16/09/2014,60025773_0,729.75,Revenue,20002254,GRAFTON MERCHANTING GB LTD
Oxford City Council,Direct Services,Direct Services Supplies & Services,D3311,16/09/2014,60025775_0,584.78,Revenue,20002254,GRAFTON MERCHANTING GB LTD
Oxford City Council,Direct Services,Direct Services Supplies & Services,D3311,16/09/2014,60025776_1,1535.38,Revenue,20002254,GRAFTON MERCHANTING GB LTD
Oxford City Council,Direct Services,Direct Services Supplies & Services,D3311,16/09/2014,60025777_0,1204.54,Revenue,20002254,GRAFTON MERCHANTING GB LTD
Oxford City Council,Direct Services,Direct Services Supplies & Services,D3311,16/09/2014,60025780_1,639.73,Revenue,20002254,GRAFTON MERCHANTING GB LTD
Oxford City Council,Direct Services,Materials,D3021,16/09/2014,60025782_1,916.29,Revenue,20002254,GRAFTON MERCHANTING GB LTD
Oxford City Council,Direct Services,Materials,D3021,16/09/2014,60025893_0,1632.91,Revenue,20002254,GRAFTON MERCHANTING GB LTD
Oxford City Council,Direct Services,Direct Services Supplies & Services,D3311,16/09/2014,60025900_1,681.56,Revenue,20002254,GRAFTON MERCHANTING GB LTD
Oxford City Council,Direct Services,Direct Services Supplies & Services,D3311,16/09/2014,60025901_0,910.84,Revenue,20002254,GRAFTON MERCHANTING GB LTD
Oxford City Council,Direct Services,Direct Services Supplies & Services,D3311,16/09/2014,60025902_1,749.01,Revenue,20002254,GRAFTON MERCHANTING GB LTD
Oxford City Council,Direct Services,Materials,D3021,16/09/2014,60025907_0,840.96,Revenue,20002254,GRAFTON MERCHANTING GB LTD
Oxford City Council,Direct Services,Materials,D3021   ,23/09/2014,60025979_0,694.56,Revenue,20002254,GRAFTON MERCHANTING GB LTD
Oxford City Council,Direct Services,Direct Services Supplies & Services,D3311   ,23/09/2014,60025981_1,668.07,Revenue,20002254,GRAFTON MERCHANTING GB LTD
Oxford City Council,Direct Services,Direct Services Supplies & Services,D3311   ,23/09/2014,60025982_1,654.58,Revenue,20002254,GRAFTON MERCHANTING GB LTD
Oxford City Council,Direct Services,Materials,D3021   ,23/09/2014,60025985_1,1600.06,Revenue,20002254,GRAFTON MERCHANTING GB LTD
Oxford City Council,Direct Services,Direct Services Supplies & Services,D3311   ,23/09/2014,60025989_1,710.29,Revenue,20002254,GRAFTON MERCHANTING GB LTD
Oxford City Council,Direct Services,Direct Services Supplies & Services,D3311   ,23/09/2014,60025993_1,800.29,Revenue,20002254,GRAFTON MERCHANTING GB LTD
Oxford City Council,Direct Services,Materials,D3021   ,23/09/2014,60026008_1,511.07,Revenue,20002254,GRAFTON MERCHANTING GB LTD
Oxford City Council,Direct Services,Direct Services Supplies & Services,D3311   ,23/09/2014,60026099_1,815.14,Revenue,20002254,GRAFTON MERCHANTING GB LTD
Oxford City Council,Direct Services,Materials,D3021   ,23/09/2014,60026116_2,2777.45,Revenue,20002254,GRAFTON MERCHANTING GB LTD
Oxford City Council,Direct Services,Direct Services Supplies & Services,D3311   ,23/09/2014,60026124_2,1308.03,Revenue,20002254,GRAFTON MERCHANTING GB LTD
Oxford City Council,Direct Services,Direct Services Supplies & Services,D3311   ,23/09/2014,60026128_1,720.78,Revenue,20002254,GRAFTON MERCHANTING GB LTD
Oxford City Council,Direct Services,Direct Services Supplies & Services,D3311   ,23/09/2014,60026130_1,1269.24,Revenue,20002254,GRAFTON MERCHANTING GB LTD
Oxford City Council,Direct Services,Direct Services Supplies & Services,D3311   ,23/09/2014,60026131_1,654.58,Revenue,20002254,GRAFTON MERCHANTING GB LTD
Oxford City Council,Direct Services,Direct Services Supplies & Services,D3311   ,23/09/2014,60026134_1,654.58,Revenue,20002254,GRAFTON MERCHANTING GB LTD
Oxford City Council,Direct Services,Materials,D3021,30/09/2014,60026242_2,1437.7,Revenue,20002254,GRAFTON MERCHANTING GB LTD
Oxford City Council,Direct Services,Materials,D3021,30/09/2014,60026244_2,4215.7,Revenue,20002254,GRAFTON MERCHANTING GB LTD
Oxford City Council,Direct Services,Materials,D3021,30/09/2014,60026245_0,1394.52,Revenue,20002254,GRAFTON MERCHANTING GB LTD
Oxford City Council,Direct Services,Direct Services Supplies & Services,D3311,30/09/2014,60026246_2,699.57,Revenue,20002254,GRAFTON MERCHANTING GB LTD
Oxford City Council,Direct Services,Direct Services Supplies & Services,D3311,30/09/2014,60026247_0,1035.71,Revenue,20002254,GRAFTON MERCHANTING GB LTD
Oxford City Council,Direct Services,Direct Services Supplies & Services,D3311,30/09/2014,60026251_0,754.71,Revenue,20002254,GRAFTON MERCHANTING GB LTD
Oxford City Council,Direct Services,Direct Services Supplies & Services,D3311,30/09/2014,60026252_2,654.58,Revenue,20002254,GRAFTON MERCHANTING GB LTD
Oxford City Council,Direct Services,Direct Services Supplies & Services,D3311,30/09/2014,60026253_0,654.58,Revenue,20002254,GRAFTON MERCHANTING GB LTD
Oxford City Council,Direct Services,Direct Services Supplies & Services,D3311,30/09/2014,60026254_2,690.82,Revenue,20002254,GRAFTON MERCHANTING GB LTD
Oxford City Council,Direct Services,Direct Services Supplies & Services,D3311,30/09/2014,60026255_0,1452.07,Revenue,20002254,GRAFTON MERCHANTING GB LTD
Oxford City Council,Direct Services,Direct Services Supplies & Services,D3311,30/09/2014,60026256_2,1375.1,Revenue,20002254,GRAFTON MERCHANTING GB LTD
Oxford City Council,Direct Services,Direct Services Supplies & Services,D3311,30/09/2014,60026258_2,1306.45,Revenue,20002254,GRAFTON MERCHANTING GB LTD
Oxford City Council,Direct Services,Direct Services Supplies & Services,D3311,30/09/2014,60026262_2,840.09,Revenue,20002254,GRAFTON MERCHANTING GB LTD
Oxford City Council,Direct Services,Direct Services Supplies & Services,D3311,30/09/2014,60026266_2,552.69,Revenue,20002254,GRAFTON MERCHANTING GB LTD
Oxford City Council,Direct Services,Direct Services Supplies & Services,D3311,30/09/2014,60026267_0,531.77,Revenue,20002254,GRAFTON MERCHANTING GB LTD
Oxford City Council,Direct Services,Materials,D3021,30/09/2014,60026269_0,947.76,Revenue,20002254,GRAFTON MERCHANTING GB LTD
Oxford City Council,Direct Services,Materials,D3021,30/09/2014,60026270_2,3364.23,Revenue,20002254,GRAFTON MERCHANTING GB LTD
Oxford City Council,Direct Services,Materials,D3021,30/09/2014,60026274_2,1057.45,Revenue,20002254,GRAFTON MERCHANTING GB LTD
Oxford City Council,Direct Services,Direct Services Supplies & Services,D3311,30/09/2014,60026332_2,682.95,Revenue,20002254,GRAFTON MERCHANTING GB LTD
Oxford City Council,Direct Services,Direct Services Supplies & Services,D3311,30/09/2014,60026333_0,654.58,Revenue,20002254,GRAFTON MERCHANTING GB LTD
Oxford City Council,Direct Services,Materials,D3021,30/09/2014,60026355_1,847.85,Revenue,20002254,GRAFTON MERCHANTING GB LTD
Oxford City Council,Direct Services,Materials,D3021,30/09/2014,60026357_1,1572.53,Revenue,20002254,GRAFTON MERCHANTING GB LTD
Oxford City Council,Direct Services,Direct Services Supplies & Services,D3311,30/09/2014,60026360_1,871.25,Revenue,20002254,GRAFTON MERCHANTING GB LTD
Oxford City Council,Direct Services,Direct Services Supplies & Services,D3311,30/09/2014,60026361_1,789.36,Revenue,20002254,GRAFTON MERCHANTING GB LTD
Oxford City Council,Direct Services,Direct Services Supplies & Services,D3311,30/09/2014,60026362_1,654.58,Revenue,20002254,GRAFTON MERCHANTING GB LTD
Oxford City Council,Direct Services,Direct Services Supplies & Services,D3311,30/09/2014,60026534_0,815.14,Revenue,20002254,GRAFTON MERCHANTING GB LTD
Oxford City Council,Direct Services,Direct Services Supplies & Services,D3311,30/09/2014,60026535_2,654.58,Revenue,20002254,GRAFTON MERCHANTING GB LTD
Oxford City Council,Direct Services,Direct Services Supplies & Services,D3311,30/09/2014,60026536_0,654.58,Revenue,20002254,GRAFTON MERCHANTING GB LTD
Oxford City Council,Direct Services,Materials,D3021,30/09/2014,60026537_2,1411.51,Revenue,20002254,GRAFTON MERCHANTING GB LTD
Oxford City Council,Direct Services,Materials,D3021,30/09/2014,60026538_0,1960.6,Revenue,20002254,GRAFTON MERCHANTING GB LTD
Oxford City Council,Direct Services,Materials,D3021,30/09/2014,60026539_2,584.69,Revenue,20002254,GRAFTON MERCHANTING GB LTD
Oxford City Council,Direct Services,Materials,D3021   ,09/09/2014,60025705_1,4612,Revenue,20002282,M&J ENGINEERS LTD
Oxford City Council,Direct Services,Main Contractor,Y021,27/08/2014,1007732_1,9500,Capital,20002296,METRIC GROUP LIMITED
Oxford City Council,Suspense,Other Miscellaneous Expenses,D3811,16/09/2014,46283028_1,989.76,Revenue,20002299,C BREWER & SONS LTD
Oxford City Council,Suspense,Other Miscellaneous Expenses,D3811,16/09/2014,46283030_1,1173.56,Revenue,20002299,C BREWER & SONS LTD
Oxford City Council,Suspense,Other Miscellaneous Expenses,D3811,16/09/2014,46283034_1,2812.01,Revenue,20002299,C BREWER & SONS LTD
Oxford City Council,Direct Services,Materials,D3021,08/07/2014,60022769_2,1033.02,Revenue,20002299,C BREWER & SONS LTD
Oxford City Council,Direct Services,Materials,D3021,19/08/2014,60024302_0,689.04,Revenue,20002299,C BREWER & SONS LTD
Oxford City Council,Direct Services,Materials,D3021,27/08/2014,60024915_1,1113.62,Revenue,20002299,C BREWER & SONS LTD
Oxford City Council,Direct Services,Materials,D3021   ,02/09/2014,60025249_2,2152.63,Revenue,20002299,C BREWER & SONS LTD
Oxford City Council,Direct Services,Materials,D3021   ,09/09/2014,60025544_0,1169.97,Revenue,20002299,C BREWER & SONS LTD
Oxford City Council,Direct Services,Materials,D3021,30/09/2014,60026313_0,748.98,Revenue,20002299,C BREWER & SONS LTD
Oxford City Council,Direct Services,Direct Services Supplies & Services,D3311,30/09/2014,60026311_0,12540.74,Revenue,20002323,JOHN NICHOLLS (TRADING) LTD
Oxford City Council,Direct Services,Short Courses,A0622,05/08/2014,1007973_1,12800,Revenue,20002333,ACTIVATE LEARNING
Oxford City Council,Direct Services,Materials,D3021   ,23/09/2014,60026115_1,613.53,Revenue,20002335,OXFORD FENCING SUPPLIES
Oxford City Council,Direct Services,Materials,D3021,30/09/2014,60026439_2,1111.21,Revenue,20002335,OXFORD FENCING SUPPLIES
Oxford City Council,"Leisure, Parks & Communities",General Contracted Services,D3401,27/08/2014,1008481_1,509.2,Revenue,20002340,OXFORD POOLS LIMITED
Oxford City Council,Direct Services,Materials,D3021,19/08/2014,60024348_0,2170.18,Revenue,20002347,REXEL UK LIMITED
Oxford City Council,Direct Services,Materials,D3021,19/08/2014,60024348_1,105.96,Revenue,20002347,REXEL UK LIMITED
Oxford City Council,Direct Services,Health & Safety,B1309   ,09/09/2014,60025730_1,1512.94,Revenue,20002347,REXEL UK LIMITED
Oxford City Council,Direct Services,Services Maintenance (Planned),B1103   ,29/07/2014,60023683_2,708.17,Revenue,20002351,PHS GROUP PLC
Oxford City Council,Direct Services,Veh.maint direct purchase,D3031   ,01/07/2014,47975734_0,2658.14,Revenue,20002387,AEBI SCHMIDT UK LTD
Oxford City Council,Direct Services,Veh.maint direct purchase,D3031   ,01/07/2014,47975764_0,1242.84,Revenue,20002387,AEBI SCHMIDT UK LTD
Oxford City Council,Direct Services,Veh.maint direct purchase,D3031   ,01/07/2014,47975764_1,155.54,Revenue,20002387,AEBI SCHMIDT UK LTD
Oxford City Council,Direct Services,Veh.maint direct purchase,D3031   ,01/07/2014,47975764_2,176.94,Revenue,20002387,AEBI SCHMIDT UK LTD
Oxford City Council,Direct Services,Veh.maint direct purchase,D3031   ,08/07/2014,47975890_1,534.25,Revenue,20002387,AEBI SCHMIDT UK LTD
Oxford City Council,Direct Services,Veh.maint direct purchase,D3031   ,23/09/2014,47976505_1,519.52,Revenue,20002387,AEBI SCHMIDT UK LTD
Oxford City Council,Direct Services,Veh.maint direct purchase,D3031   ,23/09/2014,47976505_2,123.1,Revenue,20002387,AEBI SCHMIDT UK LTD
Oxford City Council,Direct Services,Veh.maint direct purchase,D3031   ,23/09/2014,47976505_3,48.74,Revenue,20002387,AEBI SCHMIDT UK LTD
Oxford City Council,Direct Services,Veh.maint direct purchase,D3031   ,23/09/2014,47976505_4,48.74,Revenue,20002387,AEBI SCHMIDT UK LTD
Oxford City Council,Direct Services,Sign Shop Materials,D3018   ,29/07/2014,60023565_2,1665,Revenue,20002393,SIGNPOST SOLUTIONS LTD T/AS SIGNFIX
Oxford City Council,"Leisure, Parks & Communities",General Contracted Services,D3401,05/08/2014,1007880_1,6000,Revenue,20002401,SOUTH OXFORDSHIRE DISTRICT COUNCIL
Oxford City Council,Environmental Development,General Contracted Services,D3401,19/08/2014,1008256_1,7500,Revenue,20002401,SOUTH OXFORDSHIRE DISTRICT COUNCIL
Oxford City Council,Direct Services,Electricity,B1501,01/07/2014,1007017_1,865,Revenue,20002402,SOUTHERN ELECTRIC PLC
Oxford City Council,Direct Services,Electricity,B1501,15/07/2014,1007293_1,1572.28,Revenue,20002402,SOUTHERN ELECTRIC PLC
Oxford City Council,Direct Services,Electricity,B1501,22/07/2014,1007522_1,2151.91,Revenue,20002402,SOUTHERN ELECTRIC PLC
Oxford City Council,Regeneration and Major Projects Team,Electricity,B1501,29/07/2014,1007710_1,1051.97,Revenue,20002402,SOUTHERN ELECTRIC PLC
Oxford City Council,Customer Services,Electricity,B1501,29/07/2014,1007721_1,601.57,Revenue,20002402,SOUTHERN ELECTRIC PLC
Oxford City Council,HRA,Electricity,B1501,12/08/2014,1008030_1,3262.12,Revenue,20002402,SOUTHERN ELECTRIC PLC
Oxford City Council,Direct Services,Electricity,B1501,19/08/2014,1008192_1,1680.6,Revenue,20002402,SOUTHERN ELECTRIC PLC
Oxford City Council,"Leisure, Parks & Communities",Electricity,B1501,19/08/2014,1008223_1,528.83,Revenue,20002402,SOUTHERN ELECTRIC PLC
Oxford City Council,"Leisure, Parks & Communities",Electricity,B1501,19/08/2014,1008224_1,847.14,Revenue,20002402,SOUTHERN ELECTRIC PLC
Oxford City Council,"Leisure, Parks & Communities",Electricity,B1501,19/08/2014,1008230_1,641.08,Revenue,20002402,SOUTHERN ELECTRIC PLC
Oxford City Council,"Leisure, Parks & Communities",Electricity,B1501,19/08/2014,1008231_1,661.59,Revenue,20002402,SOUTHERN ELECTRIC PLC
Oxford City Council,Regeneration and Major Projects Team,Electricity,B1501,19/08/2014,1008237_1,781.22,Revenue,20002402,SOUTHERN ELECTRIC PLC
Oxford City Council,Regeneration and Major Projects Team,Electricity,B1501,19/08/2014,1008244_1,951.26,Revenue,20002402,SOUTHERN ELECTRIC PLC
Oxford City Council,Direct Services,Electricity,B1501,19/08/2014,1008247_1,2232.39,Revenue,20002402,SOUTHERN ELECTRIC PLC
Oxford City Council,Regeneration and Major Projects Team,Electricity,B1501,19/08/2014,1008248_1,3034.45,Revenue,20002402,SOUTHERN ELECTRIC PLC
Oxford City Council,"Leisure, Parks & Communities",Electricity,B1501,19/08/2014,1008254_1,1735.15,Revenue,20002402,SOUTHERN ELECTRIC PLC
Oxford City Council,"Policy, Culture and Communication",Electricity,B1501,09/09/2014,1008662_1,712.09,Revenue,20002402,SOUTHERN ELECTRIC PLC
Oxford City Council,Housing and Property,Electricity,B1501,09/09/2014,1008664_1,597.86,Revenue,20002402,SOUTHERN ELECTRIC PLC
Oxford City Council,Direct Services,Electricity,B1501,16/09/2014,1009001_1,1680.48,Revenue,20002402,SOUTHERN ELECTRIC PLC
Oxford City Council,Direct Services,Electricity,B1501,30/09/2014,1009058_1,980.74,Revenue,20002402,SOUTHERN ELECTRIC PLC
Oxford City Council,Direct Services,Electricity,B1501,30/09/2014,1009089_1,514.84,Revenue,20002402,SOUTHERN ELECTRIC PLC
Oxford City Council,"Leisure, Parks & Communities",Electricity,B1501,30/09/2014,1009097_1,535.79,Revenue,20002402,SOUTHERN ELECTRIC PLC
Oxford City Council,Housing and Property,Electricity,B1501,08/07/2014,46282416_1,5566.58,Revenue,20002402,SOUTHERN ELECTRIC PLC
Oxford City Council,HRA,Electricity,B1501,15/07/2014,46282461_1,337.8,Revenue,20002402,SOUTHERN ELECTRIC PLC
Oxford City Council,HRA,Electricity,B1501,15/07/2014,46282461_2,890.47,Revenue,20002402,SOUTHERN ELECTRIC PLC
Oxford City Council,Housing and Property,Electricity,B1501,22/07/2014,46282542_1,2104.81,Revenue,20002402,SOUTHERN ELECTRIC PLC
Oxford City Council,HRA,Electricity,B1501,12/08/2014,46282709_1,861.71,Revenue,20002402,SOUTHERN ELECTRIC PLC
Oxford City Council,HRA,Electricity,B1501,12/08/2014,46282709_10,945.68,Revenue,20002402,SOUTHERN ELECTRIC PLC
Oxford City Council,HRA,Electricity,B1501,12/08/2014,46282709_11,514.83,Revenue,20002402,SOUTHERN ELECTRIC PLC
Oxford City Council,HRA,Electricity,B1501,12/08/2014,46282709_12,4424.75,Revenue,20002402,SOUTHERN ELECTRIC PLC
Oxford City Council,HRA,Electricity,B1501,12/08/2014,46282709_13,999.39,Revenue,20002402,SOUTHERN ELECTRIC PLC
Oxford City Council,HRA,Electricity,B1501,12/08/2014,46282709_14,1522.76,Revenue,20002402,SOUTHERN ELECTRIC PLC
Oxford City Council,HRA,Electricity,B1501,12/08/2014,46282709_2,215.51,Revenue,20002402,SOUTHERN ELECTRIC PLC
Oxford City Council,HRA,Electricity,B1501,12/08/2014,46282709_3,407.98,Revenue,20002402,SOUTHERN ELECTRIC PLC
Oxford City Council,HRA,Electricity,B1501,12/08/2014,46282709_4,-76.58,Revenue,20002402,SOUTHERN ELECTRIC PLC
Oxford City Council,HRA,Electricity,B1501,12/08/2014,46282709_5,950.57,Revenue,20002402,SOUTHERN ELECTRIC PLC
Oxford City Council,HRA,Electricity,B1501,12/08/2014,46282709_6,2056.27,Revenue,20002402,SOUTHERN ELECTRIC PLC
Oxford City Council,HRA,Electricity,B1501,12/08/2014,46282709_7,19110.77,Revenue,20002402,SOUTHERN ELECTRIC PLC
Oxford City Council,HRA,Electricity,B1501,12/08/2014,46282709_8,1118.56,Revenue,20002402,SOUTHERN ELECTRIC PLC
Oxford City Council,HRA,Electricity,B1501,12/08/2014,46282709_9,993.14,Revenue,20002402,SOUTHERN ELECTRIC PLC
Oxford City Council,Housing and Property,Electricity,B1501,27/08/2014,46282880_1,3883.11,Revenue,20002402,SOUTHERN ELECTRIC PLC
Oxford City Council,HRA,Electricity,B1501,30/09/2014,46283254_1,967.93,Revenue,20002402,SOUTHERN ELECTRIC PLC
Oxford City Council,HRA,Electricity,B1501,30/09/2014,46283254_2,163.76,Revenue,20002402,SOUTHERN ELECTRIC PLC
Oxford City Council,HRA,Electricity,B1501,30/09/2014,46283254_3,5389.43,Revenue,20002402,SOUTHERN ELECTRIC PLC
Oxford City Council,HRA,Electricity,B1501,30/09/2014,46283254_4,1647.19,Revenue,20002402,SOUTHERN ELECTRIC PLC
Oxford City Council,HRA,Electricity,B1501,30/09/2014,46283254_5,905.31,Revenue,20002402,SOUTHERN ELECTRIC PLC
Oxford City Council,HRA,Water & Sewerage Charges,B1830,01/07/2014,1006829_1,1007.58,Revenue,20002423,THAMES WATER UTILITIES LTD
Oxford City Council,Direct Services,Water & Sewerage Charges,B1830,01/07/2014,1006886_1,612,Revenue,20002423,THAMES WATER UTILITIES LTD
Oxford City Council,Regeneration and Major Projects Team,Water & Sewerage Charges,B1830,01/07/2014,1006929_1,1580.73,Revenue,20002423,THAMES WATER UTILITIES LTD
Oxford City Council,"Leisure, Parks & Communities",Water & Sewerage Charges,B1830,01/07/2014,1007058_1,3306.43,Revenue,20002423,THAMES WATER UTILITIES LTD
Oxford City Council,Direct Services,Water & Sewerage Charges,B1830,15/07/2014,1007142_1,1400.53,Revenue,20002423,THAMES WATER UTILITIES LTD
Oxford City Council,Regeneration and Major Projects Team,Water & Sewerage Charges,B1830,08/07/2014,1007143_1,681.97,Revenue,20002423,THAMES WATER UTILITIES LTD
Oxford City Council,Direct Services,Water & Sewerage Charges,B1830,15/07/2014,1007191_1,753.64,Revenue,20002423,THAMES WATER UTILITIES LTD
Oxford City Council,HRA,Water & Sewerage Charges,B1830,29/07/2014,1007567_1,580.23,Revenue,20002423,THAMES WATER UTILITIES LTD
Oxford City Council,Direct Services,Water & Sewerage Charges,B1830,29/07/2014,1007758_1,811.49,Revenue,20002423,THAMES WATER UTILITIES LTD
Oxford City Council,HRA,Water & Sewerage Charges,B1830,05/08/2014,1007763_1,1122.87,Revenue,20002423,THAMES WATER UTILITIES LTD
Oxford City Council,Regeneration and Major Projects Team,Water & Sewerage Charges,B1830,29/07/2014,1007792_1,1847.86,Revenue,20002423,THAMES WATER UTILITIES LTD
Oxford City Council,HRA,Water & Sewerage Charges,B1830,05/08/2014,1007894_1,652.8,Revenue,20002423,THAMES WATER UTILITIES LTD
Oxford City Council,HRA,Water & Sewerage Charges,B1830,05/08/2014,1007895_1,1545.9,Revenue,20002423,THAMES WATER UTILITIES LTD
Oxford City Council,HRA,Water & Sewerage Charges,B1830,12/08/2014,1008121_1,605.97,Revenue,20002423,THAMES WATER UTILITIES LTD
Oxford City Council,HRA,Water & Sewerage Charges,B1830,23/09/2014,1008267_1,839.26,Revenue,20002423,THAMES WATER UTILITIES LTD
Oxford City Council,HRA,Water & Sewerage Charges,B1830,02/09/2014,1008430_1,692.95,Revenue,20002423,THAMES WATER UTILITIES LTD
Oxford City Council,Housing and Property,Water & Sewerage Charges,B1830,02/09/2014,1008431_1,592.01,Revenue,20002423,THAMES WATER UTILITIES LTD
Oxford City Council,Direct Services,Water & Sewerage Charges,B1830,27/08/2014,1008478_1,586.7,Revenue,20002423,THAMES WATER UTILITIES LTD
Oxford City Council,HRA,Water & Sewerage Charges,B1830,16/09/2014,1008776_1,1177.48,Revenue,20002423,THAMES WATER UTILITIES LTD
Oxford City Council,Regeneration and Major Projects Team,Water & Sewerage Charges,B1830,09/09/2014,1008800_1,623.42,Revenue,20002423,THAMES WATER UTILITIES LTD
Oxford City Council,"Leisure, Parks & Communities",Water & Sewerage Charges,B1830,09/09/2014,1008801_1,954.39,Revenue,20002423,THAMES WATER UTILITIES LTD
Oxford City Council,HRA,Water & Sewerage Charges,B1830,23/09/2014,1008968_1,803.97,Revenue,20002423,THAMES WATER UTILITIES LTD
Oxford City Council,Regeneration and Major Projects Team,Water & Sewerage Charges,B1830,30/09/2014,1009196_1,1927.72,Revenue,20002423,THAMES WATER UTILITIES LTD
Oxford City Council,HRA,Water & Sewerage Charges,B1830,30/09/2014,1009198_1,690.87,Revenue,20002423,THAMES WATER UTILITIES LTD
Oxford City Council,Direct Services,Water & Sewerage Charges,B1830,30/09/2014,1009200_1,558.54,Revenue,20002423,THAMES WATER UTILITIES LTD
Oxford City Council,"Leisure, Parks & Communities",Water & Sewerage Charges,B1830,30/09/2014,1009324_1,4708.55,Revenue,20002423,THAMES WATER UTILITIES LTD
Oxford City Council,Law and Governance,Books & Publications,D3302,23/09/2014,1008987_1,650.45,Revenue,20002433,LEXISNEXIS BUTTERWORTHS
Oxford City Council,Direct Services,Materials,D3021   ,29/07/2014,60023707_1,949.55,Revenue,20002434,TOOLMASTER (OXFORD) LTD
Oxford City Council,Direct Services,Materials,D3021,19/08/2014,60024327_2,529.43,Revenue,20002434,TOOLMASTER (OXFORD) LTD
Oxford City Council,Direct Services,Materials,D3021,19/08/2014,60024328_0,603.35,Revenue,20002434,TOOLMASTER (OXFORD) LTD
Oxford City Council,Direct Services,Materials,D3021   ,09/09/2014,60025613_0,1597.58,Revenue,20002434,TOOLMASTER (OXFORD) LTD
Oxford City Council,Direct Services,Materials,D3021,16/09/2014,60025823_0,586.07,Revenue,20002434,TOOLMASTER (OXFORD) LTD
Oxford City Council,Direct Services,Materials,D3021,16/09/2014,60025879_0,621.25,Revenue,20002434,TOOLMASTER (OXFORD) LTD
Oxford City Council,Direct Services,Materials,D3021,16/09/2014,60025880_1,1945.46,Revenue,20002434,TOOLMASTER (OXFORD) LTD
Oxford City Council,Direct Services,Veh.maint direct purchase,D3031   ,09/09/2014,47976590_2,482.14,Revenue,20002435,P A TURNEY LTD
Oxford City Council,Direct Services,Veh.maint direct purchase,D3031   ,09/09/2014,47976590_3,490.41,Revenue,20002435,P A TURNEY LTD
Oxford City Council,Direct Services,Veh.maint direct purchase,D3031   ,09/09/2014,47976595_0,1401.4,Revenue,20002435,P A TURNEY LTD
Oxford City Council,Direct Services,Tools,D3023   ,22/07/2014,60023317_0,2350.25,Revenue,20002443,UNIVERSAL ACCESS & POWER PLAN
Oxford City Council,Direct Services,Tools,D3023   ,29/07/2014,60023622_0,1806.5,Revenue,20002443,UNIVERSAL ACCESS & POWER PLAN
Oxford City Council,Direct Services,Tools,D3023   ,29/07/2014,60023625_2,623,Revenue,20002443,UNIVERSAL ACCESS & POWER PLAN
Oxford City Council,Direct Services,Category 'B' Stores,D3022,19/08/2014,60024332_0,936.77,Revenue,20002443,UNIVERSAL ACCESS & POWER PLAN
Oxford City Council,Direct Services,Materials,D3021,19/08/2014,60024458_1,2938.5,Revenue,20002443,UNIVERSAL ACCESS & POWER PLAN
Oxford City Council,Direct Services,Tools,D3023,19/08/2014,60024515_1,605,Revenue,20002443,UNIVERSAL ACCESS & POWER PLAN
Oxford City Council,Direct Services,Tools,D3023   ,02/09/2014,60025214_0,816.9,Revenue,20002443,UNIVERSAL ACCESS & POWER PLAN
Oxford City Council,Direct Services,Materials,D3021   ,02/09/2014,60025216_0,633,Revenue,20002443,UNIVERSAL ACCESS & POWER PLAN
Oxford City Council,Direct Services,Tools,D3023   ,02/09/2014,60025218_0,1070,Revenue,20002443,UNIVERSAL ACCESS & POWER PLAN
Oxford City Council,Direct Services,Direct Services Supplies & Services,D3311   ,02/09/2014,60025221_2,530,Revenue,20002443,UNIVERSAL ACCESS & POWER PLAN
Oxford City Council,Direct Services,Tools,D3023   ,09/09/2014,60025638_0,761.9,Revenue,20002443,UNIVERSAL ACCESS & POWER PLAN
Oxford City Council,Direct Services,Materials,D3021   ,01/07/2014,60022493_0,875.69,Revenue,20002464,WOLSELEY UK LIMITED
Oxford City Council,Direct Services,Materials,D3021,08/07/2014,60022677_2,1135.89,Revenue,20002464,WOLSELEY UK LIMITED
Oxford City Council,Direct Services,Materials,D3021   ,22/07/2014,60023394_2,1503.25,Revenue,20002464,WOLSELEY UK LIMITED
Oxford City Council,Direct Services,Direct Services Supplies & Services,D3311   ,12/08/2014,60024160_1,617.14,Revenue,20002464,WOLSELEY UK LIMITED
Oxford City Council,Direct Services,Materials,D3021   ,12/08/2014,60024177_0,1834.58,Revenue,20002464,WOLSELEY UK LIMITED
Oxford City Council,Direct Services,Materials,D3021,27/08/2014,60024973_1,630.6,Revenue,20002464,WOLSELEY UK LIMITED
Oxford City Council,Direct Services,Materials,D3021,27/08/2014,60024976_1,744.97,Revenue,20002464,WOLSELEY UK LIMITED
Oxford City Council,Direct Services,Materials,D3021   ,02/09/2014,60025242_0,1283.97,Revenue,20002464,WOLSELEY UK LIMITED
Oxford City Council,Direct Services,Materials,D3021   ,02/09/2014,60025243_2,864.54,Revenue,20002464,WOLSELEY UK LIMITED
Oxford City Council,Direct Services,Materials,D3021   ,02/09/2014,60025244_0,2267.73,Revenue,20002464,WOLSELEY UK LIMITED
Oxford City Council,Direct Services,Direct Services Supplies & Services,D3311   ,09/09/2014,60025402_0,613.39,Revenue,20002464,WOLSELEY UK LIMITED
Oxford City Council,Direct Services,Materials,D3021   ,09/09/2014,60025403_2,1834.09,Revenue,20002464,WOLSELEY UK LIMITED
Oxford City Council,Direct Services,Materials,D3021   ,09/09/2014,60025404_0,1586.16,Revenue,20002464,WOLSELEY UK LIMITED
Oxford City Council,Direct Services,Materials,D3021   ,09/09/2014,60025516_0,1395.17,Revenue,20002464,WOLSELEY UK LIMITED
Oxford City Council,Direct Services,Materials,D3021   ,09/09/2014,60025522_0,1963.64,Revenue,20002464,WOLSELEY UK LIMITED
Oxford City Council,Direct Services,Materials,D3021   ,09/09/2014,60025527_0,680.36,Revenue,20002464,WOLSELEY UK LIMITED
Oxford City Council,Direct Services,Materials,D3021   ,09/09/2014,60025530_2,2378.28,Revenue,20002464,WOLSELEY UK LIMITED
Oxford City Council,Direct Services,Materials,D3021   ,22/07/2014,60023370_2,627.96,Revenue,20002467,AWBS LTD
Oxford City Council,Direct Services,Materials,D3021   ,22/07/2014,60023384_2,575.63,Revenue,20002467,AWBS LTD
Oxford City Council,"Leisure, Parks & Communities",Main Contractor,Y021,12/08/2014,1008104_1,182246.31,Capital,20002494,E W BEARD LTD
Oxford City Council,"Leisure, Parks & Communities",Main Contractor,Y021,02/09/2014,1008583_1,20530.69,Capital,20002494,E W BEARD LTD
Oxford City Council,Direct Services,Direct Services Sub Contractors,B1111   ,22/07/2014,60023503_1,3910,Revenue,20002513,MARCUS COPELIN
Oxford City Council,HRA,Fire Alarms and Emergency Lighting,B1241,15/07/2014,46282485_1,6773.01,Revenue,20002568,PYROTEC SERVICES LTD
Oxford City Council,Housing and Property,Fire Alarms and Emergency Lighting,B1241,15/07/2014,46282485_10,50,Revenue,20002568,PYROTEC SERVICES LTD
Oxford City Council,Regeneration and Major Projects Team,Fire Alarms and Emergency Lighting,B1241,15/07/2014,46282485_11,4575.9,Revenue,20002568,PYROTEC SERVICES LTD
Oxford City Council,Regeneration and Major Projects Team,Fire Alarms and Emergency Lighting,B1241,15/07/2014,46282485_12,45.25,Revenue,20002568,PYROTEC SERVICES LTD
Oxford City Council,Regeneration and Major Projects Team,Fire Alarms and Emergency Lighting,B1241,15/07/2014,46282485_13,28.44,Revenue,20002568,PYROTEC SERVICES LTD
Oxford City Council,Regeneration and Major Projects Team,Main Contractor,Y021,15/07/2014,46282485_14,8584,Capital,20002568,PYROTEC SERVICES LTD
Oxford City Council,Direct Services,Fire Alarms and Emergency Lighting,B1241,15/07/2014,46282485_2,243.75,Revenue,20002568,PYROTEC SERVICES LTD
Oxford City Council,Direct Services,Fire Alarms and Emergency Lighting,B1241,15/07/2014,46282485_3,281.25,Revenue,20002568,PYROTEC SERVICES LTD
Oxford City Council,Direct Services,Fire Alarms and Emergency Lighting,B1241,15/07/2014,46282485_4,243.75,Revenue,20002568,PYROTEC SERVICES LTD
Oxford City Council,Direct Services,Fire Alarms and Emergency Lighting,B1241,15/07/2014,46282485_5,312.51,Revenue,20002568,PYROTEC SERVICES LTD
Oxford City Council,Direct Services,Fire Alarms and Emergency Lighting,B1241,15/07/2014,46282485_6,1138.5,Revenue,20002568,PYROTEC SERVICES LTD
Oxford City Council,Direct Services,Fire Alarms and Emergency Lighting,B1241,15/07/2014,46282485_7,48.26,Revenue,20002568,PYROTEC SERVICES LTD
Oxford City Council,Regeneration and Major Projects Team,Fire Alarms and Emergency Lighting,B1241,15/07/2014,46282485_8,425.45,Revenue,20002568,PYROTEC SERVICES LTD
Oxford City Council,Housing and Property,Fire Alarms and Emergency Lighting,B1241,15/07/2014,46282485_9,1377.22,Revenue,20002568,PYROTEC SERVICES LTD
Oxford City Council,HRA,Fire Alarms and Emergency Lighting,B1241,12/08/2014,46282776_1,18143.19,Revenue,20002568,PYROTEC SERVICES LTD
Oxford City Council,Direct Services,Fire Alarms and Emergency Lighting,B1241,12/08/2014,46282776_2,40,Revenue,20002568,PYROTEC SERVICES LTD
Oxford City Council,Regeneration and Major Projects Team,Fire Alarms and Emergency Lighting,B1241,12/08/2014,46282776_3,1149.99,Revenue,20002568,PYROTEC SERVICES LTD
Oxford City Council,Housing and Property,Fire Alarms and Emergency Lighting,B1241,12/08/2014,46282776_4,1303.36,Revenue,20002568,PYROTEC SERVICES LTD
Oxford City Council,Regeneration and Major Projects Team,Fire Alarms and Emergency Lighting,B1241,12/08/2014,46282776_5,1960,Revenue,20002568,PYROTEC SERVICES LTD
Oxford City Council,"Leisure, Parks & Communities",Fire Alarms and Emergency Lighting,B1241,12/08/2014,46282776_6,1128.6,Revenue,20002568,PYROTEC SERVICES LTD
Oxford City Council,Regeneration and Major Projects Team,Fire Alarms and Emergency Lighting,B1241,12/08/2014,46282776_7,880,Revenue,20002568,PYROTEC SERVICES LTD
Oxford City Council,Regeneration and Major Projects Team,Main Contractor,Y021,12/08/2014,46282776_8,3773,Capital,20002568,PYROTEC SERVICES LTD
Oxford City Council,HRA,Fire Alarms and Emergency Lighting,B1241,02/09/2014,46282924_1,9068.88,Revenue,20002568,PYROTEC SERVICES LTD
Oxford City Council,Housing and Property,Fire Alarms and Emergency Lighting,B1241,02/09/2014,46282924_2,4168.28,Revenue,20002568,PYROTEC SERVICES LTD
Oxford City Council,Regeneration and Major Projects Team,Fire Alarms and Emergency Lighting,B1241,02/09/2014,46282924_3,70,Revenue,20002568,PYROTEC SERVICES LTD
Oxford City Council,Regeneration and Major Projects Team,Main Contractor,Y021,02/09/2014,46282924_4,2282.3,Capital,20002568,PYROTEC SERVICES LTD
Oxford City Council,Regeneration and Major Projects Team,Main Contractor,Y021,30/09/2014,48020985_1,6917.8,Capital,20002568,PYROTEC SERVICES LTD
Oxford City Council,"Leisure, Parks & Communities",Materials,D3021,08/07/2014,1006914_1,909.84,Revenue,20002617,W G POWELL
Oxford City Council,Direct Services,Direct Services Supplies & Services,D3311   ,02/09/2014,60025127_2,1033.47,Revenue,20002617,W G POWELL
Oxford City Council,Direct Services,Materials,D3021,27/08/2014,60024824_1,591.02,Revenue,20002679,LOCKS & LATCHES (STAFFORD) LTD
Oxford City Council,Direct Services,Materials,D3021,15/07/2014,60022991_0,2093.85,Revenue,20002680,OXFORD SAFETY SUPPLIES
Oxford City Council,Direct Services,Materials,D3021   ,29/07/2014,60023528_0,515.85,Revenue,20002680,OXFORD SAFETY SUPPLIES
Oxford City Council,Direct Services,Materials,D3021   ,05/08/2014,60023821_1,1492.5,Revenue,20002680,OXFORD SAFETY SUPPLIES
Oxford City Council,Direct Services,Materials,D3021   ,05/08/2014,60023840_1,1038.35,Revenue,20002680,OXFORD SAFETY SUPPLIES
Oxford City Council,Direct Services,Materials,D3021   ,12/08/2014,60024185_0,769.15,Revenue,20002680,OXFORD SAFETY SUPPLIES
Oxford City Council,Direct Services,Protective Clothing,D3201   ,09/09/2014,60025316_2,2334.15,Revenue,20002680,OXFORD SAFETY SUPPLIES
Oxford City Council,Direct Services,Materials,D3021   ,09/09/2014,60025559_0,2226.95,Revenue,20002680,OXFORD SAFETY SUPPLIES
Oxford City Council,Direct Services,Materials,D3021   ,09/09/2014,60025577_2,586.3,Revenue,20002680,OXFORD SAFETY SUPPLIES
Oxford City Council,Direct Services,Materials,D3021,30/09/2014,60026286_2,672.15,Revenue,20002680,OXFORD SAFETY SUPPLIES
Oxford City Council,Direct Services,Materials,D3021,30/09/2014,60026287_0,580,Revenue,20002680,OXFORD SAFETY SUPPLIES
Oxford City Council,Direct Services,Materials,D3021,30/09/2014,60026289_0,1578,Revenue,20002680,OXFORD SAFETY SUPPLIES
Oxford City Council,Direct Services,Sign Shop Materials,D3018,15/07/2014,60023156_0,1000,Revenue,20002698,SPANDEX  LTD.  (UK)  COLLECTIONS
Oxford City Council,Direct Services,Sign Shop Materials,D3018,15/07/2014,60023164_0,648.9,Revenue,20002698,SPANDEX  LTD.  (UK)  COLLECTIONS
Oxford City Council,Direct Services,Sign Shop Materials,D3018   ,12/08/2014,60024290_1,1001.39,Revenue,20002698,SPANDEX  LTD.  (UK)  COLLECTIONS
Oxford City Council,Direct Services,Sign Shop Materials,D3018,30/09/2014,60026465_2,842.89,Revenue,20002698,SPANDEX  LTD.  (UK)  COLLECTIONS
Oxford City Council,Direct Services,Materials,D3021,16/09/2014,60025843_0,665,Revenue,20002712,CLEANSING SERVICE GROUP LTD
Oxford City Council,Direct Services,Materials,D3021,16/09/2014,60025844_1,1470,Revenue,20002712,CLEANSING SERVICE GROUP LTD
Oxford City Council,HRA,Main Contractor,Y021,29/07/2014,1007668_1,1280,Capital,20002720,CARBON COLOUR COMPANY LTD
Oxford City Council,"Policy, Culture and Communication",Special Events,D3807,30/09/2014,1009315_1,673,Revenue,20002720,CARBON COLOUR COMPANY LTD
Oxford City Council,HRA,Subscriptions,D3703,19/08/2014,1008356_1,720,Revenue,20002758,HQN LIMITED
Oxford City Council,"Leisure, Parks & Communities",General Contracted Services,D3401,08/07/2014,1007031_1,9589,Revenue,20002893,CHERWELL DISTRICT COUNCIL
Oxford City Council,Regeneration and Major Projects Team,Planning Application Fees,D3402,12/08/2014,46282738_1,500,Revenue,20002893,CHERWELL DISTRICT COUNCIL
Oxford City Council,Regeneration and Major Projects Team,Planning Application Fees,D3402,12/08/2014,46282738_2,1000,Revenue,20002893,CHERWELL DISTRICT COUNCIL
Oxford City Council,Direct Services,General Contracted Services,D3401,08/07/2014,60022760_0,1690,Revenue,20002929,ENVIRONMENT AGENCY
Oxford City Council,Human Resources & Facilities,Compliance Training (H&S),A0630,01/07/2014,1006868_1,4000,Revenue,20002930,OXFORDSHIRE COUNTY COUNCIL
Oxford City Council,Housing and Property,Joint housing team,D3424,01/07/2014,1007016_1,10000,Revenue,20002930,OXFORDSHIRE COUNTY COUNCIL
Oxford City Council,City Development,Stamp Duty & Other Legal Fees,D3415,29/07/2014,1007743_1,637.5,Revenue,20002930,OXFORDSHIRE COUNTY COUNCIL
Oxford City Council,HRA,Private Architects Fees,Y161,05/08/2014,1007816_1,6656.32,Capital,20002930,OXFORDSHIRE COUNTY COUNCIL
Oxford City Council,City Development,Stamp Duty & Other Legal Fees,D3415,12/08/2014,1008041_1,637.5,Revenue,20002930,OXFORDSHIRE COUNTY COUNCIL
Oxford City Council,Law and Governance,Contract Printing (External),D3303,19/08/2014,1008140_1,3615,Revenue,20002930,OXFORDSHIRE COUNTY COUNCIL
Oxford City Council,"Leisure, Parks & Communities",General Contracted Services,D3401,19/08/2014,1008142_1,699.58,Revenue,20002930,OXFORDSHIRE COUNTY COUNCIL
Oxford City Council,"Leisure, Parks & Communities",Instructors & Coaching Fees,D3413,19/08/2014,1008310_1,870,Revenue,20002930,OXFORDSHIRE COUNTY COUNCIL
Oxford City Council,Law and Governance,Contract Printing (External),D3303,27/08/2014,1008376_1,3615,Revenue,20002930,OXFORDSHIRE COUNTY COUNCIL
Oxford City Council,City Development,Stamp Duty & Other Legal Fees,D3415,02/09/2014,1008411_1,721.5,Revenue,20002930,OXFORDSHIRE COUNTY COUNCIL
Oxford City Council,"Policy, Culture and Communication",General Contracted Services,D3401,02/09/2014,1008552_1,9671,Revenue,20002930,OXFORDSHIRE COUNTY COUNCIL
Oxford City Council,Human Resources & Facilities,Contract Printing (External),D3303,23/09/2014,1008948_1,1594,Revenue,20002930,OXFORDSHIRE COUNTY COUNCIL
Oxford City Council,Human Resources & Facilities,Contract Printing (External),D3303,23/09/2014,1008949_1,7296,Revenue,20002930,OXFORDSHIRE COUNTY COUNCIL
Oxford City Council,"Leisure, Parks & Communities",Electricity,B1501,16/09/2014,1008965_1,4434,Revenue,20002930,OXFORDSHIRE COUNTY COUNCIL
Oxford City Council,"Leisure, Parks & Communities",Grants,D3701,01/07/2014,46282007_1,11119.33,Revenue,20002930,OXFORDSHIRE COUNTY COUNCIL
Oxford City Council,"Leisure, Parks & Communities",Grants,D3701,29/07/2014,46282016_1,11119.33,Revenue,20002930,OXFORDSHIRE COUNTY COUNCIL
Oxford City Council,"Leisure, Parks & Communities",Grants,D3701,27/08/2014,46282017_1,11119.33,Revenue,20002930,OXFORDSHIRE COUNTY COUNCIL
Oxford City Council,"Leisure, Parks & Communities",Grants,D3701,30/09/2014,46282018_1,11119.33,Revenue,20002930,OXFORDSHIRE COUNTY COUNCIL
Oxford City Council,Human Resources & Facilities,Copier Unit Recharges,D3304,08/07/2014,46282380_1,934,Revenue,20002930,OXFORDSHIRE COUNTY COUNCIL
Oxford City Council,"Leisure, Parks & Communities",Grants,D3701,08/07/2014,46282394_1,37676.88,Revenue,20002930,OXFORDSHIRE COUNTY COUNCIL
Oxford City Council,"Leisure, Parks & Communities",Grants,D3701,15/07/2014,46282438_1,3582.74,Revenue,20002930,OXFORDSHIRE COUNTY COUNCIL
Oxford City Council,"Leisure, Parks & Communities",Grants,D3701,15/07/2014,46282439_1,3582.66,Revenue,20002930,OXFORDSHIRE COUNTY COUNCIL
Oxford City Council,"Leisure, Parks & Communities",Grants,D3701,15/07/2014,46282440_1,3582.66,Revenue,20002930,OXFORDSHIRE COUNTY COUNCIL
Oxford City Council,"Leisure, Parks & Communities",Grants,D3701,15/07/2014,46282441_1,3582.66,Revenue,20002930,OXFORDSHIRE COUNTY COUNCIL
Oxford City Council,"Leisure, Parks & Communities",Grants,D3701,29/07/2014,46282442_1,3582.66,Revenue,20002930,OXFORDSHIRE COUNTY COUNCIL
Oxford City Council,"Leisure, Parks & Communities",Grants,D3701,27/08/2014,46282443_1,3582.66,Revenue,20002930,OXFORDSHIRE COUNTY COUNCIL
Oxford City Council,"Leisure, Parks & Communities",Grants,D3701,30/09/2014,46282444_1,3582.66,Revenue,20002930,OXFORDSHIRE COUNTY COUNCIL
Oxford City Council,Business Improvement & Technology,General Contracted Services,D3401,12/08/2014,46282780_1,120375.29,Revenue,20002930,OXFORDSHIRE COUNTY COUNCIL
Oxford City Council,Business Improvement & Technology,General Contracted Services,D3401,12/08/2014,46282780_2,130477.33,Revenue,20002930,OXFORDSHIRE COUNTY COUNCIL
Oxford City Council,Business Improvement & Technology,General Contracted Services,D3401,12/08/2014,46282780_3,1755.97,Revenue,20002930,OXFORDSHIRE COUNTY COUNCIL
Oxford City Council,Environmental Development,Grants,D3701,23/09/2014,46283196_1,79652.36,Revenue,20002930,OXFORDSHIRE COUNTY COUNCIL
Oxford City Council,Direct Services,Hardware Purchase,D3520,30/09/2014,46283238_1,3825.1,Revenue,20002930,OXFORDSHIRE COUNTY COUNCIL
Oxford City Council,"Policy, Culture and Communication",Hardware Purchase,D3520,30/09/2014,46283238_10,2.5,Revenue,20002930,OXFORDSHIRE COUNTY COUNCIL
Oxford City Council,Finance,Hardware Purchase,D3520,30/09/2014,46283238_100,2.5,Revenue,20002930,OXFORDSHIRE COUNTY COUNCIL
Oxford City Council,Housing and Property,Network Purchases,D3530,30/09/2014,46283238_101,1924.8,Revenue,20002930,OXFORDSHIRE COUNTY COUNCIL
Oxford City Council,"Policy, Culture and Communication",Hardware Purchase,D3520,30/09/2014,46283238_11,12.5,Revenue,20002930,OXFORDSHIRE COUNTY COUNCIL
Oxford City Council,Direct Services,Hardware Purchase,D3520,30/09/2014,46283238_12,2792,Revenue,20002930,OXFORDSHIRE COUNTY COUNCIL
Oxford City Council,Direct Services,Hardware Purchase,D3520,30/09/2014,46283238_13,1152,Revenue,20002930,OXFORDSHIRE COUNTY COUNCIL
Oxford City Council,Direct Services,Hardware Purchase,D3520,30/09/2014,46283238_14,20,Revenue,20002930,OXFORDSHIRE COUNTY COUNCIL
Oxford City Council,Regeneration and Major Projects Team,Hardware Purchase,D3520,30/09/2014,46283238_15,2248,Revenue,20002930,OXFORDSHIRE COUNTY COUNCIL
Oxford City Council,Regeneration and Major Projects Team,Hardware Purchase,D3520,30/09/2014,46283238_16,10,Revenue,20002930,OXFORDSHIRE COUNTY COUNCIL
Oxford City Council,Regeneration and Major Projects Team,Hardware Purchase,D3520,30/09/2014,46283238_17,125,Revenue,20002930,OXFORDSHIRE COUNTY COUNCIL
Oxford City Council,Regeneration and Major Projects Team,Software Purchase,D3511,30/09/2014,46283238_18,979.52,Revenue,20002930,OXFORDSHIRE COUNTY COUNCIL
Oxford City Council,Regeneration and Major Projects Team,Software Purchase,D3511,30/09/2014,46283238_19,455.52,Revenue,20002930,OXFORDSHIRE COUNTY COUNCIL
Oxford City Council,Direct Services,Hardware Purchase,D3520,30/09/2014,46283238_2,404.36,Revenue,20002930,OXFORDSHIRE COUNTY COUNCIL
Oxford City Council,Environmental Development,Software Purchase,D3511,30/09/2014,46283238_20,138.71,Revenue,20002930,OXFORDSHIRE COUNTY COUNCIL
Oxford City Council,Environmental Development,Software Purchase,D3511,30/09/2014,46283238_21,483.87,Revenue,20002930,OXFORDSHIRE COUNTY COUNCIL
Oxford City Council,Environmental Development,Software Purchase,D3511,30/09/2014,46283238_22,138.71,Revenue,20002930,OXFORDSHIRE COUNTY COUNCIL
Oxford City Council,Environmental Development,Software Purchase,D3511,30/09/2014,46283238_23,483.87,Revenue,20002930,OXFORDSHIRE COUNTY COUNCIL
Oxford City Council,Environmental Development,Software Purchase,D3511,30/09/2014,46283238_24,52.95,Revenue,20002930,OXFORDSHIRE COUNTY COUNCIL
Oxford City Council,HRA,Hardware Purchase,D3520,30/09/2014,46283238_25,562,Revenue,20002930,OXFORDSHIRE COUNTY COUNCIL
Oxford City Council,HRA,Hardware Purchase,D3520,30/09/2014,46283238_26,2.5,Revenue,20002930,OXFORDSHIRE COUNTY COUNCIL
Oxford City Council,HRA,Hardware Purchase,D3520,30/09/2014,46283238_27,25,Revenue,20002930,OXFORDSHIRE COUNTY COUNCIL
Oxford City Council,Customer Services,Hardware Purchase,D3520,30/09/2014,46283238_28,1686,Revenue,20002930,OXFORDSHIRE COUNTY COUNCIL
Oxford City Council,Customer Services,Hardware Purchase,D3520,30/09/2014,46283238_29,7.5,Revenue,20002930,OXFORDSHIRE COUNTY COUNCIL
Oxford City Council,Direct Services,Hardware Purchase,D3520,30/09/2014,46283238_3,188.34,Revenue,20002930,OXFORDSHIRE COUNTY COUNCIL
Oxford City Council,Customer Services,Hardware Purchase,D3520,30/09/2014,46283238_30,25,Revenue,20002930,OXFORDSHIRE COUNTY COUNCIL
Oxford City Council,Customer Services,Hardware Purchase,D3520,30/09/2014,46283238_31,25,Revenue,20002930,OXFORDSHIRE COUNTY COUNCIL
Oxford City Council,Customer Services,Hardware Purchase,D3520,30/09/2014,46283238_32,2248,Revenue,20002930,OXFORDSHIRE COUNTY COUNCIL
Oxford City Council,Customer Services,Hardware Purchase,D3520,30/09/2014,46283238_33,30,Revenue,20002930,OXFORDSHIRE COUNTY COUNCIL
Oxford City Council,Customer Services,Hardware Purchase,D3520,30/09/2014,46283238_34,672,Revenue,20002930,OXFORDSHIRE COUNTY COUNCIL
Oxford City Council,Customer Services,Hardware Purchase,D3520,30/09/2014,46283238_35,60.42,Revenue,20002930,OXFORDSHIRE COUNTY COUNCIL
Oxford City Council,Customer Services,Hardware Purchase,D3520,30/09/2014,46283238_36,343,Revenue,20002930,OXFORDSHIRE COUNTY COUNCIL
Oxford City Council,Customer Services,Hardware Purchase,D3520,30/09/2014,46283238_37,562,Revenue,20002930,OXFORDSHIRE COUNTY COUNCIL
Oxford City Council,Customer Services,Hardware Purchase,D3520,30/09/2014,46283238_38,2.5,Revenue,20002930,OXFORDSHIRE COUNTY COUNCIL
Oxford City Council,Direct Services,Software Purchase,D3511,30/09/2014,46283238_39,1224.4,Revenue,20002930,OXFORDSHIRE COUNTY COUNCIL
Oxford City Council,Direct Services,Hardware Contracted Maintenance,D3522,30/09/2014,46283238_4,649.18,Revenue,20002930,OXFORDSHIRE COUNTY COUNCIL
Oxford City Council,Customer Services,Software Purchase,D3511,30/09/2014,46283238_40,113.88,Revenue,20002930,OXFORDSHIRE COUNTY COUNCIL
Oxford City Council,Customer Services,Software Purchase,D3511,30/09/2014,46283238_41,244.88,Revenue,20002930,OXFORDSHIRE COUNTY COUNCIL
Oxford City Council,Customer Services,Hardware Purchase,D3520,30/09/2014,46283238_42,562,Revenue,20002930,OXFORDSHIRE COUNTY COUNCIL
Oxford City Council,Customer Services,Hardware Purchase,D3520,30/09/2014,46283238_43,2.5,Revenue,20002930,OXFORDSHIRE COUNTY COUNCIL
